Directorate,Department,Expenditure Type,Ref.Doc.1,Vendor Name,Expenditure Amount (exc VAT),Payment Date
Assurance,Assurance,Equipment and Materials Purcha,60061291,CITY FURNITURE HIRE LIMITED,367.07,18/08/2016
Assurance,Assurance,Equipment and Materials Purcha,60061885,EASYCRATE LTD,251.00,26/08/2016
Assurance,Assurance,Equipment and Materials Purcha,60061889,EASYCRATE LTD,310.00,26/08/2016
Assurance,Assurance,Equipment and Materials Purcha,60060530,REDACTED - PERSONAL DATA,150.00,16/08/2016
Assurance,Assurance,Equipment and Materials Purcha,60060563,TWOFOLD LTD,176.13,09/08/2016
Assurance,Assurance,Equipment and Materials Purcha,60060653,TWOFOLD LTD,416.86,09/08/2016
Assurance,Assurance,General Office Expenses,40001755,OFFICE DEPOT UK LTD,5.80,12/08/2016
Assurance,Assurance,Other Indirect Employee Expens,80005061,LBI MAYOR'S CHARITY,60.00,02/08/2016
Assurance,Assurance,Other Indirect Employee Expens,80005190,MAYOR OF HILLINGDON'S CHARITAB,110.00,02/08/2016
Assurance,Assurance,Other Indirect Employee Expens,80005394,THE MAYOR'S APPEAL FUND,70.00,16/08/2016
Assurance,Assurance,Postage,60061284,ROYAL MAIL GROUP LIMITED,0.45,18/08/2016
Assurance,Assurance,Postage,60061545,ROYAL MAIL GROUP LIMITED,"14,094.90",25/08/2016
Assurance,Assurance,Postage,60061547,ROYAL MAIL GROUP LIMITED,"8,488.89",26/08/2016
Assurance,Assurance,Postage,60061569,ROYAL MAIL GROUP LIMITED,"5,780.25",25/08/2016
Assurance,Assurance,Postage,60061609,ROYAL MAIL GROUP LIMITED,"1,862.99",25/08/2016
Assurance,Assurance,Postage,60061752,ROYAL MAIL GROUP LIMITED,102.72,25/08/2016
Assurance,Assurance,Printing-Contract,40001756,OFFICE DEPOT UK LTD,12.42,12/08/2016
Assurance,Assurance,Printing-Contract,60061315,OFFICE DEPOT UK LTD,-43.63,26/08/2016
Assurance,Assurance,Professional Services,60060185,ELECTORAL REFORM SERVICES,"61,873.24",03/08/2016
Assurance,Assurance,Professional Services,60060189,ELECTORAL REFORM SERVICES,"76,619.11",03/08/2016
Assurance,Assurance,Professional Services,60060215,ELECTORAL REFORM SERVICES,"49,364.61",03/08/2016
Assurance,Assurance,Professional Services,60060753,ELECTORAL REFORM SERVICES,"1,072.50",26/08/2016
Assurance,Assurance,Professional Services,60061783,SHAW & SONS LIMITED,"1,229.00",25/08/2016
Assurance,Assurance,Rents,60060391,BARNET BROOKSIDE METHODIST CHURCH,450.00,05/08/2016
Assurance,Assurance,Rents,60060303,ETZ CHAIM JEWISH PRIMARY SCHOOL,936.00,04/08/2016
Assurance,Assurance,Rents,60060364,GREEN MAN COMMUNITY CENTRE M.C.,"1,000.00",04/08/2016
Assurance,Assurance,Rents,60061166,LONDON COUNCILS,258.00,16/08/2016
Assurance,Assurance,Rents,60054001,ST JOHN THE APOSTLE CHURCH,320.00,04/08/2016
Assurance,Assurance,Subscriptions,60059479,COMPANIES HOUSE,4.00,03/08/2016
Assurance,Assurance,Subscriptions,60060493,EQUIFAX LTD,15.88,31/08/2016
Assurance,Assurance,Subscriptions,80005565,THE INFORMATION COMMISSIONER,35.00,26/08/2016
Assurance,Assurance,Translation Exp / Interpret,60053692,PRIME PRODUCTION LTD,39.50,18/08/2016
Assurance,Assurance,Translation Exp / Interpret,60053702,PRIME PRODUCTION LTD,39.50,18/08/2016
Assurance,Assurance,Translation Exp / Interpret,60053755,PRIME PRODUCTION LTD,62.00,18/08/2016
Assurance,Assurance,Translation Exp / Interpret,60059476,PRIME PRODUCTION LTD,39.50,01/08/2016
Central Expenses,Central Expenses,Consultants Fees,60060435,KPMG FEES ACCOUNT,"2,750.00",05/08/2016
Central Expenses,Central Expenses,Insurance Claims,80005144,ADMIRAL INSURANCE,"1,710.57",02/08/2016
Central Expenses,Central Expenses,Insurance Claims,80005370,ADMIRAL LAW,160.00,12/08/2016
Central Expenses,Central Expenses,Insurance Claims,80005163,AMV LAW,405.00,02/08/2016
Central Expenses,Central Expenses,Insurance Claims,80005260,BAKERS SOLICITORS,425.00,16/08/2016
Central Expenses,Central Expenses,Insurance Claims,80005217,BERRYMANS LACE MAWER LLP,"2,610.50",09/08/2016
Central Expenses,Central Expenses,Insurance Claims,60060342,CHARLES DUKES ASSESSORS,60.00,05/08/2016
Central Expenses,Central Expenses,Insurance Claims,60051680,CLYDE & CO LLP,470.70,31/08/2016
Central Expenses,Central Expenses,Insurance Claims,60052231,CLYDE & CO LLP,400.00,31/08/2016
Central Expenses,Central Expenses,Insurance Claims,60055011,CLYDE & CO LLP,198.00,10/08/2016
Central Expenses,Central Expenses,Insurance Claims,80005560,DAC BEACHCROFT LLP,"2,500.00",26/08/2016
Central Expenses,Central Expenses,Insurance Claims,80005157,DWP COMPENSATION RECOVERY UNIT,627.00,02/08/2016
Central Expenses,Central Expenses,Insurance Claims,80005180,DWP COMPENSATION RECOVERY UNIT,627.00,03/08/2016
Central Expenses,Central Expenses,Insurance Claims,80005182,DWP COMPENSATION RECOVERY UNIT,637.00,03/08/2016
Central Expenses,Central Expenses,Insurance Claims,80005244,DWP COMPENSATION RECOVERY UNIT,"2,388.00",16/08/2016
Central Expenses,Central Expenses,Insurance Claims,80005337,DWP COMPENSATION RECOVERY UNIT,647.00,16/08/2016
Central Expenses,Central Expenses,Insurance Claims,80005342,DWP COMPENSATION RECOVERY UNIT,842.00,16/08/2016
Central Expenses,Central Expenses,Insurance Claims,80005344,DWP COMPENSATION RECOVERY UNIT,647.00,16/08/2016
Central Expenses,Central Expenses,Insurance Claims,80005364,DWP COMPENSATION RECOVERY UNIT,615.00,16/08/2016
Central Expenses,Central Expenses,Insurance Claims,80005387,DWP COMPENSATION RECOVERY UNIT,647.00,16/08/2016
Central Expenses,Central Expenses,Insurance Claims,80005482,ERSAN & CO SOLICITORS,"1,530.00",19/08/2016
Central Expenses,Central Expenses,Insurance Claims,80005153,EXPRESS SOLICITORS,"11,338.80",02/08/2016
Central Expenses,Central Expenses,Insurance Claims,80005165,GREGORY ABRAMS DAVIDSON LLP,"2,495.00",02/08/2016
Central Expenses,Central Expenses,Insurance Claims,80005422,GREGORY ABRAMS DAVIDSON LLP,"9,109.68",17/08/2016
Central Expenses,Central Expenses,Insurance Claims,80005259,HELPHIRE LTD,"6,530.84",15/08/2016
Central Expenses,Central Expenses,Insurance Claims,80005485,HOLMES & HILLS LLP,"3,000.00",23/08/2016
Central Expenses,Central Expenses,Insurance Claims,80005229,KINDERTONS LTD,975.00,09/08/2016
Central Expenses,Central Expenses,Insurance Claims,80005472,KINDERTONS LTD,108.00,22/08/2016
Central Expenses,Central Expenses,Insurance Claims,60057762,LEGAL COSTS NEGOTIATORS,560.55,12/08/2016
Central Expenses,Central Expenses,Insurance Claims,80005347,LITTLEWICK MEDICAL CENTRE,50.00,16/08/2016
Central Expenses,Central Expenses,Insurance Claims,80005155,LONDON COMMUNITY HEALTHCARE,519.58,02/08/2016
Central Expenses,Central Expenses,Insurance Claims,80005400,LYONS DAVIDSON SOLICITORS,"2,395.46",16/08/2016
Central Expenses,Central Expenses,Insurance Claims,80005156,NORTHUMBRIA HEALTHCARE,250.00,02/08/2016
Central Expenses,Central Expenses,Insurance Claims,80005391,PLEXUS LAW,"4,000.00",16/08/2016
Central Expenses,Central Expenses,Insurance Claims,80005164,PRINCIPIA LAW LTD,"2,074.06",02/08/2016
Central Expenses,Central Expenses,Insurance Claims,80005173,PROXIMO LTD,"4,321.78",02/08/2016
Central Expenses,Central Expenses,Insurance Claims,80005511,ROMAIN COLEMAN SOLICITORS,"16,850.00",24/08/2016
Central Expenses,Central Expenses,Insurance Claims,80005168,RSA MOTABILITY,"2,718.12",02/08/2016
Central Expenses,Central Expenses,Insurance Claims,80004955,SCOTT REES & CO,"7,616.07",01/08/2016
Central Expenses,Central Expenses,Insurance Claims,80005115,SCOTT REES & CO. SOLICITORS,"1,000.00",02/08/2016
Central Expenses,Central Expenses,Insurance Claims,80005467,SLATER & GORDON,993.00,19/08/2016
Central Expenses,Central Expenses,Insurance Claims,80005363,STONE ROWE BREWER LLP,"5,000.00",16/08/2016
Central Expenses,Central Expenses,Insurance Claims,80005450,SURGEX MEDICOLEGAL,240.00,19/08/2016
Central Expenses,Central Expenses,Insurance Claims,80005466,THOMPSONS SOLICITORS,"4,000.00",19/08/2016
Central Expenses,Central Expenses,Insurance Claims,80005540,TRADE UNION LEGAL LLP,"5,100.00",25/08/2016
Central Expenses,Central Expenses,Insurance Claims,80005175,UK INSURANCE LTD,"1,557.19",02/08/2016
Central Expenses,Central Expenses,Insurance Claims,60060260,WEIGHTMANS LLP,600.00,31/08/2016
Central Expenses,Central Expenses,Other Establishments - Third P,EBX0129619,LEE VALLEY REGIONAL PARK AUTH.,"32,219.58",17/08/2016
Central Expenses,Central Expenses,Other Establishments - Third P,EBX0128007,LONDON PENSIONS FUND AUTHORITY,"49,627.80",02/08/2016
Central Expenses,Central Expenses,Pensions To Retired Employees,60060663,LONDON PENSIONS FUND AUTHORITY,"2,765.60",09/08/2016
Commercial,Births Deaths & Marriages,Cleaning and domestic material,60060334,CHURCHILL CONTRACT SERVICES,624.26,30/08/2016
Commercial,Customer Support Group,Books-CDs-Audio-Video,60060680,SM ELECTRICAL SERVICES,170.00,10/08/2016
Commercial,Customer Support Group,Books-CDs-Audio-Video,60061217,SM ELECTRICAL SERVICES,90.00,16/08/2016
Commercial,Customer Support Group,Building Repairs & Maintenance,60060078,ABEL ALARM COMPANY LIMITED,40.00,01/08/2016
Commercial,Customer Support Group,Building Repairs & Maintenance,60059932,ADAMS ENVIRONMENTAL LTD,850.00,16/08/2016
Commercial,Customer Support Group,Building Repairs & Maintenance,60060913,ADAMS ENVIRONMENTAL LTD,650.00,26/08/2016
Commercial,Customer Support Group,Building Repairs & Maintenance,60060172,AJS LTD,180.32,22/08/2016
Commercial,Customer Support Group,Building Repairs & Maintenance,60060174,AJS LTD,296.87,15/08/2016
Commercial,Customer Support Group,Building Repairs & Maintenance,60060183,AJS LTD,296.87,12/08/2016
Commercial,Customer Support Group,Building Repairs & Maintenance,60060205,AJS LTD,296.87,12/08/2016
Commercial,Customer Support Group,Building Repairs & Maintenance,60060217,AJS LTD,296.87,23/08/2016
Commercial,Customer Support Group,Building Repairs & Maintenance,60060223,AJS LTD,203.84,12/08/2016
Commercial,Customer Support Group,Building Repairs & Maintenance,60060225,AJS LTD,296.87,12/08/2016
Commercial,Customer Support Group,Building Repairs & Maintenance,60060324,AJS LTD,"1,876.00",04/08/2016
Commercial,Customer Support Group,Building Repairs & Maintenance,60060354,AJS LTD,66.00,04/08/2016
Commercial,Customer Support Group,Building Repairs & Maintenance,60061379,AJS LTD,90.75,19/08/2016
Commercial,Customer Support Group,Building Repairs & Maintenance,60061380,AJS LTD,107.25,19/08/2016
Commercial,Customer Support Group,Building Repairs & Maintenance,60061392,AJS LTD,68.32,19/08/2016
Commercial,Customer Support Group,Building Repairs & Maintenance,60061450,AJS LTD,363.00,22/08/2016
Commercial,Customer Support Group,Building Repairs & Maintenance,60061499,AJS LTD,"27,757.32",22/08/2016
Commercial,Customer Support Group,Building Repairs & Maintenance,60060297,DOORWAY-MAINTENANCE CO.,190.00,22/08/2016
Commercial,Customer Support Group,Building Repairs & Maintenance,60041778,DORMA UK LTD,192.00,24/08/2016
Commercial,Customer Support Group,Building Repairs & Maintenance,60058652,DORMA UK LTD,341.95,03/08/2016
Commercial,Customer Support Group,Building Repairs & Maintenance,60058659,DORMA UK LTD,471.83,03/08/2016
Commercial,Customer Support Group,Building Repairs & Maintenance,60058692,DORMA UK LTD,471.84,03/08/2016
Commercial,Customer Support Group,Building Repairs & Maintenance,60058725,DORMA UK LTD,341.95,03/08/2016
Commercial,Customer Support Group,Building Repairs & Maintenance,80005177,GMG VENDING,491.43,02/08/2016
Commercial,Customer Support Group,Building Repairs & Maintenance,60033387,HERTEL (UK) LTD,7.00,12/08/2016
Commercial,Customer Support Group,Building Repairs & Maintenance,60033511,HERTEL (UK) LTD,40.83,12/08/2016
Commercial,Customer Support Group,Building Repairs & Maintenance,60033632,HERTEL (UK) LTD,40.83,12/08/2016
Commercial,Customer Support Group,Building Repairs & Maintenance,60033739,HERTEL (UK) LTD,40.83,12/08/2016
Commercial,Customer Support Group,Building Repairs & Maintenance,60033815,HERTEL (UK) LTD,204.15,09/08/2016
Commercial,Customer Support Group,Building Repairs & Maintenance,60058997,HERTEL (UK) LTD,38.79,11/08/2016
Commercial,Customer Support Group,Building Repairs & Maintenance,60060850,HERTEL (UK) LTD,38.79,12/08/2016
Commercial,Customer Support Group,Building Repairs & Maintenance,60060854,HERTEL (UK) LTD,38.79,12/08/2016
Commercial,Customer Support Group,Building Repairs & Maintenance,60060855,HERTEL (UK) LTD,38.79,12/08/2016
Commercial,Customer Support Group,Building Repairs & Maintenance,60060858,HERTEL (UK) LTD,38.79,12/08/2016
Commercial,Customer Support Group,Building Repairs & Maintenance,60060859,HERTEL (UK) LTD,38.79,12/08/2016
Commercial,Customer Support Group,Building Repairs & Maintenance,60060861,HERTEL (UK) LTD,38.79,12/08/2016
Commercial,Customer Support Group,Building Repairs & Maintenance,60060862,HERTEL (UK) LTD,38.79,12/08/2016
Commercial,Customer Support Group,Building Repairs & Maintenance,60060863,HERTEL (UK) LTD,45.00,12/08/2016
Commercial,Customer Support Group,Building Repairs & Maintenance,60060864,HERTEL (UK) LTD,38.79,12/08/2016
Commercial,Customer Support Group,Building Repairs & Maintenance,60060867,HERTEL (UK) LTD,150.00,12/08/2016
Commercial,Customer Support Group,Building Repairs & Maintenance,60060868,HERTEL (UK) LTD,38.79,12/08/2016
Commercial,Customer Support Group,Building Repairs & Maintenance,60060871,HERTEL (UK) LTD,38.79,12/08/2016
Commercial,Customer Support Group,Building Repairs & Maintenance,60060872,HERTEL (UK) LTD,38.79,12/08/2016
Commercial,Customer Support Group,Building Repairs & Maintenance,60060874,HERTEL (UK) LTD,38.79,12/08/2016
Commercial,Customer Support Group,Building Repairs & Maintenance,60060875,HERTEL (UK) LTD,38.79,12/08/2016
Commercial,Customer Support Group,Building Repairs & Maintenance,60060877,HERTEL (UK) LTD,38.79,12/08/2016
Commercial,Customer Support Group,Building Repairs & Maintenance,60060878,HERTEL (UK) LTD,38.79,12/08/2016
Commercial,Customer Support Group,Building Repairs & Maintenance,60060879,HERTEL (UK) LTD,38.79,12/08/2016
Commercial,Customer Support Group,Building Repairs & Maintenance,60060880,HERTEL (UK) LTD,38.79,12/08/2016
Commercial,Customer Support Group,Building Repairs & Maintenance,60060882,HERTEL (UK) LTD,38.79,12/08/2016
Commercial,Customer Support Group,Building Repairs & Maintenance,60060883,HERTEL (UK) LTD,38.79,12/08/2016
Commercial,Customer Support Group,Building Repairs & Maintenance,60060884,HERTEL (UK) LTD,38.79,12/08/2016
Commercial,Customer Support Group,Building Repairs & Maintenance,60060885,HERTEL (UK) LTD,38.79,12/08/2016
Commercial,Customer Support Group,Building Repairs & Maintenance,60060887,HERTEL (UK) LTD,38.79,12/08/2016
Commercial,Customer Support Group,Building Repairs & Maintenance,60060890,HERTEL (UK) LTD,38.79,12/08/2016
Commercial,Customer Support Group,Building Repairs & Maintenance,60060891,HERTEL (UK) LTD,38.79,12/08/2016
Commercial,Customer Support Group,Building Repairs & Maintenance,60060893,HERTEL (UK) LTD,38.79,12/08/2016
Commercial,Customer Support Group,Building Repairs & Maintenance,60060895,HERTEL (UK) LTD,38.79,12/08/2016
Commercial,Customer Support Group,Building Repairs & Maintenance,60060896,HERTEL (UK) LTD,38.79,12/08/2016
Commercial,Customer Support Group,Building Repairs & Maintenance,60060899,HERTEL (UK) LTD,268.00,12/08/2016
Commercial,Customer Support Group,Building Repairs & Maintenance,60060906,HERTEL (UK) LTD,45.00,12/08/2016
Commercial,Customer Support Group,Building Repairs & Maintenance,60060908,HERTEL (UK) LTD,38.79,12/08/2016
Commercial,Customer Support Group,Building Repairs & Maintenance,60060909,HERTEL (UK) LTD,38.79,12/08/2016
Commercial,Customer Support Group,Building Repairs & Maintenance,60060910,HERTEL (UK) LTD,38.79,12/08/2016
Commercial,Customer Support Group,Building Repairs & Maintenance,60060912,HERTEL (UK) LTD,38.79,12/08/2016
Commercial,Customer Support Group,Building Repairs & Maintenance,60060914,HERTEL (UK) LTD,38.79,12/08/2016
Commercial,Customer Support Group,Building Repairs & Maintenance,60060915,HERTEL (UK) LTD,38.79,12/08/2016
Commercial,Customer Support Group,Building Repairs & Maintenance,60060916,HERTEL (UK) LTD,38.79,12/08/2016
Commercial,Customer Support Group,Building Repairs & Maintenance,60060917,HERTEL (UK) LTD,38.79,12/08/2016
Commercial,Customer Support Group,Building Repairs & Maintenance,60060919,HERTEL (UK) LTD,38.79,12/08/2016
Commercial,Customer Support Group,Building Repairs & Maintenance,60060920,HERTEL (UK) LTD,38.79,12/08/2016
Commercial,Customer Support Group,Building Repairs & Maintenance,60060922,HERTEL (UK) LTD,38.79,12/08/2016
Commercial,Customer Support Group,Building Repairs & Maintenance,60060923,HERTEL (UK) LTD,38.79,12/08/2016
Commercial,Customer Support Group,Building Repairs & Maintenance,60060924,HERTEL (UK) LTD,38.79,12/08/2016
Commercial,Customer Support Group,Building Repairs & Maintenance,60060925,HERTEL (UK) LTD,38.79,12/08/2016
Commercial,Customer Support Group,Building Repairs & Maintenance,60060926,HERTEL (UK) LTD,38.79,12/08/2016
Commercial,Customer Support Group,Building Repairs & Maintenance,60060927,HERTEL (UK) LTD,38.79,12/08/2016
Commercial,Customer Support Group,Building Repairs & Maintenance,60060928,HERTEL (UK) LTD,"1,807.00",12/08/2016
Commercial,Customer Support Group,Building Repairs & Maintenance,60060929,HERTEL (UK) LTD,38.79,12/08/2016
Commercial,Customer Support Group,Building Repairs & Maintenance,60060930,HERTEL (UK) LTD,38.79,12/08/2016
Commercial,Customer Support Group,Building Repairs & Maintenance,60060932,HERTEL (UK) LTD,38.79,12/08/2016
Commercial,Customer Support Group,Building Repairs & Maintenance,60060935,HERTEL (UK) LTD,38.79,12/08/2016
Commercial,Customer Support Group,Building Repairs & Maintenance,60060936,HERTEL (UK) LTD,38.79,12/08/2016
Commercial,Customer Support Group,Building Repairs & Maintenance,60060937,HERTEL (UK) LTD,38.79,12/08/2016
Commercial,Customer Support Group,Building Repairs & Maintenance,60060938,HERTEL (UK) LTD,38.79,12/08/2016
Commercial,Customer Support Group,Building Repairs & Maintenance,60060939,HERTEL (UK) LTD,38.79,12/08/2016
Commercial,Customer Support Group,Building Repairs & Maintenance,60060940,HERTEL (UK) LTD,38.79,12/08/2016
Commercial,Customer Support Group,Building Repairs & Maintenance,60060942,HERTEL (UK) LTD,38.79,12/08/2016
Commercial,Customer Support Group,Building Repairs & Maintenance,60060943,HERTEL (UK) LTD,38.79,12/08/2016
Commercial,Customer Support Group,Building Repairs & Maintenance,60060946,HERTEL (UK) LTD,38.79,12/08/2016
Commercial,Customer Support Group,Building Repairs & Maintenance,60060947,HERTEL (UK) LTD,38.79,15/08/2016
Commercial,Customer Support Group,Building Repairs & Maintenance,60060948,HERTEL (UK) LTD,38.79,12/08/2016
Commercial,Customer Support Group,Building Repairs & Maintenance,60060949,HERTEL (UK) LTD,38.79,12/08/2016
Commercial,Customer Support Group,Building Repairs & Maintenance,60060953,HERTEL (UK) LTD,38.79,12/08/2016
Commercial,Customer Support Group,Building Repairs & Maintenance,60060955,HERTEL (UK) LTD,38.79,12/08/2016
Commercial,Customer Support Group,Building Repairs & Maintenance,60060956,HERTEL (UK) LTD,38.79,12/08/2016
Commercial,Customer Support Group,Building Repairs & Maintenance,60060957,HERTEL (UK) LTD,65.00,12/08/2016
Commercial,Customer Support Group,Building Repairs & Maintenance,60060958,HERTEL (UK) LTD,38.79,12/08/2016
Commercial,Customer Support Group,Building Repairs & Maintenance,60060959,HERTEL (UK) LTD,360.00,12/08/2016
Commercial,Customer Support Group,Building Repairs & Maintenance,60060960,HERTEL (UK) LTD,38.79,12/08/2016
Commercial,Customer Support Group,Building Repairs & Maintenance,60060961,HERTEL (UK) LTD,110.00,12/08/2016
Commercial,Customer Support Group,Building Repairs & Maintenance,60060962,HERTEL (UK) LTD,38.79,12/08/2016
Commercial,Customer Support Group,Building Repairs & Maintenance,60060963,HERTEL (UK) LTD,135.00,12/08/2016
Commercial,Customer Support Group,Building Repairs & Maintenance,60060964,HERTEL (UK) LTD,135.00,12/08/2016
Commercial,Customer Support Group,Building Repairs & Maintenance,60060966,HERTEL (UK) LTD,38.79,12/08/2016
Commercial,Customer Support Group,Building Repairs & Maintenance,60060968,HERTEL (UK) LTD,38.79,12/08/2016
Commercial,Customer Support Group,Building Repairs & Maintenance,60060969,HERTEL (UK) LTD,38.79,12/08/2016
Commercial,Customer Support Group,Building Repairs & Maintenance,60060970,HERTEL (UK) LTD,38.79,12/08/2016
Commercial,Customer Support Group,Building Repairs & Maintenance,60060973,HERTEL (UK) LTD,38.79,12/08/2016
Commercial,Customer Support Group,Building Repairs & Maintenance,60060975,HERTEL (UK) LTD,38.79,15/08/2016
Commercial,Customer Support Group,Building Repairs & Maintenance,60060976,HERTEL (UK) LTD,38.79,12/08/2016
Commercial,Customer Support Group,Building Repairs & Maintenance,60060979,HERTEL (UK) LTD,260.00,12/08/2016
Commercial,Customer Support Group,Building Repairs & Maintenance,60060980,HERTEL (UK) LTD,38.79,12/08/2016
Commercial,Customer Support Group,Building Repairs & Maintenance,60060982,HERTEL (UK) LTD,38.79,12/08/2016
Commercial,Customer Support Group,Building Repairs & Maintenance,60060985,HERTEL (UK) LTD,38.79,12/08/2016
Commercial,Customer Support Group,Building Repairs & Maintenance,60060986,HERTEL (UK) LTD,38.79,12/08/2016
Commercial,Customer Support Group,Building Repairs & Maintenance,60060987,HERTEL (UK) LTD,38.79,12/08/2016
Commercial,Customer Support Group,Building Repairs & Maintenance,60060988,HERTEL (UK) LTD,38.79,12/08/2016
Commercial,Customer Support Group,Building Repairs & Maintenance,60060989,HERTEL (UK) LTD,65.00,12/08/2016
Commercial,Customer Support Group,Building Repairs & Maintenance,60060992,HERTEL (UK) LTD,38.79,12/08/2016
Commercial,Customer Support Group,Building Repairs & Maintenance,60061047,HERTEL (UK) LTD,500.00,16/08/2016
Commercial,Customer Support Group,Building Repairs & Maintenance,60060553,HERTFORDSHIRE SUPPLIES   COUNTY CO,47.00,09/08/2016
Commercial,Customer Support Group,Building Repairs & Maintenance,60060630,HERTFORDSHIRE SUPPLIES   COUNTY CO,47.00,09/08/2016
Commercial,Customer Support Group,Building Repairs & Maintenance,60061738,LEE SECURITY LONDON LIMITED,431.00,25/08/2016
Commercial,Customer Support Group,Building Repairs & Maintenance,60056915,LIFT & ENGINEERING SERVICES LTD,94.21,11/08/2016
Commercial,Customer Support Group,Building Repairs & Maintenance,60056922,LIFT & ENGINEERING SERVICES LTD,70.66,12/08/2016
Commercial,Customer Support Group,Building Repairs & Maintenance,60056954,LIFT & ENGINEERING SERVICES LTD,70.66,12/08/2016
Commercial,Customer Support Group,Building Repairs & Maintenance,60056960,LIFT & ENGINEERING SERVICES LTD,47.10,15/08/2016
Commercial,Customer Support Group,Building Repairs & Maintenance,60056965,LIFT & ENGINEERING SERVICES LTD,47.10,15/08/2016
Commercial,Customer Support Group,Building Repairs & Maintenance,60056968,LIFT & ENGINEERING SERVICES LTD,47.10,11/08/2016
Commercial,Customer Support Group,Building Repairs & Maintenance,60056986,LIFT & ENGINEERING SERVICES LTD,70.66,15/08/2016
Commercial,Customer Support Group,Building Repairs & Maintenance,60057002,LIFT & ENGINEERING SERVICES LTD,47.10,15/08/2016
Commercial,Customer Support Group,Building Repairs & Maintenance,60057018,LIFT & ENGINEERING SERVICES LTD,47.10,15/08/2016
Commercial,Customer Support Group,Building Repairs & Maintenance,60057026,LIFT & ENGINEERING SERVICES LTD,47.10,15/08/2016
Commercial,Customer Support Group,Building Repairs & Maintenance,60057040,LIFT & ENGINEERING SERVICES LTD,47.10,15/08/2016
Commercial,Customer Support Group,Building Repairs & Maintenance,60058626,LIFT & ENGINEERING SERVICES LTD,47.10,15/08/2016
Commercial,Customer Support Group,Building Repairs & Maintenance,60058627,LIFT & ENGINEERING SERVICES LTD,47.10,15/08/2016
Commercial,Customer Support Group,Building Repairs & Maintenance,60059388,LIFT & ENGINEERING SERVICES LTD,222.06,09/08/2016
Commercial,Customer Support Group,Building Repairs & Maintenance,60059391,LIFT & ENGINEERING SERVICES LTD,222.06,09/08/2016
Commercial,Customer Support Group,Building Repairs & Maintenance,60060121,LIFT & ENGINEERING SERVICES LTD,174.00,26/08/2016
Commercial,Customer Support Group,Building Repairs & Maintenance,60060409,LIFT & ENGINEERING SERVICES LTD,"4,266.00",26/08/2016
Commercial,Customer Support Group,Building Repairs & Maintenance,60060762,LIFT & ENGINEERING SERVICES LTD,94.21,30/08/2016
Commercial,Customer Support Group,Building Repairs & Maintenance,60060783,LIFT & ENGINEERING SERVICES LTD,94.21,30/08/2016
Commercial,Customer Support Group,Building Repairs & Maintenance,60060787,LIFT & ENGINEERING SERVICES LTD,94.21,30/08/2016
Commercial,Customer Support Group,Building Repairs & Maintenance,60060789,LIFT & ENGINEERING SERVICES LTD,94.21,30/08/2016
Commercial,Customer Support Group,Building Repairs & Maintenance,60060846,LIFT & ENGINEERING SERVICES LTD,47.10,30/08/2016
Commercial,Customer Support Group,Building Repairs & Maintenance,60060851,LIFT & ENGINEERING SERVICES LTD,47.10,30/08/2016
Commercial,Customer Support Group,Building Repairs & Maintenance,60060903,LIFT & ENGINEERING SERVICES LTD,47.10,30/08/2016
Commercial,Customer Support Group,Building Repairs & Maintenance,60060934,LIFT & ENGINEERING SERVICES LTD,47.10,30/08/2016
Commercial,Customer Support Group,Building Repairs & Maintenance,60061521,LIFT & ENGINEERING SERVICES LTD,632.40,31/08/2016
Commercial,Customer Support Group,Building Repairs & Maintenance,60061187,NORTH LONDON CATERING EQUIPMENT,138.50,16/08/2016
Commercial,Customer Support Group,Building Repairs & Maintenance,60043366,OAKRAY LIMITED,744.00,12/08/2016
Commercial,Customer Support Group,Building Repairs & Maintenance,60055524,OAKRAY LIMITED,715.17,12/08/2016
Commercial,Customer Support Group,Building Repairs & Maintenance,60055587,OAKRAY LIMITED,605.89,12/08/2016
Commercial,Customer Support Group,Building Repairs & Maintenance,60059401,OAKRAY LIMITED,88.00,12/08/2016
Commercial,Customer Support Group,Building Repairs & Maintenance,60059402,OAKRAY LIMITED,80.00,12/08/2016
Commercial,Customer Support Group,Building Repairs & Maintenance,60059405,OAKRAY LIMITED,308.95,09/08/2016
Commercial,Customer Support Group,Building Repairs & Maintenance,60059411,OAKRAY LIMITED,112.00,12/08/2016
Commercial,Customer Support Group,Building Repairs & Maintenance,60059414,OAKRAY LIMITED,72.00,10/08/2016
Commercial,Customer Support Group,Building Repairs & Maintenance,60059415,OAKRAY LIMITED,"2,479.74",12/08/2016
Commercial,Customer Support Group,Building Repairs & Maintenance,60059416,OAKRAY LIMITED,191.15,10/08/2016
Commercial,Customer Support Group,Building Repairs & Maintenance,60059417,OAKRAY LIMITED,72.00,10/08/2016
Commercial,Customer Support Group,Building Repairs & Maintenance,60059419,OAKRAY LIMITED,120.00,11/08/2016
Commercial,Customer Support Group,Building Repairs & Maintenance,60059421,OAKRAY LIMITED,88.00,09/08/2016
Commercial,Customer Support Group,Building Repairs & Maintenance,60059422,OAKRAY LIMITED,"2,133.00",09/08/2016
Commercial,Customer Support Group,Building Repairs & Maintenance,60059424,OAKRAY LIMITED,192.00,10/08/2016
Commercial,Customer Support Group,Building Repairs & Maintenance,60059426,OAKRAY LIMITED,96.00,12/08/2016
Commercial,Customer Support Group,Building Repairs & Maintenance,60059428,OAKRAY LIMITED,96.00,10/08/2016
Commercial,Customer Support Group,Building Repairs & Maintenance,60059432,OAKRAY LIMITED,88.00,10/08/2016
Commercial,Customer Support Group,Building Repairs & Maintenance,60059433,OAKRAY LIMITED,80.00,12/08/2016
Commercial,Customer Support Group,Building Repairs & Maintenance,60059439,OAKRAY LIMITED,112.00,09/08/2016
Commercial,Customer Support Group,Building Repairs & Maintenance,60059442,OAKRAY LIMITED,64.00,10/08/2016
Commercial,Customer Support Group,Building Repairs & Maintenance,60059444,OAKRAY LIMITED,64.00,10/08/2016
Commercial,Customer Support Group,Building Repairs & Maintenance,60059445,OAKRAY LIMITED,624.22,12/08/2016
Commercial,Customer Support Group,Building Repairs & Maintenance,60059446,OAKRAY LIMITED,80.00,09/08/2016
Commercial,Customer Support Group,Building Repairs & Maintenance,60059447,OAKRAY LIMITED,48.00,11/08/2016
Commercial,Customer Support Group,Building Repairs & Maintenance,60059449,OAKRAY LIMITED,72.00,12/08/2016
Commercial,Customer Support Group,Building Repairs & Maintenance,60059451,OAKRAY LIMITED,425.92,18/08/2016
Commercial,Customer Support Group,Building Repairs & Maintenance,60059453,OAKRAY LIMITED,64.00,16/08/2016
Commercial,Customer Support Group,Building Repairs & Maintenance,60059454,OAKRAY LIMITED,160.00,09/08/2016
Commercial,Customer Support Group,Building Repairs & Maintenance,60059455,OAKRAY LIMITED,233.42,18/08/2016
Commercial,Customer Support Group,Building Repairs & Maintenance,60059458,OAKRAY LIMITED,200.00,12/08/2016
Commercial,Customer Support Group,Building Repairs & Maintenance,60059462,OAKRAY LIMITED,104.00,12/08/2016
Commercial,Customer Support Group,Building Repairs & Maintenance,60059465,OAKRAY LIMITED,80.00,12/08/2016
Commercial,Customer Support Group,Building Repairs & Maintenance,60059467,OAKRAY LIMITED,128.00,18/08/2016
Commercial,Customer Support Group,Building Repairs & Maintenance,60059469,OAKRAY LIMITED,72.00,18/08/2016
Commercial,Customer Support Group,Building Repairs & Maintenance,60059470,OAKRAY LIMITED,80.00,12/08/2016
Commercial,Customer Support Group,Building Repairs & Maintenance,60059477,OAKRAY LIMITED,80.00,18/08/2016
Commercial,Customer Support Group,Building Repairs & Maintenance,60059481,OAKRAY LIMITED,128.00,12/08/2016
Commercial,Customer Support Group,Building Repairs & Maintenance,60059485,OAKRAY LIMITED,147.63,18/08/2016
Commercial,Customer Support Group,Building Repairs & Maintenance,60059486,OAKRAY LIMITED,332.40,18/08/2016
Commercial,Customer Support Group,Building Repairs & Maintenance,60059488,OAKRAY LIMITED,568.41,22/08/2016
Commercial,Customer Support Group,Building Repairs & Maintenance,60059492,OAKRAY LIMITED,64.00,22/08/2016
Commercial,Customer Support Group,Building Repairs & Maintenance,60059493,OAKRAY LIMITED,48.00,11/08/2016
Commercial,Customer Support Group,Building Repairs & Maintenance,60059495,OAKRAY LIMITED,80.00,22/08/2016
Commercial,Customer Support Group,Building Repairs & Maintenance,60059496,OAKRAY LIMITED,96.00,22/08/2016
Commercial,Customer Support Group,Building Repairs & Maintenance,60059500,OAKRAY LIMITED,302.14,15/08/2016
Commercial,Customer Support Group,Building Repairs & Maintenance,60059503,OAKRAY LIMITED,80.00,10/08/2016
Commercial,Customer Support Group,Building Repairs & Maintenance,60059512,OAKRAY LIMITED,64.00,10/08/2016
Commercial,Customer Support Group,Building Repairs & Maintenance,60059516,OAKRAY LIMITED,112.00,12/08/2016
Commercial,Customer Support Group,Building Repairs & Maintenance,60060013,OAKRAY LIMITED,88.00,01/08/2016
Commercial,Customer Support Group,Building Repairs & Maintenance,60060029,OAKRAY LIMITED,64.00,01/08/2016
Commercial,Customer Support Group,Building Repairs & Maintenance,60060148,OAKRAY LIMITED,96.00,03/08/2016
Commercial,Customer Support Group,Building Repairs & Maintenance,60060160,OAKRAY LIMITED,48.00,03/08/2016
Commercial,Customer Support Group,Building Repairs & Maintenance,60061019,OAKRAY LIMITED,49.16,16/08/2016
Commercial,Customer Support Group,Building Repairs & Maintenance,60061085,OAKRAY LIMITED,21.38,16/08/2016
Commercial,Customer Support Group,Building Repairs & Maintenance,60045348,RGE SERVICES,97.85,01/08/2016
Commercial,Customer Support Group,Building Repairs & Maintenance,60059573,RGE SERVICES,286.76,03/08/2016
Commercial,Customer Support Group,Building Repairs & Maintenance,60060027,RGE SERVICES,27.08,25/08/2016
Commercial,Customer Support Group,Building Repairs & Maintenance,60060316,RGE SERVICES,300.92,04/08/2016
Commercial,Customer Support Group,Building Repairs & Maintenance,60060335,RGE SERVICES,507.83,04/08/2016
Commercial,Customer Support Group,Building Repairs & Maintenance,60060350,RGE SERVICES,333.59,04/08/2016
Commercial,Customer Support Group,Building Repairs & Maintenance,60060514,RGE SERVICES,546.23,08/08/2016
Commercial,Customer Support Group,Building Repairs & Maintenance,60060782,RGE SERVICES,809.87,26/08/2016
Commercial,Customer Support Group,Building Repairs & Maintenance,60060793,RGE SERVICES,151.77,30/08/2016
Commercial,Customer Support Group,Building Repairs & Maintenance,60060796,RGE SERVICES,78.60,30/08/2016
Commercial,Customer Support Group,Building Repairs & Maintenance,60060810,RGE SERVICES,85.50,26/08/2016
Commercial,Customer Support Group,Building Repairs & Maintenance,60060828,RGE SERVICES,75.72,26/08/2016
Commercial,Customer Support Group,Building Repairs & Maintenance,60060834,RGE SERVICES,98.56,26/08/2016
Commercial,Customer Support Group,Building Repairs & Maintenance,60060841,RGE SERVICES,621.76,30/08/2016
Commercial,Customer Support Group,Building Repairs & Maintenance,60060848,RGE SERVICES,146.65,26/08/2016
Commercial,Customer Support Group,Building Repairs & Maintenance,60060941,RGE SERVICES,314.74,26/08/2016
Commercial,Customer Support Group,Building Repairs & Maintenance,60061060,RGE SERVICES,62.00,30/08/2016
Commercial,Customer Support Group,Building Repairs & Maintenance,60061064,RGE SERVICES,62.00,30/08/2016
Commercial,Customer Support Group,Building Repairs & Maintenance,60061432,RGE SERVICES,288.18,26/08/2016
Commercial,Customer Support Group,Building Repairs & Maintenance,60061536,RGE SERVICES,62.00,23/08/2016
Commercial,Customer Support Group,Building Repairs & Maintenance,60061543,RGE SERVICES,540.58,23/08/2016
Commercial,Customer Support Group,Building Repairs & Maintenance,60061544,RGE SERVICES,62.00,23/08/2016
Commercial,Customer Support Group,Building Repairs & Maintenance,60061559,RGE SERVICES,67.11,23/08/2016
Commercial,Customer Support Group,Building Repairs & Maintenance,60061565,RGE SERVICES,53.69,23/08/2016
Commercial,Customer Support Group,Building Repairs & Maintenance,60061579,RGE SERVICES,124.00,23/08/2016
Commercial,Customer Support Group,Building Repairs & Maintenance,60061587,RGE SERVICES,65.28,23/08/2016
Commercial,Customer Support Group,Building Repairs & Maintenance,60061588,RGE SERVICES,67.11,23/08/2016
Commercial,Customer Support Group,Building Repairs & Maintenance,60061595,RGE SERVICES,24.90,23/08/2016
Commercial,Customer Support Group,Building Repairs & Maintenance,60061599,RGE SERVICES,172.34,23/08/2016
Commercial,Customer Support Group,Building Repairs & Maintenance,60061601,RGE SERVICES,207.39,23/08/2016
Commercial,Customer Support Group,Building Repairs & Maintenance,60061605,RGE SERVICES,908.52,23/08/2016
Commercial,Customer Support Group,Building Repairs & Maintenance,60061608,RGE SERVICES,85.43,23/08/2016
Commercial,Customer Support Group,Building Repairs & Maintenance,60061616,RGE SERVICES,104.12,23/08/2016
Commercial,Customer Support Group,Building Repairs & Maintenance,60061624,RGE SERVICES,261.72,23/08/2016
Commercial,Customer Support Group,Building Repairs & Maintenance,60061632,RGE SERVICES,62.00,23/08/2016
Commercial,Customer Support Group,Building Repairs & Maintenance,60061731,RGE SERVICES,66.79,26/08/2016
Commercial,Customer Support Group,Building Repairs & Maintenance,60061737,RGE SERVICES,126.35,25/08/2016
Commercial,Customer Support Group,Building Repairs & Maintenance,60061759,RGE SERVICES,175.97,25/08/2016
Commercial,Customer Support Group,Building Repairs & Maintenance,60061770,RGE SERVICES,967.44,30/08/2016
Commercial,Customer Support Group,Building Repairs & Maintenance,60061791,RGE SERVICES,180.50,25/08/2016
Commercial,Customer Support Group,Building Repairs & Maintenance,60061806,RGE SERVICES,351.52,25/08/2016
Commercial,Customer Support Group,Building Repairs & Maintenance,60057312,S W BRUCE & CO LTD,25.00,12/08/2016
Commercial,Customer Support Group,Building Repairs & Maintenance,60057605,S W BRUCE & CO LTD,273.07,12/08/2016
Commercial,Customer Support Group,Building Repairs & Maintenance,60057639,S W BRUCE & CO LTD,57.00,12/08/2016
Commercial,Customer Support Group,Building Repairs & Maintenance,60057642,S W BRUCE & CO LTD,184.00,12/08/2016
Commercial,Customer Support Group,Building Repairs & Maintenance,60058022,S W BRUCE & CO LTD,39.08,12/08/2016
Commercial,Customer Support Group,Building Repairs & Maintenance,60058024,S W BRUCE & CO LTD,57.00,12/08/2016
Commercial,Customer Support Group,Building Repairs & Maintenance,60060394,S W BRUCE & CO LTD,28.50,31/08/2016
Commercial,Customer Support Group,Building Repairs & Maintenance,60060396,S W BRUCE & CO LTD,326.00,31/08/2016
Commercial,Customer Support Group,Building Repairs & Maintenance,60060398,S W BRUCE & CO LTD,101.03,31/08/2016
Commercial,Customer Support Group,Building Repairs & Maintenance,60060403,S W BRUCE & CO LTD,59.18,31/08/2016
Commercial,Customer Support Group,Building Repairs & Maintenance,60060404,S W BRUCE & CO LTD,"1,745.58",31/08/2016
Commercial,Customer Support Group,Building Repairs & Maintenance,60060405,S W BRUCE & CO LTD,"2,566.63",31/08/2016
Commercial,Customer Support Group,Building Repairs & Maintenance,60060407,S W BRUCE & CO LTD,"2,058.00",31/08/2016
Commercial,Customer Support Group,Building Repairs & Maintenance,60060408,S W BRUCE & CO LTD,25.00,31/08/2016
Commercial,Customer Support Group,Building Repairs & Maintenance,60060422,S W BRUCE & CO LTD,86.10,31/08/2016
Commercial,Customer Support Group,Building Repairs & Maintenance,60060424,S W BRUCE & CO LTD,83.86,31/08/2016
Commercial,Customer Support Group,Building Repairs & Maintenance,60060426,S W BRUCE & CO LTD,61.99,31/08/2016
Commercial,Customer Support Group,Building Repairs & Maintenance,60060430,S W BRUCE & CO LTD,46.15,31/08/2016
Commercial,Customer Support Group,Building Repairs & Maintenance,60060436,S W BRUCE & CO LTD,64.34,31/08/2016
Commercial,Customer Support Group,Building Repairs & Maintenance,60060437,S W BRUCE & CO LTD,66.56,31/08/2016
Commercial,Customer Support Group,Building Repairs & Maintenance,60060438,S W BRUCE & CO LTD,86.41,31/08/2016
Commercial,Customer Support Group,Building Repairs & Maintenance,60060440,S W BRUCE & CO LTD,25.00,31/08/2016
Commercial,Customer Support Group,Building Repairs & Maintenance,60060441,S W BRUCE & CO LTD,"3,803.74",31/08/2016
Commercial,Customer Support Group,Building Repairs & Maintenance,60060443,S W BRUCE & CO LTD,377.75,31/08/2016
Commercial,Customer Support Group,Building Repairs & Maintenance,60060458,S W BRUCE & CO LTD,90.95,31/08/2016
Commercial,Customer Support Group,Building Repairs & Maintenance,60060466,S W BRUCE & CO LTD,56.61,31/08/2016
Commercial,Customer Support Group,Building Repairs & Maintenance,60060470,S W BRUCE & CO LTD,25.00,31/08/2016
Commercial,Customer Support Group,Building Repairs & Maintenance,60060472,S W BRUCE & CO LTD,94.55,31/08/2016
Commercial,Customer Support Group,Building Repairs & Maintenance,60060476,S W BRUCE & CO LTD,80.31,31/08/2016
Commercial,Customer Support Group,Building Repairs & Maintenance,60061728,TANN SYNCHRONOME LTD,320.20,25/08/2016
Commercial,Customer Support Group,Carbon Reduction Commitment,60060768,ENVIRONMENT AGENCY,"1,290.00",12/08/2016
Commercial,Customer Support Group,Cleaning and domestic material,60060306,CHURCHILL CONTRACT SERVICES,"11,562.54",30/08/2016
Commercial,Customer Support Group,Cleaning and domestic material,60060355,CHURCHILL CONTRACT SERVICES,"7,329.82",30/08/2016
Commercial,Customer Support Group,Cleaning and domestic material,60060359,CHURCHILL CONTRACT SERVICES,661.80,30/08/2016
Commercial,Customer Support Group,Cleaning and domestic material,60060374,CHURCHILL CONTRACT SERVICES,"1,133.45",30/08/2016
Commercial,Customer Support Group,Cleaning and domestic material,60060377,CHURCHILL CONTRACT SERVICES,"1,032.37",30/08/2016
Commercial,Customer Support Group,Cleaning and domestic material,60061325,CHURCHILL CONTRACT SERVICES,420.00,26/08/2016
Commercial,Customer Support Group,Cleaning and domestic material,60056910,HERTFORDSHIRE SUPPLIES   COUNTY CO,"1,969.25",12/08/2016
Commercial,Customer Support Group,Cleaning and domestic material,60060552,HERTFORDSHIRE SUPPLIES   COUNTY CO,"1,734.46",10/08/2016
Commercial,Customer Support Group,Cleaning and domestic material,60060591,HERTFORDSHIRE SUPPLIES   COUNTY CO,180.00,09/08/2016
Commercial,Customer Support Group,Cleaning and domestic material,60060602,HERTFORDSHIRE SUPPLIES   COUNTY CO,"1,886.80",09/08/2016
Commercial,Customer Support Group,Cleaning and domestic material,60060617,HERTFORDSHIRE SUPPLIES   COUNTY CO,201.75,09/08/2016
Commercial,Customer Support Group,Cleaning and domestic material,60060632,HERTFORDSHIRE SUPPLIES   COUNTY CO,"1,905.25",09/08/2016
Commercial,Customer Support Group,Cleaning and domestic material,60060654,HERTFORDSHIRE SUPPLIES   COUNTY CO,256.45,09/08/2016
Commercial,Customer Support Group,Cleaning and domestic material,60061234,SUPERCLEAN SERVICES WOTHORPE LTD,602.55,17/08/2016
Commercial,Customer Support Group,Cleaning and domestic material,60061259,SUPERCLEAN SERVICES WOTHORPE LTD,602.55,17/08/2016
Commercial,Customer Support Group,Cleaning and domestic material,60061279,SUPERCLEAN SERVICES WOTHORPE LTD,602.55,17/08/2016
Commercial,Customer Support Group,Cleaning and domestic material,60061281,SUPERCLEAN SERVICES WOTHORPE LTD,602.55,17/08/2016
Commercial,Customer Support Group,Consultants Fees,60061902,VALUATION OFFICE AGENCY,"2,310.00",26/08/2016
Commercial,Customer Support Group,Consultants Fees,60061915,VALUATION OFFICE AGENCY,"2,298.73",26/08/2016
Commercial,Customer Support Group,Contract Cleaning,60060332,CHURCHILL CONTRACT SERVICES,294.16,30/08/2016
Commercial,Customer Support Group,CSG Services Contract Payment,60059579,CAPITA BUSINESS SERVICES LTD,"75,531.00",02/08/2016
Commercial,Customer Support Group,CSG Services Contract Payment,60059618,CAPITA BUSINESS SERVICES LTD,"151,385.00",02/08/2016
Commercial,Customer Support Group,CSG Services Contract Payment,60060179,CAPITA BUSINESS SERVICES LTD,"48,903.70",11/08/2016
Commercial,Customer Support Group,CSG Services Contract Payment,60060195,CAPITA BUSINESS SERVICES LTD,"16,920.31",11/08/2016
Commercial,Customer Support Group,CSG Services Contract Payment,60060573,CAPITA BUSINESS SERVICES LTD,"15,639.00",31/08/2016
Commercial,Customer Support Group,CSG Services Contract Payment,60060799,CAPITA BUSINESS SERVICES LTD,"87,340.00",15/08/2016
Commercial,Customer Support Group,CSG Services Contract Payment,60061247,CAPITA BUSINESS SERVICES LTD,"1,248,780.09",26/08/2016
Commercial,Customer Support Group,Electricity,60061373,BRITISH GAS BUSINESS,0.20,22/08/2016
Commercial,Customer Support Group,Electricity,60060197,BRITISH GAS BUSINESS(ELEC),31.01,03/08/2016
Commercial,Customer Support Group,Electricity,60060202,BRITISH GAS BUSINESS(ELEC),9.11,03/08/2016
Commercial,Customer Support Group,Electricity,60060981,BRITISH GAS BUSINESS(ELEC),185.66,12/08/2016
Commercial,Customer Support Group,Electricity,60062008,BRITISH GAS BUSINESS(ELEC),63.66,31/08/2016
Commercial,Customer Support Group,Electricity,10013404,E-ON ENERGY,243.97,18/08/2016
Commercial,Customer Support Group,Electricity,60060763,E-ON ENERGY,224.29,11/08/2016
Commercial,Customer Support Group,Electricity,60060826,E-ON ENERGY,87.30,11/08/2016
Commercial,Customer Support Group,Electricity,60027790,KENT COUNTY COUNCIL (KCS),234.41,22/08/2016
Commercial,Customer Support Group,Electricity,60059633,KENT COUNTY COUNCIL (KCS),"5,498.72",01/08/2016
Commercial,Customer Support Group,Electricity,60059695,KENT COUNTY COUNCIL (KCS),"5,254.70",01/08/2016
Commercial,Customer Support Group,Electricity,60060516,KENT COUNTY COUNCIL (KCS),204.83,08/08/2016
Commercial,Customer Support Group,Electricity,60060779,KENT COUNTY COUNCIL (KCS),"1,332.82",24/08/2016
Commercial,Customer Support Group,Electricity,60060954,KENT COUNTY COUNCIL (KCS),"4,936.15",26/08/2016
Commercial,Customer Support Group,Electricity,60061212,KENT COUNTY COUNCIL (KCS),779.67,16/08/2016
Commercial,Customer Support Group,Electricity,60061263,KENT COUNTY COUNCIL (KCS),"5,109.13",26/08/2016
Commercial,Customer Support Group,Electricity,60061762,KENT COUNTY COUNCIL (KCS),311.10,26/08/2016
Commercial,Customer Support Group,Electricity,10013421,NPOWER,489.40,24/08/2016
Commercial,Customer Support Group,Electricity,10013422,NPOWER,410.27,24/08/2016
Commercial,Customer Support Group,Electricity,10013444,NPOWER,345.10,31/08/2016
Commercial,Customer Support Group,Electricity,10013445,NPOWER,306.08,31/08/2016
Commercial,Customer Support Group,Electricity,10013446,NPOWER,"2,244.52",31/08/2016
Commercial,Customer Support Group,Electricity,60061717,NPOWER,"1,425.84",25/08/2016
Commercial,Customer Support Group,Electricity,10013441,SCOTTISH POWER GROUP,"1,056.61",30/08/2016
Commercial,Customer Support Group,Equipment and Materials Purcha,60060876,HERTEL (UK) LTD,38.79,12/08/2016
Commercial,Customer Support Group,Equipment and Materials Purcha,60060974,HERTEL (UK) LTD,38.79,12/08/2016
Commercial,Customer Support Group,Equipment and Materials Purcha,60059624,LIFT & ENGINEERING SERVICES LTD,145.00,04/08/2016
Commercial,Customer Support Group,Equipment and Materials Purcha,60061713,WINTERS HAULAGE LTD,250.00,24/08/2016
Commercial,Customer Support Group,Furniture-Purchase-Repair,60061748,C.E.S.,182.50,31/08/2016
Commercial,Customer Support Group,Furniture-Purchase-Repair,60058954,SENATOR INTERNATIONAL,"1,267.20",04/08/2016
Commercial,Customer Support Group,Furniture-Purchase-Repair,60056132,UNIQUE OFFICE SOLUTIONS LTD,11.90,19/08/2016
Commercial,Customer Support Group,Furniture-Purchase-Repair,60061398,UNIQUE OFFICE SOLUTIONS LTD,11.90,26/08/2016
Commercial,Customer Support Group,Gas,60059713,KENT COUNTY COUNCIL (KCS),"1,728.64",03/08/2016
Commercial,Customer Support Group,Gas,60059714,KENT COUNTY COUNCIL (KCS),"1,455.93",01/08/2016
Commercial,Customer Support Group,Gas,60059744,KENT COUNTY COUNCIL (KCS),166.59,01/08/2016
Commercial,Customer Support Group,Gas,60059749,KENT COUNTY COUNCIL (KCS),673.44,02/08/2016
Commercial,Customer Support Group,Gas,60060498,KENT COUNTY COUNCIL (KCS),151.32,08/08/2016
Commercial,Customer Support Group,Gas,60060578,KENT COUNTY COUNCIL (KCS),70.59,11/08/2016
Commercial,Customer Support Group,Gas,60061397,KENT COUNTY COUNCIL (KCS),56.97,19/08/2016
Commercial,Customer Support Group,Gas,60061590,KENT COUNTY COUNCIL (KCS),123.44,31/08/2016
Commercial,Customer Support Group,Gas,60061604,KENT COUNTY COUNCIL (KCS),"1,044.64",31/08/2016
Commercial,Customer Support Group,Gas,60061751,KENT COUNTY COUNCIL (KCS),52.88,31/08/2016
Commercial,Customer Support Group,Gas,10013438,TOTAL GAS & POWER LTD,"1,314.13",30/08/2016
Commercial,Customer Support Group,Gas,10013439,TOTAL GAS & POWER LTD,"1,393.64",30/08/2016
Commercial,Customer Support Group,Gas,10013440,TOTAL GAS & POWER LTD,"2,150.30",30/08/2016
Commercial,Customer Support Group,Gas,60060813,TOTAL GAS & POWER LTD,58.33,30/08/2016
Commercial,Customer Support Group,Gas,60061833,TOTAL GAS & POWER LTD,58.33,30/08/2016
Commercial,Customer Support Group,Grounds maintenance,60060199,RIBBEX UK LTD,590.38,03/08/2016
Commercial,Customer Support Group,Other Services,60060484,BLUE 9 SECURITY LIMITED,201.45,10/08/2016
Commercial,Customer Support Group,Other Services,60060489,BLUE 9 SECURITY LIMITED,13.43,11/08/2016
Commercial,Customer Support Group,Other Services,60060497,BLUE 9 SECURITY LIMITED,62.28,10/08/2016
Commercial,Customer Support Group,Other Services,60060499,BLUE 9 SECURITY LIMITED,"22,773.84",10/08/2016
Commercial,Customer Support Group,Other Services,60060500,BLUE 9 SECURITY LIMITED,"21,290.72",10/08/2016
Commercial,Customer Support Group,Other Services,60060508,BLUE 9 SECURITY LIMITED,"11,584.08",10/08/2016
Commercial,Customer Support Group,Other Services,60060515,BLUE 9 SECURITY LIMITED,"1,097.69",10/08/2016
Commercial,Customer Support Group,Other Services,60060535,BLUE 9 SECURITY LIMITED,"1,836.55",10/08/2016
Commercial,Customer Support Group,Other Services,60061789,BLUE 9 SECURITY LIMITED,53.72,25/08/2016
Commercial,Customer Support Group,Other Services,60060933,X-VERMINATOR PEST CONTROL,130.00,15/08/2016
Commercial,Customer Support Group,Postage,20031297,ROYAL MAIL GROUP LIMITED,331.38,02/08/2016
Commercial,Customer Support Group,Postage,60060184,ROYAL MAIL GROUP LIMITED,"4,319.14",05/08/2016
Commercial,Customer Support Group,Postage,60061935,ROYAL MAIL GROUP LIMITED,"3,869.75",30/08/2016
Commercial,Customer Support Group,Postage,60061938,ROYAL MAIL GROUP LIMITED,"4,979.11",30/08/2016
Commercial,Customer Support Group,Professional Services,60060341,KPMG FEES ACCOUNT,875.00,04/08/2016
Commercial,Customer Support Group,Professional Services,60060460,ROSSENDALES (COLLECT) LTD,613.85,05/08/2016
Commercial,Customer Support Group,Publications,10013443,TV LICENSING,145.50,31/08/2016
Commercial,Customer Support Group,Rubbish Collection,60060524,PREMIER SHREDDING,62.00,08/08/2016
Commercial,Customer Support Group,Rubbish Collection,60061767,PREMIER SHREDDING,61.00,25/08/2016
Commercial,Customer Support Group,Rubbish Collection,60061798,PREMIER SHREDDING,64.00,25/08/2016
Commercial,Customer Support Group,Training,60060590,SKILLS TRAINING CENTRE LTD,100.00,10/08/2016
Commercial,Customer Support Group,Ttl IT & Comms,60061796,BRITISH TELECOM PLC,114.90,25/08/2016
Commercial,Customer Support Group,Water Services,60060657,AFFINITY WATER LIMITED,525.37,09/08/2016
Commercial,Customer Support Group,Water Services,60060869,AFFINITY WATER LIMITED,101.14,12/08/2016
Commercial,Customer Support Group,Water Services,60061773,AFFINITY WATER LIMITED,567.13,25/08/2016
Commercial,Customer Support Group,Water Services,60060690,ANGEL SPRINGS LTD,40.00,26/08/2016
Commercial,Customer Support Group,Water Services,60060699,ANGEL SPRINGS LTD,448.00,26/08/2016
Commercial,Customer Support Group,Water Services,60060718,ANGEL SPRINGS LTD,122.00,26/08/2016
Commercial,Customer Support Group,Water Services,60060722,ANGEL SPRINGS LTD,114.00,26/08/2016
Commercial,Customer Support Group,Water Services,60061094,ANGEL SPRINGS LTD,15.50,16/08/2016
Commercial,Customer Support Group,Water Services,60060656,THAMES WATER UTILITIES LIMITED,68.33,11/08/2016
Commercial,Customer Support Group,Water Services,60061258,THAMES WATER UTILITIES LIMITED,"2,151.51",30/08/2016
Commercial,Customer Support Group,Water Services,60061269,THAMES WATER UTILITIES LIMITED,560.72,30/08/2016
Commercial,Housing Needs Resources,Miscellaneous Expenses,60061316,THE BARNETGROUP LIMITED,"36,443.17",26/08/2016
Commercial,Housing Needs Resources,Private Contractors - Third Pa,60061352,THE BARNETGROUP LIMITED,"1,600,013.18",26/08/2016
Commercial,HRA,Consultants Fees,60060431,COPPING JOYCE SURVEYORS LIMITED,950.00,10/08/2016
Commercial,HRA,Consultants Fees,60059498,PRIORITY ESTATES PROJECT LTD,"2,673.56",12/08/2016
Commercial,HRA,Consultants Fees,60059660,PRIORITY ESTATES PROJECT LTD,"3,294.69",12/08/2016
Commercial,HRA,Consultants Fees,60060465,THE BARNETGROUP LIMITED,"1,776.36",05/08/2016
Commercial,HRA,Consultants Fees,60060468,THE BARNETGROUP LIMITED,"2,037.70",05/08/2016
Commercial,HRA,Consultants Fees,60061944,TROWERS & HAMLINS,425.00,30/08/2016
Commercial,HRA,Other Services,60059518,THE BARNETGROUP LIMITED,"22,086.00",03/08/2016
Commercial,HRA,Other Services,60059526,THE BARNETGROUP LIMITED,"36,443.17",03/08/2016
Commercial,HRA,Other Services,60059566,THE BARNETGROUP LIMITED,"2,087,943.92",03/08/2016
Commercial,HRA,Other Services,60059581,THE BARNETGROUP LIMITED,"346,662.50",03/08/2016
Commercial,HRA,Other Services,60059601,THE BARNETGROUP LIMITED,"1,600,000.00",03/08/2016
Commercial,HRA,Other Services,60061288,THE BARNETGROUP LIMITED,"346,662.50",26/08/2016
Commercial,HRA,Other Services,60061331,THE BARNETGROUP LIMITED,"2,087,943.92",26/08/2016
Commercial,Parking & Infrastructure,Consultants Fees,60061324,BRITISH PARKING ASSOCIATION,550.00,23/08/2016
Commercial,Parking & Infrastructure,Equipment and Materials Purcha,60060206,FABRIKAT (NOTTINGHAM) LIMITED,"1,458.90",16/08/2016
Commercial,Parking & Infrastructure,Equipment and Materials Purcha,60058533,GREENHAM TRADING LIMITED,67.70,02/08/2016
Commercial,Parking & Infrastructure,Equipment and Materials Purcha,60060330,GREENHAM TRADING LIMITED,798.15,30/08/2016
Commercial,Parking & Infrastructure,Equipment and Materials Purcha,60060368,KLOECKNER METALS UK,70.00,04/08/2016
Commercial,Parking & Infrastructure,Equipment and Materials Purcha,60059102,LAFARGE TARMAC TRADING LIMITED,92.85,02/08/2016
Commercial,Parking & Infrastructure,Equipment and Materials Purcha,60059513,LAFARGE TARMAC TRADING LIMITED,124.42,05/08/2016
Commercial,Parking & Infrastructure,Equipment and Materials Purcha,60059700,LAFARGE TARMAC TRADING LIMITED,120.71,05/08/2016
Commercial,Parking & Infrastructure,Equipment and Materials Purcha,60059708,LAFARGE TARMAC TRADING LIMITED,102.14,05/08/2016
Commercial,Parking & Infrastructure,Equipment and Materials Purcha,60059733,LAFARGE TARMAC TRADING LIMITED,120.71,05/08/2016
Commercial,Parking & Infrastructure,Equipment and Materials Purcha,60059734,LAFARGE TARMAC TRADING LIMITED,120.71,09/08/2016
Commercial,Parking & Infrastructure,Equipment and Materials Purcha,60059740,LAFARGE TARMAC TRADING LIMITED,111.42,05/08/2016
Commercial,Parking & Infrastructure,Equipment and Materials Purcha,60060317,LAFARGE TARMAC TRADING LIMITED,92.85,23/08/2016
Commercial,Parking & Infrastructure,Equipment and Materials Purcha,60060326,LAFARGE TARMAC TRADING LIMITED,111.42,12/08/2016
Commercial,Parking & Infrastructure,Equipment and Materials Purcha,60060328,LAFARGE TARMAC TRADING LIMITED,116.06,19/08/2016
Commercial,Parking & Infrastructure,Equipment and Materials Purcha,60060375,LAFARGE TARMAC TRADING LIMITED,118.85,12/08/2016
Commercial,Parking & Infrastructure,Equipment and Materials Purcha,60060379,LAFARGE TARMAC TRADING LIMITED,120.71,19/08/2016
Commercial,Parking & Infrastructure,Equipment and Materials Purcha,60060380,LAFARGE TARMAC TRADING LIMITED,113.28,19/08/2016
Commercial,Parking & Infrastructure,Equipment and Materials Purcha,60060612,NSL LTD,"10,100.98",11/08/2016
Commercial,Parking & Infrastructure,Equipment and Materials Purcha,60060275,RENNICK UK LTD,393.40,26/08/2016
Commercial,Parking & Infrastructure,Equipment and Materials Purcha,60059440,SPANDEX LIMITED,"1,450.00",10/08/2016
Commercial,Parking & Infrastructure,Equipment and Materials Purcha,60059592,SPANDEX LIMITED,850.00,11/08/2016
Commercial,Parking & Infrastructure,Equipment and Materials Purcha,60059858,SPANDEX LIMITED,70.40,26/08/2016
Commercial,Parking & Infrastructure,Equipment and Materials Purcha,60045485,VAISALA LTD,"14,710.00",05/08/2016
Commercial,Parking & Infrastructure,Equipment and Materials Purcha,60061553,VODAFONE LTD,10.00,26/08/2016
Commercial,Parking & Infrastructure,Equipment and Materials Purcha,60061646,WM SMITH & SONS LIMITED,43.75,26/08/2016
Commercial,Parking & Infrastructure,Equipment and Materials Purcha,60061776,WM SMITH & SONS LIMITED,498.75,26/08/2016
Commercial,Parking & Infrastructure,Equipment and Materials Purcha,60061825,WM SMITH & SONS LIMITED,612.50,26/08/2016
Commercial,Parking & Infrastructure,Fees and Charges,60060486,REDCORN LTD,"7,200.00",31/08/2016
Commercial,Parking & Infrastructure,Other Services,60054702,LONDON COUNCILS,255.20,31/08/2016
Commercial,Parking & Infrastructure,Other Services,60056162,LONDON COUNCILS,"35,308.65",24/08/2016
Commercial,Parking & Infrastructure,Other Services,60059293,LONDON COUNCILS,"9,898.00",09/08/2016
Commercial,Parking & Infrastructure,Other Services,60060626,LONDON COUNCILS,"5,670.00",10/08/2016
Commercial,Parking & Infrastructure,Other Services,60059569,PARKEON LIMITED,810.00,16/08/2016
Commercial,Parking & Infrastructure,Other Services,60059598,PARKEON LIMITED,"2,423.20",17/08/2016
Commercial,Parking & Infrastructure,Printing-Contract,40001750,OFFICE DEPOT UK LTD,24.75,12/08/2016
Commercial,Parking & Infrastructure,Printing-Contract,60061204,OFFICE DEPOT UK LTD,-65.16,26/08/2016
Commercial,Parking & Infrastructure,Professional Services,60059915,NSL LTD,66.00,02/08/2016
Commercial,Parking & Infrastructure,Professional Services,60060558,NSL LTD,"4,139.82",17/08/2016
Commercial,Parking & Infrastructure,Professional Services,60060615,NSL LTD,"8,279.64",17/08/2016
Commercial,Parking & Infrastructure,Software Licences & Support,60060965,NSL LTD,"33,054.37",19/08/2016
Commercial,Parking & Infrastructure,Stationery,40001747,OFFICE DEPOT UK LTD,130.41,12/08/2016
Commercial,Parking & Infrastructure,Stationery,40001751,OFFICE DEPOT UK LTD,106.47,12/08/2016
Commercial,Parking & Infrastructure,Ttl IT & Comms,60060495,LONDON COUNCILS,"3,094.82",08/08/2016
Commercial,Parking & Infrastructure,Water Services,60060781,ANGEL SPRINGS LTD,32.00,26/08/2016
Commercial,Public Health,Professional Services,60057050,CENTRAL LONDONCOMMUNITY HEALTHCARE,"85,834.00",05/08/2016
Commercial,Public Health,Professional Services,60057139,CENTRAL LONDONCOMMUNITY HEALTHCARE,"85,834.00",05/08/2016
Commercial,Public Health,Professional Services,60059140,CENTRAL LONDONCOMMUNITY HEALTHCARE,"4,917.00",05/08/2016
Commercial,Public Health,Professional Services,60059176,CENTRAL LONDONCOMMUNITY HEALTHCARE,"4,917.00",23/08/2016
Commercial,Public Health,Professional Services,60059205,CENTRAL LONDONCOMMUNITY HEALTHCARE,"9,583.00",05/08/2016
Commercial,Public Health,Professional Services,60059208,CENTRAL LONDONCOMMUNITY HEALTHCARE,"9,583.00",05/08/2016
Commercial,Public Health,Professional Services,60059227,CENTRAL LONDONCOMMUNITY HEALTHCARE,"4,917.00",24/08/2016
Commercial,Public Health,Professional Services,60059679,CENTRAL LONDONCOMMUNITY HEALTHCARE,"4,917.00",24/08/2016
Commercial,Regional Enterprise,Advertising,60053218,TMP (UK) LTD,28.51,11/08/2016
Commercial,Regional Enterprise,Advertising,60054038,TMP (UK) LTD,212.77,11/08/2016
Commercial,Regional Enterprise,Advertising,60054054,TMP (UK) LTD,298.30,12/08/2016
Commercial,Regional Enterprise,Advertising,60054916,TMP (UK) LTD,234.15,11/08/2016
Commercial,Regional Enterprise,Advertising,60055364,TMP (UK) LTD,542.35,03/08/2016
Commercial,Regional Enterprise,Advertising,60055719,TMP (UK) LTD,422.96,03/08/2016
Commercial,Regional Enterprise,Advertising,60056831,TMP (UK) LTD,115.64,11/08/2016
Commercial,Regional Enterprise,Advertising,60057306,TMP (UK) LTD,212.77,16/08/2016
Commercial,Regional Enterprise,Advertising,60057972,TMP (UK) LTD,447.99,16/08/2016
Commercial,Regional Enterprise,Advertising,60058028,TMP (UK) LTD,444.34,03/08/2016
Commercial,Regional Enterprise,Advertising,60058969,TMP (UK) LTD,481.76,03/08/2016
Commercial,Regional Enterprise,Advertising,60059855,TMP (UK) LTD,212.77,17/08/2016
Commercial,Regional Enterprise,Advertising,60060070,TMP (UK) LTD,115.64,10/08/2016
Commercial,Regional Enterprise,Advertising,60060115,TMP (UK) LTD,35.64,10/08/2016
Commercial,Regional Enterprise,Advertising,60060262,TMP (UK) LTD,403.36,19/08/2016
Commercial,Regional Enterprise,Advertising,60060562,TMP (UK) LTD,144.16,31/08/2016
Commercial,Regional Enterprise,Advertising,60061061,TMP (UK) LTD,367.72,24/08/2016
Commercial,Regional Enterprise,Advertising,60061529,TMP (UK) LTD,144.16,31/08/2016
Commercial,Regional Enterprise,Advertising,60061552,TMP (UK) LTD,144.16,31/08/2016
Commercial,Regional Enterprise,Advertising,60061574,TMP (UK) LTD,151.28,31/08/2016
Commercial,Regional Enterprise,Advertising,60061613,TMP (UK) LTD,165.54,31/08/2016
Commercial,Regional Enterprise,Cleaning and domestic material,60060308,CHURCHILL CONTRACT SERVICES,488.56,30/08/2016
Commercial,Regional Enterprise,Consultants Fees,60058498,AECOM INFRASTRUCTURE & ENVIRONMENT UK LT,"18,686.25",12/08/2016
Commercial,Regional Enterprise,Consultants Fees,60060534,ALLIES AND MORRRISON,"18,590.00",08/08/2016
Commercial,Regional Enterprise,Consultants Fees,60059127,CLEAR CHANNEL UK LTD,"7,820.00",10/08/2016
Commercial,Regional Enterprise,Consultants Fees,60062005,GOWLING WLG,"4,356.43",31/08/2016
Commercial,Regional Enterprise,Consultants Fees,60062025,GOWLING WLG,"29,884.47",31/08/2016
Commercial,Regional Enterprise,Consultants Fees,80005209,JVA LAW SOLICITORS,"3,000.00",05/08/2016
Commercial,Regional Enterprise,Consultants Fees,60060433,KNIGHT FRANK LLP,"11,000.00",05/08/2016
Commercial,Regional Enterprise,Consultants Fees,60061846,KNIGHT FRANK LLP,"11,000.00",26/08/2016
Commercial,Regional Enterprise,Consultants Fees,60060242,SAPIENS CONSULTANCY,"1,775.00",23/08/2016
Commercial,Regional Enterprise,Consultants Fees,60060425,VALUATION OFFICE AGENCY,"1,853.17",05/08/2016
Commercial,Regional Enterprise,Equipment and Materials Purcha,80005516,ERNEST DOE & SONS LTD,"1,231.53",23/08/2016
Commercial,Regional Enterprise,Equipment and Materials Purcha,80005553,REDACTED - PERSONAL DATA,"1,505.00",26/08/2016
Commercial,Regional Enterprise,Equipment and Materials Purcha,80005554,REDACTED - PERSONAL DATA,"1,890.00",26/08/2016
Commercial,Regional Enterprise,Grant Payments,80004869,ACCESS & AUTOMATION LTD,"2,394.00",01/08/2016
Commercial,Regional Enterprise,Grant Payments,80004940,AMWELL CONSTRUCTION LTD,"4,788.00",01/08/2016
Commercial,Regional Enterprise,Grant Payments,80004993,AMWELL CONSTRUCTION LTD,"4,681.12",01/08/2016
Commercial,Regional Enterprise,Grant Payments,80005138,AMWELL CONSTRUCTION LTD,"8,891.00",01/08/2016
Commercial,Regional Enterprise,Grant Payments,80005218,AMWELL CONSTRUCTION LTD,"5,817.00",05/08/2016
Commercial,Regional Enterprise,Grant Payments,80005240,AMWELL CONSTRUCTION LTD,"5,623.00",05/08/2016
Commercial,Regional Enterprise,Grant Payments,80005457,AMWELL CONSTRUCTION LTD,"12,681.00",30/08/2016
Commercial,Regional Enterprise,Grant Payments,80004543,ARTHUR J. FERRYMAN ASSOCIATES,480.00,01/08/2016
Commercial,Regional Enterprise,Grant Payments,80005131,ARTHUR J. FERRYMAN ASSOCIATES,400.00,01/08/2016
Commercial,Regional Enterprise,Grant Payments,80005231,ARTHUR J. FERRYMAN ASSOCIATES,400.00,11/08/2016
Commercial,Regional Enterprise,Grant Payments,80005183,BELLHAMWOOD LTD,"1,950.00",02/08/2016
Commercial,Regional Enterprise,Grant Payments,80005184,BELLHAMWOOD LTD,"1,950.00",02/08/2016
Commercial,Regional Enterprise,Grant Payments,80005185,BELLHAMWOOD LTD,"1,950.00",02/08/2016
Commercial,Regional Enterprise,Grant Payments,80005186,BELLHAMWOOD LTD,"1,950.00",02/08/2016
Commercial,Regional Enterprise,Grant Payments,80005202,BELLHAMWOOD LTD,"2,600.00",26/08/2016
Commercial,Regional Enterprise,Grant Payments,80005192,CAPITAL  LOCKSMITHS,80.00,10/08/2016
Commercial,Regional Enterprise,Grant Payments,80005193,CAPITAL  LOCKSMITHS,80.00,10/08/2016
Commercial,Regional Enterprise,Grant Payments,80005489,CAPITAL  LOCKSMITHS,80.00,31/08/2016
Commercial,Regional Enterprise,Grant Payments,80005490,CAPITAL  LOCKSMITHS,80.00,31/08/2016
Commercial,Regional Enterprise,Grant Payments,80005491,CAPITAL  LOCKSMITHS,278.50,31/08/2016
Commercial,Regional Enterprise,Grant Payments,80005492,CAPITAL  LOCKSMITHS,80.00,31/08/2016
Commercial,Regional Enterprise,Grant Payments,80005493,CAPITAL  LOCKSMITHS,300.00,31/08/2016
Commercial,Regional Enterprise,Grant Payments,80005494,CAPITAL  LOCKSMITHS,80.00,31/08/2016
Commercial,Regional Enterprise,Grant Payments,80005495,CAPITAL  LOCKSMITHS,80.00,31/08/2016
Commercial,Regional Enterprise,Grant Payments,80005496,CAPITAL  LOCKSMITHS,198.00,31/08/2016
Commercial,Regional Enterprise,Grant Payments,80005497,CAPITAL  LOCKSMITHS,80.00,31/08/2016
Commercial,Regional Enterprise,Grant Payments,80005499,CAPITAL  LOCKSMITHS,290.50,31/08/2016
Commercial,Regional Enterprise,Grant Payments,80004168,DOLPHIN MOBILITY LTD.,"7,550.00",01/08/2016
Commercial,Regional Enterprise,Grant Payments,80004434,DP BUILDERS DISABLED ADAPTATIONS,"5,196.00",01/08/2016
Commercial,Regional Enterprise,Grant Payments,80004436,DP BUILDERS DISABLED ADAPTATIONS,"4,273.74",01/08/2016
Commercial,Regional Enterprise,Grant Payments,80004548,DP BUILDERS DISABLED ADAPTATIONS,380.00,01/08/2016
Commercial,Regional Enterprise,Grant Payments,80004552,DP BUILDERS DISABLED ADAPTATIONS,"1,690.00",01/08/2016
Commercial,Regional Enterprise,Grant Payments,80004851,DP BUILDERS DISABLED ADAPTATIONS,"4,915.00",01/08/2016
Commercial,Regional Enterprise,Grant Payments,80005129,DP BUILDERS DISABLED ADAPTATIONS,"2,465.00",10/08/2016
Commercial,Regional Enterprise,Grant Payments,80005151,DP BUILDERS DISABLED ADAPTATIONS,"5,273.00",10/08/2016
Commercial,Regional Enterprise,Grant Payments,80005338,DP BUILDERS DISABLED ADAPTATIONS,"4,788.00",18/08/2016
Commercial,Regional Enterprise,Grant Payments,80005426,DP BUILDERS DISABLED ADAPTATIONS,"5,307.00",30/08/2016
Commercial,Regional Enterprise,Grant Payments,80004152,H D PROPERTY SERVICES LTD,"4,400.00",01/08/2016
Commercial,Regional Enterprise,Grant Payments,80004439,H D PROPERTY SERVICES LTD,"9,454.00",01/08/2016
Commercial,Regional Enterprise,Grant Payments,80004565,H D PROPERTY SERVICES LTD,"4,529.00",01/08/2016
Commercial,Regional Enterprise,Grant Payments,80005002,H D PROPERTY SERVICES LTD,"5,228.00",01/08/2016
Commercial,Regional Enterprise,Grant Payments,80005476,H D PROPERTY SERVICES LTD,"4,602.00",30/08/2016
Commercial,Regional Enterprise,Grant Payments,80005221,NW LONDON GARDENING,500.00,08/08/2016
Commercial,Regional Enterprise,Grant Payments,80004857,PRECISION DESIGN SERVICES LTD,384.00,01/08/2016
Commercial,Regional Enterprise,Grant Payments,80005208,REDACTED - PERSONAL DATA,"2,100.00",05/08/2016
Commercial,Regional Enterprise,Grant Payments,80005420,REDACTED - PERSONAL DATA,"5,995.00",30/08/2016
Commercial,Regional Enterprise,Grant Payments,80005471,REDACTED - PERSONAL DATA,"9,181.00",30/08/2016
Commercial,Regional Enterprise,Grant Payments,80005149,SOOTY & SWEEPS,250.00,01/08/2016
Commercial,Regional Enterprise,Grant Payments,80004437,SOUTH HERTFORDSHIRE,"4,868.00",01/08/2016
Commercial,Regional Enterprise,Grant Payments,80005000,SOUTH HERTFORDSHIRE,"2,055.00",01/08/2016
Commercial,Regional Enterprise,Grant Payments,80005146,SOUTH HERTFORDSHIRE,"6,528.00",01/08/2016
Commercial,Regional Enterprise,Grant Payments,80005230,SOUTH HERTFORDSHIRE,"12,459.00",25/08/2016
Commercial,Regional Enterprise,Grant Payments,80004447,STANNAH STAIRLIFTS LTD,"4,694.00",01/08/2016
Commercial,Regional Enterprise,Grant Payments,80004856,STANNAH STAIRLIFTS LTD,"4,653.00",01/08/2016
Commercial,Regional Enterprise,Grant Payments,80005130,STANNAH STAIRLIFTS LTD,"2,387.00",01/08/2016
Commercial,Regional Enterprise,Grant Payments,80005238,STANNAH STAIRLIFTS LTD,"4,552.00",05/08/2016
Commercial,Regional Enterprise,Grant Payments,80005341,STANNAH STAIRLIFTS LTD,"4,503.00",16/08/2016
Commercial,Regional Enterprise,Other Services,60053825,CONWAY AECOM LTD,"9,940.03",01/08/2016
Commercial,Regional Enterprise,Other Services,60054448,CONWAY AECOM LTD,"1,863.52",19/08/2016
Commercial,Regional Enterprise,Other Services,60055607,CONWAY AECOM LTD,"137,603.86",31/08/2016
Commercial,Regional Enterprise,Other Services,60055901,CONWAY AECOM LTD,"2,139.89",09/08/2016
Commercial,Regional Enterprise,Other Services,60055956,CONWAY AECOM LTD,"1,055.25",01/08/2016
Commercial,Regional Enterprise,Other Services,60055994,CONWAY AECOM LTD,"1,231.86",16/08/2016
Commercial,Regional Enterprise,Other Services,60056009,CONWAY AECOM LTD,569.68,31/08/2016
Commercial,Regional Enterprise,Other Services,60056466,CONWAY AECOM LTD,"45,611.00",16/08/2016
Commercial,Regional Enterprise,Other Services,60056468,CONWAY AECOM LTD,"92,343.60",15/08/2016
Commercial,Regional Enterprise,Other Services,60056469,CONWAY AECOM LTD,"11,845.60",15/08/2016
Commercial,Regional Enterprise,Other Services,60056507,CONWAY AECOM LTD,"26,231.00",15/08/2016
Commercial,Regional Enterprise,Other Services,60056543,CONWAY AECOM LTD,"8,432.00",16/08/2016
Commercial,Regional Enterprise,Other Services,60058793,CONWAY AECOM LTD,"10,260.80",15/08/2016
Commercial,Regional Enterprise,Other Services,60058797,CONWAY AECOM LTD,"47,382.40",15/08/2016
Commercial,Regional Enterprise,Other Services,60058859,CONWAY AECOM LTD,"78,693.00",15/08/2016
Commercial,Regional Enterprise,Other Services,60061119,CONWAY AECOM LTD,"46,295.00",16/08/2016
Commercial,Regional Enterprise,Other Services,60061137,CONWAY AECOM LTD,"17,415.60",26/08/2016
Commercial,Regional Enterprise,Other Services,60061139,CONWAY AECOM LTD,"56,353.20",26/08/2016
Commercial,Regional Enterprise,Other Services,60061141,CONWAY AECOM LTD,243.17,16/08/2016
Commercial,Regional Enterprise,Other Services,60061143,CONWAY AECOM LTD,885.56,16/08/2016
Commercial,Regional Enterprise,Other Services,60061153,CONWAY AECOM LTD,"6,303.60",26/08/2016
Commercial,Regional Enterprise,Other Services,60061154,CONWAY AECOM LTD,"3,631.20",26/08/2016
Commercial,Regional Enterprise,Other Services,60061160,CONWAY AECOM LTD,"4,940.20",26/08/2016
Commercial,Regional Enterprise,Other Services,60061170,CONWAY AECOM LTD,"41,570.20",26/08/2016
Commercial,Regional Enterprise,Other Services,60061175,CONWAY AECOM LTD,"30,208.32",26/08/2016
Commercial,Regional Enterprise,Other Services,60061179,CONWAY AECOM LTD,682.24,16/08/2016
Commercial,Regional Enterprise,Other Services,60061184,CONWAY AECOM LTD,857.58,16/08/2016
Commercial,Regional Enterprise,Other Services,60061201,CONWAY AECOM LTD,"1,762.11",26/08/2016
Commercial,Regional Enterprise,Other Services,60061213,CONWAY AECOM LTD,"56,004.80",26/08/2016
Commercial,Regional Enterprise,Other Services,60061220,CONWAY AECOM LTD,"59,321.60",26/08/2016
Commercial,Regional Enterprise,Other Services,60061223,CONWAY AECOM LTD,"9,881.76",26/08/2016
Commercial,Regional Enterprise,Other Services,60061714,CONWAY AECOM LTD,"1,593.20",26/08/2016
Commercial,Regional Enterprise,Other Services,60061715,CONWAY AECOM LTD,"1,025.62",26/08/2016
Commercial,Regional Enterprise,Other Services,60061725,CONWAY AECOM LTD,346.92,26/08/2016
Commercial,Regional Enterprise,Other Services,60061790,CONWAY AECOM LTD,"2,549.12",26/08/2016
Commercial,Regional Enterprise,Other Services,60061811,CONWAY AECOM LTD,"61,412.16",26/08/2016
Commercial,Regional Enterprise,Other Services,60061812,CONWAY AECOM LTD,"1,312.00",26/08/2016
Commercial,Regional Enterprise,Other Services,60061861,CONWAY AECOM LTD,797.58,26/08/2016
Commercial,Regional Enterprise,Other Services,60061899,CONWAY AECOM LTD,519.07,26/08/2016
Commercial,Regional Enterprise,Other Services,60061005,CYCLE CONFIDENT LTD,"12,955.64",30/08/2016
Commercial,Regional Enterprise,Other Services,60055491,GROUNDWORK LONDON,"18,000.00",08/08/2016
Commercial,Regional Enterprise,Other Services,60035422,KENT COUNTY COUNCIL (KCS),-76.01,24/08/2016
Commercial,Regional Enterprise,Other Services,60060860,PELL FRISCHMAN CONSULTING ENGINEERS LTD,"49,788.75",26/08/2016
Commercial,Regional Enterprise,Other Services,60059546,REDACTED - PERSONAL DATA,"8,500.00",24/08/2016
Commercial,Regional Enterprise,Other Services,60057598,REDCORN LTD,"4,930.00",08/08/2016
Commercial,Regional Enterprise,Other Services,60057745,REDCORN LTD,"8,816.00",08/08/2016
Commercial,Regional Enterprise,Other Services,60060972,THAMES WATER UTILITIES LIMITED,78.26,17/08/2016
Commercial,Regional Enterprise,Other Services,60061723,THAMES WATER UTILITIES LIMITED,158.62,31/08/2016
Commercial,Regional Enterprise,Other Services,60056768,TMP (UK) LTD,152.27,11/08/2016
Commercial,Regional Enterprise,Other Services,60056779,TMP (UK) LTD,406.92,03/08/2016
Commercial,Regional Enterprise,Other Services,60056868,TMP (UK) LTD,390.88,11/08/2016
Commercial,Regional Enterprise,Other Services,60059366,TMP (UK) LTD,227.02,03/08/2016
Commercial,Regional Enterprise,Other Services,60059371,TMP (UK) LTD,449.69,03/08/2016
Commercial,Regional Enterprise,Other Services,60059782,TMP (UK) LTD,137.02,03/08/2016
Commercial,Regional Enterprise,Other Services,60059793,TMP (UK) LTD,216.33,03/08/2016
Commercial,Regional Enterprise,Other Services,60059813,TMP (UK) LTD,158.40,03/08/2016
Commercial,Regional Enterprise,Other Services,60059828,TMP (UK) LTD,374.84,03/08/2016
Commercial,Regional Enterprise,Other Services,60059861,TMP (UK) LTD,151.28,03/08/2016
Commercial,Regional Enterprise,Other Services,60059870,TMP (UK) LTD,144.16,03/08/2016
Commercial,Regional Enterprise,Other Services,60059874,TMP (UK) LTD,144.16,03/08/2016
Commercial,Regional Enterprise,Other Services,60060159,TMP (UK) LTD,"1,049.40",09/08/2016
Commercial,Regional Enterprise,Other Services,60061095,TMP (UK) LTD,378.41,16/08/2016
Commercial,Regional Enterprise,Printing-Contract,60060247,TMP (UK) LTD,"2,543.53",26/08/2016
Commercial,Regional Enterprise,Printing-Contract,60060574,TMP (UK) LTD,"2,383.53",26/08/2016
Commercial,Regional Enterprise,Professional Services,60055317,BUCHANAN ORDER MANAGEMENT,"3,630.60",08/08/2016
Commercial,Regional Enterprise,Professional Services,60060998,EUROFINS ENVIRONMENTAL TESTING UK L,228.39,16/08/2016
Commercial,Regional Enterprise,Professional Services,60060513,OPENVIEW SECURITY SOLUTIONS LTD,"136,449.43",09/08/2016
Commercial,Regional Enterprise,Professional Services,60058223,PUBLIC ANALYST SCIENTIFIC SERVS. LT,50.00,17/08/2016
Commercial,Regional Enterprise,Professional Services,60060677,PUBLIC ANALYST SCIENTIFIC SERVS. LT,175.00,12/08/2016
Commercial,Regional Enterprise,Professional Services,60060679,PUBLIC ANALYST SCIENTIFIC SERVS. LT,305.00,12/08/2016
Commercial,Regional Enterprise,Professional Services,60060712,PUBLIC ANALYST SCIENTIFIC SERVS. LT,"1,000.00",12/08/2016
Commercial,Regional Enterprise,Professional Services,10013371,RE (REGIONAL ENTERPRISE) LIMITED,"-90,091.35",16/08/2016
Commercial,Regional Enterprise,RE Services Contract Payment,60056296,RE (REGIONAL ENTERPRISE) LIMITED,"-40,452.79",16/08/2016
Commercial,Regional Enterprise,RE Services Contract Payment,60059474,RE (REGIONAL ENTERPRISE) LIMITED,"64,844.00",16/08/2016
Commercial,Regional Enterprise,RE Services Contract Payment,60059772,RE (REGIONAL ENTERPRISE) LIMITED,"335,000.00",16/08/2016
Commercial,Regional Enterprise,Subscriptions,60060488,PIPER PROJECTS LTD,299.00,08/08/2016
Commissioning,Commissioning,Advertising,60060176,LONDON WEEKLY NEWSPAPERS LTD,250.00,09/08/2016
Commissioning,Commissioning,Advertising,60060193,LONDON WEEKLY NEWSPAPERS LTD,250.00,10/08/2016
Commissioning,Commissioning,Advertising,60058838,NEWSQUEST (LONDON) LIMITED,198.84,02/08/2016
Commissioning,Commissioning,Building Repairs & Maintenance,60057779,S W BRUCE & CO LTD,"6,075.90",11/08/2016
Commissioning,Commissioning,Capital Construction and Works,60057570,S W BRUCE & CO LTD,"8,299.20",12/08/2016
Commissioning,Commissioning,Consultants Fees,60061428,COPPER CONSULTING LTD,580.00,26/08/2016
Commissioning,Commissioning,Consultants Fees,10013377,ESSEX COUNTY COUNCIL,"19,635.00",08/08/2016
Commissioning,Commissioning,Consultants Fees,80005398,HJC ACTUARIAL CONSULTING LTD,750.00,16/08/2016
Commissioning,Commissioning,Consultants Fees,60059253,MURPHY SURVEYS LIMITED,"2,650.00",11/08/2016
Commissioning,Commissioning,Consultants Fees,60060062,NAUTOGUIDE LTD,"7,000.00",26/08/2016
Commissioning,Commissioning,Consultants Fees,60059677,OFFICE FOR NATIONAL STATISTICS,750.00,12/08/2016
Commissioning,Commissioning,Consultants Fees,60059707,PRECIOUS MOMENTS AND HEALTH LTD,975.00,11/08/2016
Commissioning,Commissioning,Consultants Fees,60060999,PRIME PRODUCTION LTD,135.00,22/08/2016
Commissioning,Commissioning,Consultants Fees,60061009,PRIME PRODUCTION LTD,135.00,31/08/2016
Commissioning,Commissioning,Consultants Fees,60061028,PRIME PRODUCTION LTD,135.00,16/08/2016
Commissioning,Commissioning,Consultants Fees,60061057,PRIME PRODUCTION LTD,135.00,30/08/2016
Commissioning,Commissioning,Consultants Fees,60061118,PRIME PRODUCTION LTD,175.00,16/08/2016
Commissioning,Commissioning,Consultants Fees,60061121,PRIME PRODUCTION LTD,135.00,24/08/2016
Commissioning,Commissioning,Consultants Fees,60060178,REDACTED - PERSONAL DATA,300.00,10/08/2016
Commissioning,Commissioning,Consultants Fees,60060265,REDACTED - PERSONAL DATA,25.00,26/08/2016
Commissioning,Commissioning,Consultants Fees,60061008,REDACTED - PERSONAL DATA,75.00,17/08/2016
Commissioning,Commissioning,Consultants Fees,60060950,TIME BANKING UK,"6,000.00",17/08/2016
Commissioning,Commissioning,Consultants Fees,60060406,TROWERS & HAMLINS,"4,155.00",08/08/2016
Commissioning,Commissioning,Consultants Fees,60060423,TROWERS & HAMLINS,800.00,08/08/2016
Commissioning,Commissioning,Consultants Fees,60061298,WATES CONSTRUCTION LTD,"21,498.83",23/08/2016
Commissioning,Commissioning,Consultants Fees,60061346,WATES CONSTRUCTION LTD,"56,171.83",23/08/2016
Commissioning,Commissioning,Consultants Fees,60061349,WATES CONSTRUCTION LTD,"71,819.67",23/08/2016
Commissioning,Commissioning,Consultants Fees,60061362,WATES CONSTRUCTION LTD,"12,502.89",23/08/2016
Commissioning,Commissioning,Consultants Fees,60061367,WATES CONSTRUCTION LTD,"18,368.80",23/08/2016
Commissioning,Commissioning,Consultants Fees,60061407,WILLMOTT DIXON CONSTRUCTION LTD,"420,048.00",26/08/2016
Commissioning,Commissioning,Employee Expenses,60059547,JOBTARGET LTD T/AS YOURMEMBERSHIP,275.00,16/08/2016
Commissioning,Commissioning,Employee Expenses,60060036,TMP (UK) LTD,"1,241.50",02/08/2016
Commissioning,Commissioning,Employee Expenses,60060610,TMP (UK) LTD,"1,210.00",10/08/2016
Commissioning,Commissioning,Equipment and Materials Purcha,60060429,GALLIFORD TRY,"2,532.31",08/08/2016
Commissioning,Commissioning,Equipment and Materials Purcha,60060900,GALLIFORD TRY,"36,473.37",12/08/2016
Commissioning,Commissioning,Equipment and Materials Purcha,10013442,OCS GROUP UK LIMITED,"46,521.00",30/08/2016
Commissioning,Commissioning,Fixtures and fittings,10013407,WMF,120.00,22/08/2016
Commissioning,Commissioning,Fixtures and fittings,10013408,WMF,"2,100.00",22/08/2016
Commissioning,Commissioning,Furniture-Purchase-Repair,60058908,SENATOR INTERNATIONAL,842.60,04/08/2016
Commissioning,Commissioning,General Office Expenses,40001760,OFFICE DEPOT UK LTD,5.25,16/08/2016
Commissioning,Commissioning,Grant Payments,0080005423,"1374 (EAST BARNET) SQ, ATC","2,500.00",24/08/2016
Commissioning,Commissioning,Grant Payments,0080005206,BARNET MULTI FAITH FORUM,"5,000.00",08/08/2016
Commissioning,Commissioning,Grant Payments,0080005143,EAST FINCHLEY ARTS,"1,000.00",01/08/2016
Commissioning,Commissioning,Grant Payments,0080005147,STROKE ACTION,"2,250.00",01/08/2016
Commissioning,Commissioning,Joint Authorities - Third Part,EBX0130863,NORTH LONDON WASTE AUTHORITY,"904,617.00",24/08/2016
Commissioning,Commissioning,Miscellaneous Expenses,60060312,I D INTEGRATED SECURITY LTD,132.00,04/08/2016
Commissioning,Commissioning,Miscellaneous Expenses,60060346,I D INTEGRATED SECURITY LTD,"1,500.00",04/08/2016
Commissioning,Commissioning,Other Agencies - Third Party P,60059528,FAMILY FUND TRADING LTD,966.83,15/08/2016
Commissioning,Commissioning,Other Agencies - Third Party P,60060318,FAMILY FUND TRADING LTD,127.00,15/08/2016
Commissioning,Commissioning,Other Local Authorities - Thir,60061933,ESSEX COUNTY COUNCIL,"1,190.00",30/08/2016
Commissioning,Commissioning,Other Services,60060595,BLUE 9 SECURITY LIMITED,"3,542.18",10/08/2016
Commissioning,Commissioning,Other Services,60060888,IMPOWER CONSULTING LIMITED,"1,944.12",26/08/2016
Commissioning,Commissioning,Other Services,60060977,IMPOWER CONSULTING LIMITED,"2,434.88",15/08/2016
Commissioning,Commissioning,Other Services,60059887,LANTERN RECOVERY SPECIALISTS PLC,250.00,19/08/2016
Commissioning,Commissioning,Other Services,60061140,OLD FINCUNIANS NETBALL CLUB (OFNC),495.50,18/08/2016
Commissioning,Commissioning,Other Services,60059971,PHOENIX CANOE CLUB LIMITED,33.72,03/08/2016
Commissioning,Commissioning,Other Services,60060529,PREMIER SHREDDING,"1,130.00",08/08/2016
Commissioning,Commissioning,Other Services,60060453,REDACTED - PERSONAL DATA,200.00,11/08/2016
Commissioning,Commissioning,Other Services,60061973,REDACTED - PERSONAL DATA,300.00,31/08/2016
Commissioning,Commissioning,Other Services,80005249,REDACTED - PERSONAL DATA,2.30,10/08/2016
Commissioning,Commissioning,Other Services,80005250,REDACTED - PERSONAL DATA,0.92,10/08/2016
Commissioning,Commissioning,Other Services,60060522,SHRED-IT,166.92,11/08/2016
Commissioning,Commissioning,Other Transfer Payments to Soc,60059991,COMMUNITY BARNET,"15,000.00",02/08/2016
Commissioning,Commissioning,Other Transfer Payments to Soc,60061180,GROUNDWORK LONDON,"19,867.58",19/08/2016
Commissioning,Commissioning,Other Transfer Payments to Soc,60058370,LIQUID PERSONNEL LTD,"15,967.00",02/08/2016
Commissioning,Commissioning,Other Transfer Payments to Soc,60061657,THE READER ORGANISATION,"3,750.00",24/08/2016
Commissioning,Commissioning,Private Contractors - Third Pa,10013434,GREENWICH LEISURE LTD,"101,631.70",25/08/2016
Commissioning,Commissioning,Private Contractors - Third Pa,60056030,GREENWICH LEISURE LTD,"101,631.70",23/08/2016
Commissioning,Commissioning,Private Contractors - Third Pa,60061027,GREENWICH LEISURE LTD,"101,631.70",24/08/2016
Commissioning,Commissioning,Professional Services,60059457,ALPHA RESEARCH LIMITED,"2,917.50",12/08/2016
Commissioning,Commissioning,Professional Services,60060843,FOCUS CONSULTANTS 2010 LLP,"4,725.00",30/08/2016
Commissioning,Commissioning,Professional Services,60059121,GENERAL DYNAMICS INFORMATION TECHNOLOGY,"6,261.04",04/08/2016
Commissioning,Commissioning,Professional Services,60061164,GENERAL DYNAMICS INFORMATION TECHNOLOGY,"6,152.12",16/08/2016
Commissioning,Commissioning,Professional Services,60060526,HESTIA,"11,855.06",18/08/2016
Commissioning,Commissioning,Professional Services,80004906,LYONS DAVIDSON SOLICITORS,"14,750.00",01/08/2016
Commissioning,Commissioning,Professional Services,80005159,MOTOR INSURER'S BUREAU,183.33,02/08/2016
Commissioning,Commissioning,Professional Services,60061805,P A CONSULTING SERVICES LTD,"43,365.00",31/08/2016
Commissioning,Commissioning,Professional Services,60060675,ROSSENDALES (COLLECT) LTD,20.66,11/08/2016
Commissioning,Commissioning,Professional Services,60060689,ROSSENDALES (COLLECT) LTD,20.66,11/08/2016
Commissioning,Commissioning,Professional Services,60060692,ROSSENDALES (COLLECT) LTD,20.66,11/08/2016
Commissioning,Commissioning,Professional Services,60060715,ROSSENDALES (COLLECT) LTD,20.66,11/08/2016
Commissioning,Commissioning,Professional Services,60060727,ROSSENDALES (COLLECT) LTD,20.66,11/08/2016
Commissioning,Commissioning,Professional Services,60060728,ROSSENDALES (COLLECT) LTD,20.66,11/08/2016
Commissioning,Commissioning,Professional Services,60060754,ROSSENDALES (COLLECT) LTD,20.66,11/08/2016
Commissioning,Commissioning,Publications,60061649,COMMUNITY LINKS TRADING LTD,"2,750.00",24/08/2016
Commissioning,Commissioning,Rents,60060353,BARNET & SOUTHGATE COLLEGE,353.33,04/08/2016
Commissioning,Commissioning,Rents,60061821,NETWORK RAIL ACCOUNTS RECEIVABLE,"20,375.00",26/08/2016
Commissioning,Commissioning,Settlement of WOM Costs,60060452,S W BRUCE & CO LTD,600.00,31/08/2016
Commissioning,Commissioning,Training,60058582,INSTITUTE OF DIRECTORS,"7,990.00",02/08/2016
Commissioning,Commissioning,Training,20031508,REDACTED - PERSONAL DATA,"1,350.00",18/08/2016
Commissioning,Commissioning,Training,60060331,THE HUB EVENTS LTD,490.00,05/08/2016
Commissioning,Commissioning,Training,60060367,THE HUB EVENTS LTD,490.00,05/08/2016
Commissioning,Commissioning,Ttl IT & Comms,60058045,BIBLIOTHECA LTD,"9,692.00",09/08/2016
Commissioning,Commissioning,Ttl IT & Comms,60058104,BIBLIOTHECA LTD,"2,247.50",09/08/2016
Commissioning,Commissioning,Ttl IT & Comms,60059069,BRITISH TELECOM PLC,25.26,25/08/2016
Commissioning,Commissioning,Ttl IT & Comms,60054693,STOR-A FILE LTD,"1,016.23",30/08/2016
Commissioning,Commissioning,Ttl IT & Comms,60056785,STOR-A FILE LTD,"1,032.98",30/08/2016
Commissioning,Commissioning,Ttl IT & Comms,60058895,STOR-A FILE LTD,"18,327.77",30/08/2016
Commissioning,Commissioning,Ttl IT & Comms,60060492,STOR-A FILE LTD,"1,316.80",30/08/2016
Commissioning,Commissioning,Venue Hire,80005070,THE GREEK CYPRIOT COMMUNITY TRUST,209.50,08/08/2016
Corporate Accounting,Corporate Accounting,Employee Expenses,60061936,EDENRED,"2,302.25",31/08/2016
Corporate Accounting,Corporate Accounting,Other Agencies - Third Party P,60061345,THE BARNETGROUP LIMITED,"2,522,086.00",26/08/2016
Corporate Accounting,Corporate Accounting,Other Local Authorities - Thir,EBX0128014,GREATER LONDON AUTHORITY,"3,891,785.34",02/08/2016
Corporate Accounting,Corporate Accounting,Other Local Authorities - Thir,EBX0129339,GREATER LONDON AUTHORITY,"1,521,304.00",12/08/2016
Corporate Accounting,Corporate Accounting,Other Local Authorities - Thir,EBX0130709,GREATER LONDON AUTHORITY,"230,277.00",22/08/2016
Corporate Accounting,Corporate Accounting,Other Transfer Payments to Soc,60059460,CITIBANK NA LONDON,"1,718.60",01/08/2016
Corporate Accounting,Corporate Accounting,Other Transfer Payments to Soc,60059463,CITIBANK NA LONDON,463.60,01/08/2016
Corporate Accounting,Corporate Accounting,Other Transfer Payments to Soc,60059466,CITIBANK NA LONDON,476.75,01/08/2016
Corporate Accounting,Corporate Accounting,Other Transfer Payments to Soc,60059497,CITIBANK NA LONDON,"1,870.90",01/08/2016
Corporate Accounting,Corporate Accounting,Other Transfer Payments to Soc,60060099,CITIBANK NA LONDON,"2,648.20",03/08/2016
Corporate Accounting,Corporate Accounting,Other Transfer Payments to Soc,60060100,CITIBANK NA LONDON,"1,609.00",03/08/2016
Corporate Accounting,Corporate Accounting,Other Transfer Payments to Soc,60060111,CITIBANK NA LONDON,107.70,03/08/2016
Corporate Accounting,Corporate Accounting,Other Transfer Payments to Soc,60060119,CITIBANK NA LONDON,628.90,03/08/2016
Corporate Accounting,Corporate Accounting,Other Transfer Payments to Soc,60060133,CITIBANK NA LONDON,200.00,03/08/2016
Corporate Accounting,Corporate Accounting,Other Transfer Payments to Soc,60060138,CITIBANK NA LONDON,125.00,03/08/2016
Corporate Accounting,Corporate Accounting,Other Transfer Payments to Soc,60060147,CITIBANK NA LONDON,"14,899.16",03/08/2016
Corporate Accounting,Corporate Accounting,Other Transfer Payments to Soc,60060171,CITIBANK NA LONDON,538.70,03/08/2016
Corporate Accounting,Corporate Accounting,Other Transfer Payments to Soc,60060198,CITIBANK NA LONDON,813.00,04/08/2016
Corporate Accounting,Corporate Accounting,Other Transfer Payments to Soc,60060207,CITIBANK NA LONDON,986.40,04/08/2016
Corporate Accounting,Corporate Accounting,Other Transfer Payments to Soc,60060209,CITIBANK NA LONDON,501.60,04/08/2016
Corporate Accounting,Corporate Accounting,Other Transfer Payments to Soc,60060221,CITIBANK NA LONDON,"1,023.34",04/08/2016
Corporate Accounting,Corporate Accounting,Other Transfer Payments to Soc,60060232,CITIBANK NA LONDON,115.80,04/08/2016
Corporate Accounting,Corporate Accounting,Other Transfer Payments to Soc,60060258,CITIBANK NA LONDON,"1,457.90",04/08/2016
Corporate Accounting,Corporate Accounting,Other Transfer Payments to Soc,60060272,CITIBANK NA LONDON,"3,577.20",04/08/2016
Corporate Accounting,Corporate Accounting,Other Transfer Payments to Soc,60060287,CITIBANK NA LONDON,115.80,04/08/2016
Corporate Accounting,Corporate Accounting,Other Transfer Payments to Soc,60060302,CITIBANK NA LONDON,"6,406.70",04/08/2016
Corporate Accounting,Corporate Accounting,Other Transfer Payments to Soc,60060555,CITIBANK NA LONDON,347.90,10/08/2016
Corporate Accounting,Corporate Accounting,Other Transfer Payments to Soc,60060566,CITIBANK NA LONDON,"1,246.20",10/08/2016
Corporate Accounting,Corporate Accounting,Other Transfer Payments to Soc,60060585,CITIBANK NA LONDON,240.00,10/08/2016
Corporate Accounting,Corporate Accounting,Other Transfer Payments to Soc,60060587,CITIBANK NA LONDON,"1,544.05",10/08/2016
Corporate Accounting,Corporate Accounting,Other Transfer Payments to Soc,60060629,CITIBANK NA LONDON,225.80,10/08/2016
Corporate Accounting,Corporate Accounting,Other Transfer Payments to Soc,60060636,CITIBANK NA LONDON,439.50,10/08/2016
Corporate Accounting,Corporate Accounting,Other Transfer Payments to Soc,60061013,CITIBANK NA LONDON,70.00,15/08/2016
Corporate Accounting,Corporate Accounting,Other Transfer Payments to Soc,60061022,CITIBANK NA LONDON,"10,422.44",15/08/2016
Corporate Accounting,Corporate Accounting,Other Transfer Payments to Soc,60061059,CITIBANK NA LONDON,"2,684.60",15/08/2016
Corporate Accounting,Corporate Accounting,Other Transfer Payments to Soc,60061071,CITIBANK NA LONDON,"1,657.90",15/08/2016
Corporate Accounting,Corporate Accounting,Other Transfer Payments to Soc,60061081,CITIBANK NA LONDON,"1,570.00",15/08/2016
Corporate Accounting,Corporate Accounting,Other Transfer Payments to Soc,60061090,CITIBANK NA LONDON,236.86,15/08/2016
Corporate Accounting,Corporate Accounting,Other Transfer Payments to Soc,60061100,CITIBANK NA LONDON,611.10,15/08/2016
Corporate Accounting,Corporate Accounting,Other Transfer Payments to Soc,60061117,CITIBANK NA LONDON,"5,622.83",15/08/2016
Corporate Accounting,Corporate Accounting,Other Transfer Payments to Soc,60061124,CITIBANK NA LONDON,"5,362.50",15/08/2016
Corporate Accounting,Corporate Accounting,Other Transfer Payments to Soc,60061237,CITIBANK NA LONDON,250.00,17/08/2016
Corporate Accounting,Corporate Accounting,Other Transfer Payments to Soc,60061251,CITIBANK NA LONDON,"1,429.50",17/08/2016
Corporate Accounting,Corporate Accounting,Other Transfer Payments to Soc,60061253,CITIBANK NA LONDON,413.80,17/08/2016
Corporate Accounting,Corporate Accounting,Other Transfer Payments to Soc,60061454,CITIBANK NA LONDON,455.00,22/08/2016
Corporate Accounting,Corporate Accounting,Other Transfer Payments to Soc,60061456,CITIBANK NA LONDON,106.02,22/08/2016
Corporate Accounting,Corporate Accounting,Other Transfer Payments to Soc,60061505,CITIBANK NA LONDON,935.70,23/08/2016
Corporate Accounting,Corporate Accounting,Other Transfer Payments to Soc,60061525,CITIBANK NA LONDON,148.50,23/08/2016
Corporate Accounting,Corporate Accounting,Other Transfer Payments to Soc,60061532,CITIBANK NA LONDON,882.50,23/08/2016
Corporate Accounting,Corporate Accounting,Other Transfer Payments to Soc,60061557,CITIBANK NA LONDON,490.00,23/08/2016
Corporate Accounting,Corporate Accounting,Other Transfer Payments to Soc,60061637,CITIBANK NA LONDON,"2,613.60",23/08/2016
Corporate Accounting,Corporate Accounting,Other Transfer Payments to Soc,60061643,CITIBANK NA LONDON,"1,249.90",23/08/2016
Corporate Accounting,Corporate Accounting,Professional Services,60059110,LONDON BUSES SERVICES LIMITED,"82,677.00",09/08/2016
Delivery Units,Adults and Communities,Advertising for staff,60058178,TMP (UK) LTD,"23,431.25",30/08/2016
Delivery Units,Adults and Communities,Cleaning and domestic material,60060369,CHURCHILL CONTRACT SERVICES,377.81,30/08/2016
Delivery Units,Adults and Communities,Cleaning and domestic material,60060373,CHURCHILL CONTRACT SERVICES,391.37,30/08/2016
Delivery Units,Adults and Communities,Cleaning and domestic material,60061152,OFFICE DEPOT UK LTD,-168.66,26/08/2016
Delivery Units,Adults and Communities,Consultants Fees,60059919,TERRAIN SURVEYS LTD,"2,425.00",19/08/2016
Delivery Units,Adults and Communities,Consultants Fees,60055309,THOMPSON SOLICITORS,291.67,02/08/2016
Delivery Units,Adults and Communities,Consultants Fees,60061659,VOICEABILITY,"2,056.00",31/08/2016
Delivery Units,Adults and Communities,Consultants Fees,60061704,VOICEABILITY,"1,932.00",31/08/2016
Delivery Units,Adults and Communities,Consultants Fees,60061706,VOICEABILITY,"5,251.90",31/08/2016
Delivery Units,Adults and Communities,Electricity,80005437,BRITISH GAS BUSINESS,"7,715.58",18/08/2016
Delivery Units,Adults and Communities,Electricity,60059656,KENT COUNTY COUNCIL (KCS),113.58,04/08/2016
Delivery Units,Adults and Communities,Employee Expenses,60059167,CENTRAL LONDONCOMMUNITY HEALTHCARE,"88,097.00",05/08/2016
Delivery Units,Adults and Communities,Employee Expenses,60059222,CENTRAL LONDONCOMMUNITY HEALTHCARE,"88,097.00",02/08/2016
Delivery Units,Adults and Communities,Employee Expenses,60059639,CENTRAL LONDONCOMMUNITY HEALTHCARE,"88,097.00",02/08/2016
Delivery Units,Adults and Communities,Employee Expenses,60061262,CENTRAL LONDONCOMMUNITY HEALTHCARE,"88,097.00",30/08/2016
Delivery Units,Adults and Communities,Equipment and Materials Purcha,80005379,BRITISH TELECOM PLC,"2,032.05",15/08/2016
Delivery Units,Adults and Communities,Equipment and Materials Purcha,80005380,BRITISH TELECOM PLC,"2,706.48",15/08/2016
Delivery Units,Adults and Communities,Equipment and Materials Purcha,80005381,BRITISH TELECOM PLC,"1,756.14",15/08/2016
Delivery Units,Adults and Communities,Food Costs,60059645,MULLER MILK & INGREDIENTS,1.44,05/08/2016
Delivery Units,Adults and Communities,Food Costs,60059939,MULLER MILK & INGREDIENTS,1.44,12/08/2016
Delivery Units,Adults and Communities,Food Costs,60060219,MULLER MILK & INGREDIENTS,1.44,19/08/2016
Delivery Units,Adults and Communities,Food Costs,60060814,MULLER MILK & INGREDIENTS,1.44,26/08/2016
Delivery Units,Adults and Communities,Gas,60061696,BRITISH GAS BUSINESS,381.82,24/08/2016
Delivery Units,Adults and Communities,Gas,60059332,KENT COUNTY COUNCIL (KCS),109.07,02/08/2016
Delivery Units,Adults and Communities,Gas,60061685,KENT COUNTY COUNCIL (KCS),97.50,31/08/2016
Delivery Units,Adults and Communities,Other Agencies - Third Party P,30130492,AARON COURT CARE HOME,"2,216.41",02/08/2016
Delivery Units,Adults and Communities,Other Agencies - Third Party P,30131719,AARON COURT CARE HOME,"2,216.41",18/08/2016
Delivery Units,Adults and Communities,Other Agencies - Third Party P,30130283,ABBEY RAVENSCROFT PARK NURSING HOME,"2,878.57",01/08/2016
Delivery Units,Adults and Communities,Other Agencies - Third Party P,30130449,ABBEY RAVENSCROFT PARK NURSING HOME,"2,655.55",02/08/2016
Delivery Units,Adults and Communities,Other Agencies - Third Party P,30130450,ABBEY RAVENSCROFT PARK NURSING HOME,"2,655.55",02/08/2016
Delivery Units,Adults and Communities,Other Agencies - Third Party P,30130451,ABBEY RAVENSCROFT PARK NURSING HOME,"2,397.72",02/08/2016
Delivery Units,Adults and Communities,Other Agencies - Third Party P,30130452,ABBEY RAVENSCROFT PARK NURSING HOME,"2,655.55",02/08/2016
Delivery Units,Adults and Communities,Other Agencies - Third Party P,30130453,ABBEY RAVENSCROFT PARK NURSING HOME,"2,655.55",02/08/2016
Delivery Units,Adults and Communities,Other Agencies - Third Party P,30130454,ABBEY RAVENSCROFT PARK NURSING HOME,"2,655.55",02/08/2016
Delivery Units,Adults and Communities,Other Agencies - Third Party P,30130456,ABBEY RAVENSCROFT PARK NURSING HOME,"2,655.55",02/08/2016
Delivery Units,Adults and Communities,Other Agencies - Third Party P,30130457,ABBEY RAVENSCROFT PARK NURSING HOME,"2,655.55",02/08/2016
Delivery Units,Adults and Communities,Other Agencies - Third Party P,30130458,ABBEY RAVENSCROFT PARK NURSING HOME,"3,100.00",02/08/2016
Delivery Units,Adults and Communities,Other Agencies - Third Party P,30130459,ABBEY RAVENSCROFT PARK NURSING HOME,"3,100.00",02/08/2016
Delivery Units,Adults and Communities,Other Agencies - Third Party P,30130460,ABBEY RAVENSCROFT PARK NURSING HOME,"3,100.00",02/08/2016
Delivery Units,Adults and Communities,Other Agencies - Third Party P,30130461,ABBEY RAVENSCROFT PARK NURSING HOME,"2,448.78",02/08/2016
Delivery Units,Adults and Communities,Other Agencies - Third Party P,30130462,ABBEY RAVENSCROFT PARK NURSING HOME,"2,989.29",02/08/2016
Delivery Units,Adults and Communities,Other Agencies - Third Party P,30130463,ABBEY RAVENSCROFT PARK NURSING HOME,"2,654.88",02/08/2016
Delivery Units,Adults and Communities,Other Agencies - Third Party P,30130464,ABBEY RAVENSCROFT PARK NURSING HOME,"3,100.00",02/08/2016
Delivery Units,Adults and Communities,Other Agencies - Third Party P,30130465,ABBEY RAVENSCROFT PARK NURSING HOME,"3,100.00",02/08/2016
Delivery Units,Adults and Communities,Other Agencies - Third Party P,30130466,ABBEY RAVENSCROFT PARK NURSING HOME,"3,100.00",02/08/2016
Delivery Units,Adults and Communities,Other Agencies - Third Party P,30130467,ABBEY RAVENSCROFT PARK NURSING HOME,"3,100.00",02/08/2016
Delivery Units,Adults and Communities,Other Agencies - Third Party P,30130468,ABBEY RAVENSCROFT PARK NURSING HOME,"3,100.00",02/08/2016
Delivery Units,Adults and Communities,Other Agencies - Third Party P,30130469,ABBEY RAVENSCROFT PARK NURSING HOME,"3,100.00",02/08/2016
Delivery Units,Adults and Communities,Other Agencies - Third Party P,30130470,ABBEY RAVENSCROFT PARK NURSING HOME,"3,100.00",02/08/2016
Delivery Units,Adults and Communities,Other Agencies - Third Party P,30130471,ABBEY RAVENSCROFT PARK NURSING HOME,"2,652.71",02/08/2016
Delivery Units,Adults and Communities,Other Agencies - Third Party P,30130472,ABBEY RAVENSCROFT PARK NURSING HOME,"2,652.71",02/08/2016
Delivery Units,Adults and Communities,Other Agencies - Third Party P,30131682,ABBEY RAVENSCROFT PARK NURSING HOME,522.51,18/08/2016
Delivery Units,Adults and Communities,Other Agencies - Third Party P,30131683,ABBEY RAVENSCROFT PARK NURSING HOME,610.00,18/08/2016
Delivery Units,Adults and Communities,Other Agencies - Third Party P,30131684,ABBEY RAVENSCROFT PARK NURSING HOME,552.31,18/08/2016
Delivery Units,Adults and Communities,Other Agencies - Third Party P,30131685,ABBEY RAVENSCROFT PARK NURSING HOME,610.00,18/08/2016
Delivery Units,Adults and Communities,Other Agencies - Third Party P,30131686,ABBEY RAVENSCROFT PARK NURSING HOME,610.00,18/08/2016
Delivery Units,Adults and Communities,Other Agencies - Third Party P,30131687,ABBEY RAVENSCROFT PARK NURSING HOME,522.51,18/08/2016
Delivery Units,Adults and Communities,Other Agencies - Third Party P,30131688,ABBEY RAVENSCROFT PARK NURSING HOME,252.69,18/08/2016
Delivery Units,Adults and Communities,Other Agencies - Third Party P,30131689,ABBEY RAVENSCROFT PARK NURSING HOME,550.00,18/08/2016
Delivery Units,Adults and Communities,Other Agencies - Third Party P,30131690,ABBEY RAVENSCROFT PARK NURSING HOME,610.00,18/08/2016
Delivery Units,Adults and Communities,Other Agencies - Third Party P,30131691,ABBEY RAVENSCROFT PARK NURSING HOME,522.51,18/08/2016
Delivery Units,Adults and Communities,Other Agencies - Third Party P,30131692,ABBEY RAVENSCROFT PARK NURSING HOME,555.00,18/08/2016
Delivery Units,Adults and Communities,Other Agencies - Third Party P,30131693,ABBEY RAVENSCROFT PARK NURSING HOME,610.00,18/08/2016
Delivery Units,Adults and Communities,Other Agencies - Third Party P,30131694,ABBEY RAVENSCROFT PARK NURSING HOME,552.51,18/08/2016
Delivery Units,Adults and Communities,Other Agencies - Third Party P,30131695,ABBEY RAVENSCROFT PARK NURSING HOME,610.00,18/08/2016
Delivery Units,Adults and Communities,Other Agencies - Third Party P,30131696,ABBEY RAVENSCROFT PARK NURSING HOME,610.00,18/08/2016
Delivery Units,Adults and Communities,Other Agencies - Third Party P,30131697,ABBEY RAVENSCROFT PARK NURSING HOME,610.00,18/08/2016
Delivery Units,Adults and Communities,Other Agencies - Third Party P,30131698,ABBEY RAVENSCROFT PARK NURSING HOME,69.61,18/08/2016
Delivery Units,Adults and Communities,Other Agencies - Third Party P,30131699,ABBEY RAVENSCROFT PARK NURSING HOME,588.21,18/08/2016
Delivery Units,Adults and Communities,Other Agencies - Third Party P,30131700,ABBEY RAVENSCROFT PARK NURSING HOME,522.51,18/08/2016
Delivery Units,Adults and Communities,Other Agencies - Third Party P,30131701,ABBEY RAVENSCROFT PARK NURSING HOME,522.51,18/08/2016
Delivery Units,Adults and Communities,Other Agencies - Third Party P,30131702,ABBEY RAVENSCROFT PARK NURSING HOME,610.00,18/08/2016
Delivery Units,Adults and Communities,Other Agencies - Third Party P,30131703,ABBEY RAVENSCROFT PARK NURSING HOME,522.51,18/08/2016
Delivery Units,Adults and Communities,Other Agencies - Third Party P,30131704,ABBEY RAVENSCROFT PARK NURSING HOME,306.43,18/08/2016
Delivery Units,Adults and Communities,Other Agencies - Third Party P,30131705,ABBEY RAVENSCROFT PARK NURSING HOME,323.70,18/08/2016
Delivery Units,Adults and Communities,Other Agencies - Third Party P,30131706,ABBEY RAVENSCROFT PARK NURSING HOME,522.51,18/08/2016
Delivery Units,Adults and Communities,Other Agencies - Third Party P,30131707,ABBEY RAVENSCROFT PARK NURSING HOME,545.00,18/08/2016
Delivery Units,Adults and Communities,Other Agencies - Third Party P,30132426,ABBEY RAVENSCROFT PARK NURSING HOME,"2,788.32",22/08/2016
Delivery Units,Adults and Communities,Other Agencies - Third Party P,30132427,ABBEY RAVENSCROFT PARK NURSING HOME,"2,788.32",22/08/2016
Delivery Units,Adults and Communities,Other Agencies - Third Party P,30132428,ABBEY RAVENSCROFT PARK NURSING HOME,"2,788.32",22/08/2016
Delivery Units,Adults and Communities,Other Agencies - Third Party P,30132429,ABBEY RAVENSCROFT PARK NURSING HOME,"2,788.32",22/08/2016
Delivery Units,Adults and Communities,Other Agencies - Third Party P,30132431,ABBEY RAVENSCROFT PARK NURSING HOME,"3,255.00",22/08/2016
Delivery Units,Adults and Communities,Other Agencies - Third Party P,30132432,ABBEY RAVENSCROFT PARK NURSING HOME,"3,255.00",22/08/2016
Delivery Units,Adults and Communities,Other Agencies - Third Party P,30132433,ABBEY RAVENSCROFT PARK NURSING HOME,"3,255.00",22/08/2016
Delivery Units,Adults and Communities,Other Agencies - Third Party P,30132434,ABBEY RAVENSCROFT PARK NURSING HOME,"2,788.32",22/08/2016
Delivery Units,Adults and Communities,Other Agencies - Third Party P,30132435,ABBEY RAVENSCROFT PARK NURSING HOME,"3,138.75",22/08/2016
Delivery Units,Adults and Communities,Other Agencies - Third Party P,30132436,ABBEY RAVENSCROFT PARK NURSING HOME,"2,788.32",22/08/2016
Delivery Units,Adults and Communities,Other Agencies - Third Party P,30132437,ABBEY RAVENSCROFT PARK NURSING HOME,"3,255.00",22/08/2016
Delivery Units,Adults and Communities,Other Agencies - Third Party P,30132438,ABBEY RAVENSCROFT PARK NURSING HOME,"3,255.00",22/08/2016
Delivery Units,Adults and Communities,Other Agencies - Third Party P,30132439,ABBEY RAVENSCROFT PARK NURSING HOME,"3,255.00",22/08/2016
Delivery Units,Adults and Communities,Other Agencies - Third Party P,30132440,ABBEY RAVENSCROFT PARK NURSING HOME,"3,255.00",22/08/2016
Delivery Units,Adults and Communities,Other Agencies - Third Party P,30132441,ABBEY RAVENSCROFT PARK NURSING HOME,"3,255.00",22/08/2016
Delivery Units,Adults and Communities,Other Agencies - Third Party P,30132442,ABBEY RAVENSCROFT PARK NURSING HOME,"3,255.00",22/08/2016
Delivery Units,Adults and Communities,Other Agencies - Third Party P,30132443,ABBEY RAVENSCROFT PARK NURSING HOME,"3,255.00",22/08/2016
Delivery Units,Adults and Communities,Other Agencies - Third Party P,30132444,ABBEY RAVENSCROFT PARK NURSING HOME,"3,255.00",22/08/2016
Delivery Units,Adults and Communities,Other Agencies - Third Party P,30132445,ABBEY RAVENSCROFT PARK NURSING HOME,"2,788.32",22/08/2016
Delivery Units,Adults and Communities,Other Agencies - Third Party P,30132446,ABBEY RAVENSCROFT PARK NURSING HOME,"3,022.50",22/08/2016
Delivery Units,Adults and Communities,Other Agencies - Third Party P,30132447,ABBEY RAVENSCROFT PARK NURSING HOME,"2,788.32",22/08/2016
Delivery Units,Adults and Communities,Other Agencies - Third Party P,30131486,ABOUT ME CARE & SUPPORT LTD,"1,365.84",18/08/2016
Delivery Units,Adults and Communities,Other Agencies - Third Party P,30133239,ABOUT ME CARE & SUPPORT LTD,"1,365.84",30/08/2016
Delivery Units,Adults and Communities,Other Agencies - Third Party P,30133240,ABOUT ME CARE & SUPPORT LTD,"1,365.84",30/08/2016
Delivery Units,Adults and Communities,Other Agencies - Third Party P,30130623,ACCEDO CARE LTD,"6,594.14",02/08/2016
Delivery Units,Adults and Communities,Other Agencies - Third Party P,80005009,ADVENT CARE PLUS,"9,450.00",08/08/2016
Delivery Units,Adults and Communities,Other Agencies - Third Party P,30131534,AGUDAS ISRAEL HOUSING ASSCTN LTD,"2,736.86",18/08/2016
Delivery Units,Adults and Communities,Other Agencies - Third Party P,30131539,AGUDAS ISRAEL HOUSING ASSCTN LTD,"3,154.25",18/08/2016
Delivery Units,Adults and Communities,Other Agencies - Third Party P,30130244,ALDWYCK HOUSING GROUP,"2,249.45",01/08/2016
Delivery Units,Adults and Communities,Other Agencies - Third Party P,30130245,ALDWYCK HOUSING GROUP,"2,249.45",01/08/2016
Delivery Units,Adults and Communities,Other Agencies - Third Party P,30130246,ALDWYCK HOUSING GROUP,"2,249.45",01/08/2016
Delivery Units,Adults and Communities,Other Agencies - Third Party P,30130247,ALDWYCK HOUSING GROUP,"2,249.45",01/08/2016
Delivery Units,Adults and Communities,Other Agencies - Third Party P,30130248,ALDWYCK HOUSING GROUP,"2,249.45",01/08/2016
Delivery Units,Adults and Communities,Other Agencies - Third Party P,30131270,ALDWYCK HOUSING GROUP,"2,249.45",11/08/2016
Delivery Units,Adults and Communities,Other Agencies - Third Party P,30131472,ALDWYCK HOUSING GROUP,"2,249.45",18/08/2016
Delivery Units,Adults and Communities,Other Agencies - Third Party P,30131473,ALDWYCK HOUSING GROUP,"2,249.45",18/08/2016
Delivery Units,Adults and Communities,Other Agencies - Third Party P,30131474,ALDWYCK HOUSING GROUP,"2,249.45",18/08/2016
Delivery Units,Adults and Communities,Other Agencies - Third Party P,30132051,ALDWYCK HOUSING GROUP,"2,249.45",19/08/2016
Delivery Units,Adults and Communities,Other Agencies - Third Party P,30131049,ALLIED HEALTHCARE LTD,"3,462.71",05/08/2016
Delivery Units,Adults and Communities,Other Agencies - Third Party P,30132515,ALLIED HEALTHCARE LTD,"2,904.35",22/08/2016
Delivery Units,Adults and Communities,Other Agencies - Third Party P,30126488,APPLE TREE COURT CARE HOME,-541.42,02/08/2016
Delivery Units,Adults and Communities,Other Agencies - Third Party P,30130438,APPLE TREE COURT CARE HOME,"2,397.72",02/08/2016
Delivery Units,Adults and Communities,Other Agencies - Third Party P,30130439,APPLE TREE COURT CARE HOME,"2,318.93",02/08/2016
Delivery Units,Adults and Communities,Other Agencies - Third Party P,30130440,APPLE TREE COURT CARE HOME,"2,570.70",02/08/2016
Delivery Units,Adults and Communities,Other Agencies - Third Party P,30130441,APPLE TREE COURT CARE HOME,"2,570.70",02/08/2016
Delivery Units,Adults and Communities,Other Agencies - Third Party P,30130442,APPLE TREE COURT CARE HOME,"2,570.70",02/08/2016
Delivery Units,Adults and Communities,Other Agencies - Third Party P,30130443,APPLE TREE COURT CARE HOME,"2,570.70",02/08/2016
Delivery Units,Adults and Communities,Other Agencies - Third Party P,30130444,APPLE TREE COURT CARE HOME,"3,100.00",02/08/2016
Delivery Units,Adults and Communities,Other Agencies - Third Party P,30130445,APPLE TREE COURT CARE HOME,"2,657.14",02/08/2016
Delivery Units,Adults and Communities,Other Agencies - Third Party P,30130446,APPLE TREE COURT CARE HOME,"2,418.04",02/08/2016
Delivery Units,Adults and Communities,Other Agencies - Third Party P,30130447,APPLE TREE COURT CARE HOME,"2,570.70",02/08/2016
Delivery Units,Adults and Communities,Other Agencies - Third Party P,30130448,APPLE TREE COURT CARE HOME,"3,542.86",02/08/2016
Delivery Units,Adults and Communities,Other Agencies - Third Party P,30131582,APPLE TREE COURT CARE HOME,"2,031.76",18/08/2016
Delivery Units,Adults and Communities,Other Agencies - Third Party P,30132114,APPLE TREE COURT CARE HOME,"2,031.76",19/08/2016
Delivery Units,Adults and Communities,Other Agencies - Third Party P,30132415,APPLE TREE COURT CARE HOME,"2,397.72",22/08/2016
Delivery Units,Adults and Communities,Other Agencies - Third Party P,30132416,APPLE TREE COURT CARE HOME,"2,318.93",22/08/2016
Delivery Units,Adults and Communities,Other Agencies - Third Party P,30132417,APPLE TREE COURT CARE HOME,"2,570.70",22/08/2016
Delivery Units,Adults and Communities,Other Agencies - Third Party P,30132418,APPLE TREE COURT CARE HOME,"2,570.70",22/08/2016
Delivery Units,Adults and Communities,Other Agencies - Third Party P,30132419,APPLE TREE COURT CARE HOME,"2,570.70",22/08/2016
Delivery Units,Adults and Communities,Other Agencies - Third Party P,30132420,APPLE TREE COURT CARE HOME,"2,570.70",22/08/2016
Delivery Units,Adults and Communities,Other Agencies - Third Party P,30132421,APPLE TREE COURT CARE HOME,"3,100.00",22/08/2016
Delivery Units,Adults and Communities,Other Agencies - Third Party P,30132422,APPLE TREE COURT CARE HOME,"2,657.14",22/08/2016
Delivery Units,Adults and Communities,Other Agencies - Third Party P,30132423,APPLE TREE COURT CARE HOME,"2,418.04",22/08/2016
Delivery Units,Adults and Communities,Other Agencies - Third Party P,30132424,APPLE TREE COURT CARE HOME,"2,570.70",22/08/2016
Delivery Units,Adults and Communities,Other Agencies - Third Party P,30132425,APPLE TREE COURT CARE HOME,"3,542.86",22/08/2016
Delivery Units,Adults and Communities,Other Agencies - Third Party P,30133068,AREA 51 EDUCATION LTD,"1,501.00",26/08/2016
Delivery Units,Adults and Communities,Other Agencies - Third Party P,30133069,AREA 51 EDUCATION LTD,869.00,26/08/2016
Delivery Units,Adults and Communities,Other Agencies - Third Party P,30133070,AREA 51 EDUCATION LTD,553.00,26/08/2016
Delivery Units,Adults and Communities,Other Agencies - Third Party P,30133071,AREA 51 EDUCATION LTD,632.00,26/08/2016
Delivery Units,Adults and Communities,Other Agencies - Third Party P,30133072,AREA 51 EDUCATION LTD,948.00,26/08/2016
Delivery Units,Adults and Communities,Other Agencies - Third Party P,30133073,AREA 51 EDUCATION LTD,"1,580.00",26/08/2016
Delivery Units,Adults and Communities,Other Agencies - Third Party P,30133074,AREA 51 EDUCATION LTD,632.00,26/08/2016
Delivery Units,Adults and Communities,Other Agencies - Third Party P,30133075,AREA 51 EDUCATION LTD,948.00,26/08/2016
Delivery Units,Adults and Communities,Other Agencies - Third Party P,30133433,AREA 51 EDUCATION LTD,"1,580.00",30/08/2016
Delivery Units,Adults and Communities,Other Agencies - Third Party P,30131714,ASH COURT CARE CENTRE,"3,642.86",18/08/2016
Delivery Units,Adults and Communities,Other Agencies - Third Party P,30131804,ASH COURT CARE CENTRE,"1,092.86",18/08/2016
Delivery Units,Adults and Communities,Other Agencies - Third Party P,30130296,ASHFIELDS RESIDENTIAL CARE HOME,"2,448.78",01/08/2016
Delivery Units,Adults and Communities,Other Agencies - Third Party P,30130344,ASHFIELDS RESIDENTIAL CARE HOME,"2,448.78",01/08/2016
Delivery Units,Adults and Communities,Other Agencies - Third Party P,30132454,ASHFIELDS RESIDENTIAL CARE HOME,"2,448.78",22/08/2016
Delivery Units,Adults and Communities,Other Agencies - Third Party P,30132456,ASHFIELDS RESIDENTIAL CARE HOME,"2,448.78",22/08/2016
Delivery Units,Adults and Communities,Other Agencies - Third Party P,30132457,ASHFIELDS RESIDENTIAL CARE HOME,"2,657.14",22/08/2016
Delivery Units,Adults and Communities,Other Agencies - Third Party P,30132458,ASHFIELDS RESIDENTIAL CARE HOME,"2,448.78",22/08/2016
Delivery Units,Adults and Communities,Other Agencies - Third Party P,30132459,ASHFIELDS RESIDENTIAL CARE HOME,"2,249.27",22/08/2016
Delivery Units,Adults and Communities,Other Agencies - Third Party P,30132460,ASHFIELDS RESIDENTIAL CARE HOME,"2,448.78",22/08/2016
Delivery Units,Adults and Communities,Other Agencies - Third Party P,30130491,ASHTON LODGE CARE CENTRE,"2,655.55",02/08/2016
Delivery Units,Adults and Communities,Other Agencies - Third Party P,30130493,ASHTON LODGE CARE CENTRE,"2,655.55",02/08/2016
Delivery Units,Adults and Communities,Other Agencies - Third Party P,30130521,ASHTON LODGE CARE CENTRE,"2,249.45",02/08/2016
Delivery Units,Adults and Communities,Other Agencies - Third Party P,30130526,ASHTON LODGE CARE CENTRE,"2,655.55",02/08/2016
Delivery Units,Adults and Communities,Other Agencies - Third Party P,30130528,ASHTON LODGE CARE CENTRE,"2,397.72",02/08/2016
Delivery Units,Adults and Communities,Other Agencies - Third Party P,30130531,ASHTON LODGE CARE CENTRE,"2,657.14",02/08/2016
Delivery Units,Adults and Communities,Other Agencies - Third Party P,30130540,ASHTON LODGE CARE CENTRE,"2,448.78",02/08/2016
Delivery Units,Adults and Communities,Other Agencies - Third Party P,30130546,ASHTON LODGE CARE CENTRE,"2,502.14",02/08/2016
Delivery Units,Adults and Communities,Other Agencies - Third Party P,30130551,ASHTON LODGE CARE CENTRE,"2,655.55",02/08/2016
Delivery Units,Adults and Communities,Other Agencies - Third Party P,30130611,ASHTON LODGE CARE CENTRE,"2,448.78",02/08/2016
Delivery Units,Adults and Communities,Other Agencies - Third Party P,30130612,ASHTON LODGE CARE CENTRE,"3,268.29",02/08/2016
Delivery Units,Adults and Communities,Other Agencies - Third Party P,30130614,ASHTON LODGE CARE CENTRE,"2,397.72",02/08/2016
Delivery Units,Adults and Communities,Other Agencies - Third Party P,30130615,ASHTON LODGE CARE CENTRE,"2,448.78",02/08/2016
Delivery Units,Adults and Communities,Other Agencies - Third Party P,30130616,ASHTON LODGE CARE CENTRE,"3,932.57",02/08/2016
Delivery Units,Adults and Communities,Other Agencies - Third Party P,30130670,ASHTON LODGE CARE CENTRE,"2,397.72",02/08/2016
Delivery Units,Adults and Communities,Other Agencies - Third Party P,30131410,ASHTON LODGE CARE CENTRE,"2,320.37",11/08/2016
Delivery Units,Adults and Communities,Other Agencies - Third Party P,30131766,ASHTON LODGE CARE CENTRE,"2,742.86",18/08/2016
Delivery Units,Adults and Communities,Other Agencies - Third Party P,30130499,ASPEN VILLAGES LTD,"2,216.41",02/08/2016
Delivery Units,Adults and Communities,Other Agencies - Third Party P,30130500,ASPEN VILLAGES LTD,"4,871.43",02/08/2016
Delivery Units,Adults and Communities,Other Agencies - Third Party P,30130501,ASPEN VILLAGES LTD,"3,321.43",02/08/2016
Delivery Units,Adults and Communities,Other Agencies - Third Party P,30130503,ASPEN VILLAGES LTD,"3,542.86",02/08/2016
Delivery Units,Adults and Communities,Other Agencies - Third Party P,30130504,ASPEN VILLAGES LTD,"5,978.57",02/08/2016
Delivery Units,Adults and Communities,Other Agencies - Third Party P,30130505,ASPEN VILLAGES LTD,"2,418.04",02/08/2016
Delivery Units,Adults and Communities,Other Agencies - Third Party P,30130506,ASPEN VILLAGES LTD,"4,207.14",02/08/2016
Delivery Units,Adults and Communities,Other Agencies - Third Party P,30130507,ASPEN VILLAGES LTD,"4,871.43",02/08/2016
Delivery Units,Adults and Communities,Other Agencies - Third Party P,30130508,ASPEN VILLAGES LTD,"3,764.29",02/08/2016
Delivery Units,Adults and Communities,Other Agencies - Third Party P,30132471,ASPEN VILLAGES LTD,"2,216.41",22/08/2016
Delivery Units,Adults and Communities,Other Agencies - Third Party P,30132472,ASPEN VILLAGES LTD,"4,871.43",22/08/2016
Delivery Units,Adults and Communities,Other Agencies - Third Party P,30132473,ASPEN VILLAGES LTD,"3,321.43",22/08/2016
Delivery Units,Adults and Communities,Other Agencies - Third Party P,30132474,ASPEN VILLAGES LTD,"3,542.86",22/08/2016
Delivery Units,Adults and Communities,Other Agencies - Third Party P,30132475,ASPEN VILLAGES LTD,"5,978.57",22/08/2016
Delivery Units,Adults and Communities,Other Agencies - Third Party P,30132476,ASPEN VILLAGES LTD,"2,418.04",22/08/2016
Delivery Units,Adults and Communities,Other Agencies - Third Party P,30132477,ASPEN VILLAGES LTD,"4,207.14",22/08/2016
Delivery Units,Adults and Communities,Other Agencies - Third Party P,30132478,ASPEN VILLAGES LTD,"4,871.43",22/08/2016
Delivery Units,Adults and Communities,Other Agencies - Third Party P,30132479,ASPEN VILLAGES LTD,"3,764.29",22/08/2016
Delivery Units,Adults and Communities,Other Agencies - Third Party P,30130734,AUGUSTA CARE LTD,"4,490.08",03/08/2016
Delivery Units,Adults and Communities,Other Agencies - Third Party P,30130735,AUGUSTA CARE LTD,"17,318.88",03/08/2016
Delivery Units,Adults and Communities,Other Agencies - Third Party P,30130736,AUGUSTA CARE LTD,"4,490.08",03/08/2016
Delivery Units,Adults and Communities,Other Agencies - Third Party P,30130737,AUGUSTA CARE LTD,"4,490.08",03/08/2016
Delivery Units,Adults and Communities,Other Agencies - Third Party P,30130738,AUGUSTA CARE LTD,"4,490.08",03/08/2016
Delivery Units,Adults and Communities,Other Agencies - Third Party P,30133492,AUGUSTA CARE LTD,"4,490.08",30/08/2016
Delivery Units,Adults and Communities,Other Agencies - Third Party P,30130401,AUTUMN GARDENS,"3,160.00",02/08/2016
Delivery Units,Adults and Communities,Other Agencies - Third Party P,30130402,AUTUMN GARDENS,"4,800.00",02/08/2016
Delivery Units,Adults and Communities,Other Agencies - Third Party P,30130403,AUTUMN GARDENS,"2,880.00",02/08/2016
Delivery Units,Adults and Communities,Other Agencies - Third Party P,30130404,AUTUMN GARDENS,"2,800.00",02/08/2016
Delivery Units,Adults and Communities,Other Agencies - Third Party P,30130405,AUTUMN GARDENS,"2,184.04",02/08/2016
Delivery Units,Adults and Communities,Other Agencies - Third Party P,30133120,AUTUMN GARDENS,"1,160.96",26/08/2016
Delivery Units,Adults and Communities,Other Agencies - Third Party P,30127288,B & M CARE,"-1,208.80",02/08/2016
Delivery Units,Adults and Communities,Other Agencies - Third Party P,30130514,B & M CARE,"2,249.45",02/08/2016
Delivery Units,Adults and Communities,Other Agencies - Third Party P,30130515,B & M CARE,"3,082.29",02/08/2016
Delivery Units,Adults and Communities,Other Agencies - Third Party P,30130516,B & M CARE,"2,448.78",02/08/2016
Delivery Units,Adults and Communities,Other Agencies - Third Party P,30130517,B & M CARE,"2,448.78",02/08/2016
Delivery Units,Adults and Communities,Other Agencies - Third Party P,30130518,B & M CARE,"3,764.29",02/08/2016
Delivery Units,Adults and Communities,Other Agencies - Third Party P,30130519,B & M CARE,"3,764.29",02/08/2016
Delivery Units,Adults and Communities,Other Agencies - Third Party P,30130803,B & M CARE,"3,764.29",03/08/2016
Delivery Units,Adults and Communities,Other Agencies - Third Party P,30132493,B & M CARE,"2,249.45",22/08/2016
Delivery Units,Adults and Communities,Other Agencies - Third Party P,30132494,B & M CARE,"3,082.29",22/08/2016
Delivery Units,Adults and Communities,Other Agencies - Third Party P,30132495,B & M CARE,"2,448.78",22/08/2016
Delivery Units,Adults and Communities,Other Agencies - Third Party P,30132496,B & M CARE,"2,448.78",22/08/2016
Delivery Units,Adults and Communities,Other Agencies - Third Party P,30132497,B & M CARE,"3,764.29",22/08/2016
Delivery Units,Adults and Communities,Other Agencies - Third Party P,30132498,B & M CARE,"3,764.29",22/08/2016
Delivery Units,Adults and Communities,Other Agencies - Third Party P,30132499,B & M CARE,"3,764.29",22/08/2016
Delivery Units,Adults and Communities,Other Agencies - Third Party P,30130269,BAYTREE COMMUNITY CARE (LONDON) LTD,"2,890.26",01/08/2016
Delivery Units,Adults and Communities,Other Agencies - Third Party P,30130270,BAYTREE COMMUNITY CARE (LONDON) LTD,"2,686.64",01/08/2016
Delivery Units,Adults and Communities,Other Agencies - Third Party P,30130271,BAYTREE COMMUNITY CARE (LONDON) LTD,"2,081.97",01/08/2016
Delivery Units,Adults and Communities,Other Agencies - Third Party P,30130272,BAYTREE COMMUNITY CARE (LONDON) LTD,"2,371.46",01/08/2016
Delivery Units,Adults and Communities,Other Agencies - Third Party P,30130273,BAYTREE COMMUNITY CARE (LONDON) LTD,"3,538.37",01/08/2016
Delivery Units,Adults and Communities,Other Agencies - Third Party P,30132235,BAYTREE COMMUNITY CARE (LONDON) LTD,"2,890.26",22/08/2016
Delivery Units,Adults and Communities,Other Agencies - Third Party P,30132236,BAYTREE COMMUNITY CARE (LONDON) LTD,"2,686.64",22/08/2016
Delivery Units,Adults and Communities,Other Agencies - Third Party P,30132237,BAYTREE COMMUNITY CARE (LONDON) LTD,"2,081.97",22/08/2016
Delivery Units,Adults and Communities,Other Agencies - Third Party P,30132238,BAYTREE COMMUNITY CARE (LONDON) LTD,"2,371.46",22/08/2016
Delivery Units,Adults and Communities,Other Agencies - Third Party P,30132239,BAYTREE COMMUNITY CARE (LONDON) LTD,"3,538.37",22/08/2016
Delivery Units,Adults and Communities,Other Agencies - Third Party P,30132404,BAYTREE COMMUNITY CARE (LONDON) LTD,734.40,22/08/2016
Delivery Units,Adults and Communities,Other Agencies - Third Party P,30132405,BAYTREE COMMUNITY CARE (LONDON) LTD,"1,280.00",22/08/2016
Delivery Units,Adults and Communities,Other Agencies - Third Party P,30130477,BELMONT LODGE CARE CENTRE,"2,404.71",02/08/2016
Delivery Units,Adults and Communities,Other Agencies - Third Party P,30130266,BENSLOW MANAGEMENT COMPANY LIMITED,"2,418.04",01/08/2016
Delivery Units,Adults and Communities,Other Agencies - Third Party P,30132599,BENSLOW MANAGEMENT COMPANY LIMITED,"2,418.04",24/08/2016
Delivery Units,Adults and Communities,Other Agencies - Third Party P,30130479,BIRCHWOOD GRANGE CARE HOME,"2,657.14",02/08/2016
Delivery Units,Adults and Communities,Other Agencies - Third Party P,30132729,BIRCHWOOD GRANGE CARE HOME,"2,657.14",24/08/2016
Delivery Units,Adults and Communities,Other Agencies - Third Party P,30130349,BROOKDALE HEALTHCARE,"9,300.00",02/08/2016
Delivery Units,Adults and Communities,Other Agencies - Third Party P,30130350,BROOKDALE HEALTHCARE,"9,610.00",02/08/2016
Delivery Units,Adults and Communities,Other Agencies - Third Party P,30130351,BROOKDALE HEALTHCARE,"9,995.33",02/08/2016
Delivery Units,Adults and Communities,Other Agencies - Third Party P,30132326,BROOKDALE HEALTHCARE,"9,995.33",22/08/2016
Delivery Units,Adults and Communities,Other Agencies - Third Party P,30130807,BRUNSWICK SUPPORTED LIVING SERVICES,"1,412.68",03/08/2016
Delivery Units,Adults and Communities,Other Agencies - Third Party P,30130808,BRUNSWICK SUPPORTED LIVING SERVICES,"1,942.84",03/08/2016
Delivery Units,Adults and Communities,Other Agencies - Third Party P,30130815,BRUNSWICK SUPPORTED LIVING SERVICES,"2,153.92",03/08/2016
Delivery Units,Adults and Communities,Other Agencies - Third Party P,30130315,BUPA CARE HOMES,"3,258.81",01/08/2016
Delivery Units,Adults and Communities,Other Agencies - Third Party P,30130316,BUPA CARE HOMES,"3,321.43",01/08/2016
Delivery Units,Adults and Communities,Other Agencies - Third Party P,30130684,BUPA CARE HOMES,507.94,02/08/2016
Delivery Units,Adults and Communities,Other Agencies - Third Party P,30130804,BUPA CARE HOMES,"1,082.84",03/08/2016
Delivery Units,Adults and Communities,Other Agencies - Third Party P,30130805,BUPA CARE HOMES,-77.35,03/08/2016
Delivery Units,Adults and Communities,Other Agencies - Third Party P,30131743,BUPA CARE HOMES,"1,901.72",18/08/2016
Delivery Units,Adults and Communities,Other Agencies - Third Party P,30131744,BUPA CARE HOMES,"2,249.45",18/08/2016
Delivery Units,Adults and Communities,Other Agencies - Third Party P,30131745,BUPA CARE HOMES,947.91,18/08/2016
Delivery Units,Adults and Communities,Other Agencies - Third Party P,30131746,BUPA CARE HOMES,507.94,18/08/2016
Delivery Units,Adults and Communities,Other Agencies - Third Party P,30131747,BUPA CARE HOMES,"2,785.71",18/08/2016
Delivery Units,Adults and Communities,Other Agencies - Third Party P,30131748,BUPA CARE HOMES,"4,285.71",18/08/2016
Delivery Units,Adults and Communities,Other Agencies - Third Party P,30131749,BUPA CARE HOMES,"2,569.89",18/08/2016
Delivery Units,Adults and Communities,Other Agencies - Third Party P,30131750,BUPA CARE HOMES,"2,318.93",18/08/2016
Delivery Units,Adults and Communities,Other Agencies - Third Party P,30131751,BUPA CARE HOMES,"2,318.93",18/08/2016
Delivery Units,Adults and Communities,Other Agencies - Third Party P,30131752,BUPA CARE HOMES,"2,878.57",18/08/2016
Delivery Units,Adults and Communities,Other Agencies - Third Party P,30131753,BUPA CARE HOMES,"4,428.57",18/08/2016
Delivery Units,Adults and Communities,Other Agencies - Third Party P,30131754,BUPA CARE HOMES,"2,655.55",18/08/2016
Delivery Units,Adults and Communities,Other Agencies - Third Party P,30131755,BUPA CARE HOMES,"2,552.41",18/08/2016
Delivery Units,Adults and Communities,Other Agencies - Third Party P,30132165,BUPA CARE HOMES,72.56,19/08/2016
Delivery Units,Adults and Communities,Other Agencies - Third Party P,30132166,BUPA CARE HOMES,507.94,19/08/2016
Delivery Units,Adults and Communities,Other Agencies - Third Party P,30132168,BUPA CARE HOMES,"2,244.13",19/08/2016
Delivery Units,Adults and Communities,Other Agencies - Third Party P,30132169,BUPA CARE HOMES,"2,244.13",19/08/2016
Delivery Units,Adults and Communities,Other Agencies - Third Party P,30132170,BUPA CARE HOMES,"2,320.37",19/08/2016
Delivery Units,Adults and Communities,Other Agencies - Third Party P,30132171,BUPA CARE HOMES,"7,750.00",19/08/2016
Delivery Units,Adults and Communities,Other Agencies - Third Party P,30132196,BUPA CARE HOMES,"2,658.25",19/08/2016
Delivery Units,Adults and Communities,Other Agencies - Third Party P,30132197,BUPA CARE HOMES,"2,735.64",19/08/2016
Delivery Units,Adults and Communities,Other Agencies - Third Party P,30132295,BUPA CARE HOMES,"2,216.41",22/08/2016
Delivery Units,Adults and Communities,Other Agencies - Third Party P,30132296,BUPA CARE HOMES,"2,116.86",22/08/2016
Delivery Units,Adults and Communities,Other Agencies - Third Party P,30132297,BUPA CARE HOMES,"2,655.55",22/08/2016
Delivery Units,Adults and Communities,Other Agencies - Third Party P,30132503,BUPA CARE HOMES,"7,750.00",22/08/2016
Delivery Units,Adults and Communities,Other Agencies - Third Party P,30132504,BUPA CARE HOMES,"3,258.81",22/08/2016
Delivery Units,Adults and Communities,Other Agencies - Third Party P,30132743,BUPA CARE HOMES,"3,321.43",24/08/2016
Delivery Units,Adults and Communities,Other Agencies - Third Party P,30132744,BUPA CARE HOMES,"2,448.69",24/08/2016
Delivery Units,Adults and Communities,Other Agencies - Third Party P,30132808,BUPA CARE HOMES,"4,842.64",23/08/2016
Delivery Units,Adults and Communities,Other Agencies - Third Party P,30133200,BUPA CARE HOMES,507.94,26/08/2016
Delivery Units,Adults and Communities,Other Agencies - Third Party P,30133201,BUPA CARE HOMES,"1,753.45",26/08/2016
Delivery Units,Adults and Communities,Other Agencies - Third Party P,30133204,BUPA CARE HOMES,"2,227.80",26/08/2016
Delivery Units,Adults and Communities,Other Agencies - Third Party P,30133205,BUPA CARE HOMES,"2,227.80",26/08/2016
Delivery Units,Adults and Communities,Other Agencies - Third Party P,30133206,BUPA CARE HOMES,"2,380.31",26/08/2016
Delivery Units,Adults and Communities,Other Agencies - Third Party P,30133207,BUPA CARE HOMES,224.41,26/08/2016
Delivery Units,Adults and Communities,Other Agencies - Third Party P,30133234,BUPA CARE HOMES,"2,314.02",26/08/2016
Delivery Units,Adults and Communities,Other Agencies - Third Party P,30133235,BUPA CARE HOMES,"2,586.20",26/08/2016
Delivery Units,Adults and Communities,Other Agencies - Third Party P,30133407,BUPA CARE HOMES,"2,397.63",30/08/2016
Delivery Units,Adults and Communities,Other Agencies - Third Party P,30133408,BUPA CARE HOMES,"2,924.05",30/08/2016
Delivery Units,Adults and Communities,Other Agencies - Third Party P,30133409,BUPA CARE HOMES,"3,711.14",30/08/2016
Delivery Units,Adults and Communities,Other Agencies - Third Party P,30130293,BUPA CARE HOMES - BRUNSWICK COURT,"3,498.57",01/08/2016
Delivery Units,Adults and Communities,Other Agencies - Third Party P,30132730,BUPA CARE HOMES - BRUNSWICK COURT,"3,498.57",24/08/2016
Delivery Units,Adults and Communities,Other Agencies - Third Party P,30130287,BUPA NURSING HOMES LTD - ARKLEY,"2,570.70",01/08/2016
Delivery Units,Adults and Communities,Other Agencies - Third Party P,30130288,BUPA NURSING HOMES LTD - ARKLEY,"2,657.14",01/08/2016
Delivery Units,Adults and Communities,Other Agencies - Third Party P,30130671,BUPA NURSING HOMES LTD - ARKLEY,"2,165.68",02/08/2016
Delivery Units,Adults and Communities,Other Agencies - Third Party P,30130672,BUPA NURSING HOMES LTD - ARKLEY,"2,094.52",02/08/2016
Delivery Units,Adults and Communities,Other Agencies - Third Party P,30130673,BUPA NURSING HOMES LTD - ARKLEY,"2,094.52",02/08/2016
Delivery Units,Adults and Communities,Other Agencies - Third Party P,30130674,BUPA NURSING HOMES LTD - ARKLEY,"2,094.52",02/08/2016
Delivery Units,Adults and Communities,Other Agencies - Third Party P,30130675,BUPA NURSING HOMES LTD - ARKLEY,"1,553.92",02/08/2016
Delivery Units,Adults and Communities,Other Agencies - Third Party P,30130676,BUPA NURSING HOMES LTD - ARKLEY,"2,094.52",02/08/2016
Delivery Units,Adults and Communities,Other Agencies - Third Party P,30130677,BUPA NURSING HOMES LTD - ARKLEY,"2,321.92",02/08/2016
Delivery Units,Adults and Communities,Other Agencies - Third Party P,30130678,BUPA NURSING HOMES LTD - ARKLEY,"2,165.68",02/08/2016
Delivery Units,Adults and Communities,Other Agencies - Third Party P,30130679,BUPA NURSING HOMES LTD - ARKLEY,"3,400.00",02/08/2016
Delivery Units,Adults and Communities,Other Agencies - Third Party P,30132726,BUPA NURSING HOMES LTD - ARKLEY,"2,570.70",24/08/2016
Delivery Units,Adults and Communities,Other Agencies - Third Party P,30132727,BUPA NURSING HOMES LTD - ARKLEY,"2,657.14",24/08/2016
Delivery Units,Adults and Communities,Other Agencies - Third Party P,30132097,CAMPHILL DEVON COMMUNITY LIMITED,"4,508.00",19/08/2016
Delivery Units,Adults and Communities,Other Agencies - Third Party P,30132379,CANDLE COURT NURSING HOME,"5,314.29",22/08/2016
Delivery Units,Adults and Communities,Other Agencies - Third Party P,30132380,CANDLE COURT NURSING HOME,"3,764.29",22/08/2016
Delivery Units,Adults and Communities,Other Agencies - Third Party P,30132381,CANDLE COURT NURSING HOME,"2,655.55",22/08/2016
Delivery Units,Adults and Communities,Other Agencies - Third Party P,30133404,CAPITAL HOMECARE (UK) LIMITED,"1,116.40",30/08/2016
Delivery Units,Adults and Communities,Other Agencies - Third Party P,30131394,CARE WORLDWIDE (LONDON) LTD,"2,680.88",11/08/2016
Delivery Units,Adults and Communities,Other Agencies - Third Party P,30131395,CARE WORLDWIDE (LONDON) LTD,"3,936.46",11/08/2016
Delivery Units,Adults and Communities,Other Agencies - Third Party P,30131396,CARE WORLDWIDE (LONDON) LTD,"4,246.53",11/08/2016
Delivery Units,Adults and Communities,Other Agencies - Third Party P,30131397,CARE WORLDWIDE (LONDON) LTD,"2,685.98",11/08/2016
Delivery Units,Adults and Communities,Other Agencies - Third Party P,30131398,CARE WORLDWIDE (LONDON) LTD,"4,400.13",11/08/2016
Delivery Units,Adults and Communities,Other Agencies - Third Party P,30130557,CARETECH COMMUNITY SERVICES LTD,"4,628.03",02/08/2016
Delivery Units,Adults and Communities,Other Agencies - Third Party P,30130562,CARETECH COMMUNITY SERVICES LTD,475.27,02/08/2016
Delivery Units,Adults and Communities,Other Agencies - Third Party P,30130563,CARETECH COMMUNITY SERVICES LTD,"4,627.86",02/08/2016
Delivery Units,Adults and Communities,Other Agencies - Third Party P,30130564,CARETECH COMMUNITY SERVICES LTD,"4,646.55",02/08/2016
Delivery Units,Adults and Communities,Other Agencies - Third Party P,30130566,CARETECH COMMUNITY SERVICES LTD,722.61,02/08/2016
Delivery Units,Adults and Communities,Other Agencies - Third Party P,30130567,CARETECH COMMUNITY SERVICES LTD,"7,621.57",02/08/2016
Delivery Units,Adults and Communities,Other Agencies - Third Party P,30130568,CARETECH COMMUNITY SERVICES LTD,816.14,02/08/2016
Delivery Units,Adults and Communities,Other Agencies - Third Party P,30130569,CARETECH COMMUNITY SERVICES LTD,"4,627.86",02/08/2016
Delivery Units,Adults and Communities,Other Agencies - Third Party P,30130571,CARETECH COMMUNITY SERVICES LTD,"4,627.86",02/08/2016
Delivery Units,Adults and Communities,Other Agencies - Third Party P,30130572,CARETECH COMMUNITY SERVICES LTD,919.15,02/08/2016
Delivery Units,Adults and Communities,Other Agencies - Third Party P,30130575,CARETECH COMMUNITY SERVICES LTD,"1,088.14",02/08/2016
Delivery Units,Adults and Communities,Other Agencies - Third Party P,30130580,CARETECH COMMUNITY SERVICES LTD,"1,088.14",02/08/2016
Delivery Units,Adults and Communities,Other Agencies - Third Party P,30130584,CARETECH COMMUNITY SERVICES LTD,"1,088.14",02/08/2016
Delivery Units,Adults and Communities,Other Agencies - Third Party P,30130585,CARETECH COMMUNITY SERVICES LTD,"2,589.74",02/08/2016
Delivery Units,Adults and Communities,Other Agencies - Third Party P,30130586,CARETECH COMMUNITY SERVICES LTD,"4,627.86",02/08/2016
Delivery Units,Adults and Communities,Other Agencies - Third Party P,30130587,CARETECH COMMUNITY SERVICES LTD,"2,149.94",02/08/2016
Delivery Units,Adults and Communities,Other Agencies - Third Party P,30130588,CARETECH COMMUNITY SERVICES LTD,"4,782.86",02/08/2016
Delivery Units,Adults and Communities,Other Agencies - Third Party P,30130590,CARETECH COMMUNITY SERVICES LTD,"1,527.86",02/08/2016
Delivery Units,Adults and Communities,Other Agencies - Third Party P,30130592,CARETECH COMMUNITY SERVICES LTD,919.15,02/08/2016
Delivery Units,Adults and Communities,Other Agencies - Third Party P,30132176,CARETECH COMMUNITY SERVICES LTD,"6,568.82",19/08/2016
Delivery Units,Adults and Communities,Other Agencies - Third Party P,30132178,CARETECH COMMUNITY SERVICES LTD,"1,088.14",19/08/2016
Delivery Units,Adults and Communities,Other Agencies - Third Party P,30132766,CARETECH COMMUNITY SERVICES LTD,475.27,30/08/2016
Delivery Units,Adults and Communities,Other Agencies - Third Party P,30132767,CARETECH COMMUNITY SERVICES LTD,"4,627.86",30/08/2016
Delivery Units,Adults and Communities,Other Agencies - Third Party P,30132768,CARETECH COMMUNITY SERVICES LTD,"4,646.55",30/08/2016
Delivery Units,Adults and Communities,Other Agencies - Third Party P,30132770,CARETECH COMMUNITY SERVICES LTD,722.61,30/08/2016
Delivery Units,Adults and Communities,Other Agencies - Third Party P,30132771,CARETECH COMMUNITY SERVICES LTD,"7,621.57",30/08/2016
Delivery Units,Adults and Communities,Other Agencies - Third Party P,30132772,CARETECH COMMUNITY SERVICES LTD,"4,627.86",30/08/2016
Delivery Units,Adults and Communities,Other Agencies - Third Party P,30132774,CARETECH COMMUNITY SERVICES LTD,"4,627.86",30/08/2016
Delivery Units,Adults and Communities,Other Agencies - Third Party P,30132775,CARETECH COMMUNITY SERVICES LTD,919.15,30/08/2016
Delivery Units,Adults and Communities,Other Agencies - Third Party P,30133232,CARETECH COMMUNITY SERVICES LTD,"1,088.14",30/08/2016
Delivery Units,Adults and Communities,Other Agencies - Third Party P,30130765,CARING HOMES HEALTHCARE GROUP,"3,200.00",03/08/2016
Delivery Units,Adults and Communities,Other Agencies - Third Party P,30130629,CARLTON COURT (TLC GROUP),"3,764.29",02/08/2016
Delivery Units,Adults and Communities,Other Agencies - Third Party P,30130630,CARLTON COURT (TLC GROUP),"4,428.57",02/08/2016
Delivery Units,Adults and Communities,Other Agencies - Third Party P,30130631,CARLTON COURT (TLC GROUP),"2,448.78",02/08/2016
Delivery Units,Adults and Communities,Other Agencies - Third Party P,30130632,CARLTON COURT (TLC GROUP),"2,249.45",02/08/2016
Delivery Units,Adults and Communities,Other Agencies - Third Party P,30130633,CARLTON COURT (TLC GROUP),"2,249.45",02/08/2016
Delivery Units,Adults and Communities,Other Agencies - Third Party P,30130634,CARLTON COURT (TLC GROUP),"2,655.55",02/08/2016
Delivery Units,Adults and Communities,Other Agencies - Third Party P,30130635,CARLTON COURT (TLC GROUP),"2,448.78",02/08/2016
Delivery Units,Adults and Communities,Other Agencies - Third Party P,30130636,CARLTON COURT (TLC GROUP),"2,655.55",02/08/2016
Delivery Units,Adults and Communities,Other Agencies - Third Party P,30130637,CARLTON COURT (TLC GROUP),"2,655.55",02/08/2016
Delivery Units,Adults and Communities,Other Agencies - Third Party P,30130639,CARLTON COURT (TLC GROUP),"2,655.55",02/08/2016
Delivery Units,Adults and Communities,Other Agencies - Third Party P,30130640,CARLTON COURT (TLC GROUP),"4,428.57",02/08/2016
Delivery Units,Adults and Communities,Other Agencies - Third Party P,30130641,CARLTON COURT (TLC GROUP),"3,720.93",02/08/2016
Delivery Units,Adults and Communities,Other Agencies - Third Party P,30130642,CARLTON COURT (TLC GROUP),"2,655.55",02/08/2016
Delivery Units,Adults and Communities,Other Agencies - Third Party P,30130643,CARLTON COURT (TLC GROUP),"2,397.72",02/08/2016
Delivery Units,Adults and Communities,Other Agencies - Third Party P,30132062,CARLTON COURT (TLC GROUP),"4,428.57",19/08/2016
Delivery Units,Adults and Communities,Other Agencies - Third Party P,30132063,CARLTON COURT (TLC GROUP),"9,857.14",19/08/2016
Delivery Units,Adults and Communities,Other Agencies - Third Party P,30132064,CARLTON COURT (TLC GROUP),"4,285.71",19/08/2016
Delivery Units,Adults and Communities,Other Agencies - Third Party P,30132066,CARLTON COURT (TLC GROUP),"4,285.71",19/08/2016
Delivery Units,Adults and Communities,Other Agencies - Third Party P,30132217,CARLTON COURT (TLC GROUP),"3,764.29",22/08/2016
Delivery Units,Adults and Communities,Other Agencies - Third Party P,30132218,CARLTON COURT (TLC GROUP),"4,428.57",22/08/2016
Delivery Units,Adults and Communities,Other Agencies - Third Party P,30132219,CARLTON COURT (TLC GROUP),"2,448.78",22/08/2016
Delivery Units,Adults and Communities,Other Agencies - Third Party P,30132220,CARLTON COURT (TLC GROUP),"2,249.45",22/08/2016
Delivery Units,Adults and Communities,Other Agencies - Third Party P,30132221,CARLTON COURT (TLC GROUP),"2,249.45",22/08/2016
Delivery Units,Adults and Communities,Other Agencies - Third Party P,30132222,CARLTON COURT (TLC GROUP),"2,655.55",22/08/2016
Delivery Units,Adults and Communities,Other Agencies - Third Party P,30132223,CARLTON COURT (TLC GROUP),"2,448.78",22/08/2016
Delivery Units,Adults and Communities,Other Agencies - Third Party P,30132224,CARLTON COURT (TLC GROUP),"2,655.55",22/08/2016
Delivery Units,Adults and Communities,Other Agencies - Third Party P,30132225,CARLTON COURT (TLC GROUP),"2,655.55",22/08/2016
Delivery Units,Adults and Communities,Other Agencies - Third Party P,30132227,CARLTON COURT (TLC GROUP),"2,655.55",22/08/2016
Delivery Units,Adults and Communities,Other Agencies - Third Party P,30132228,CARLTON COURT (TLC GROUP),"4,428.57",22/08/2016
Delivery Units,Adults and Communities,Other Agencies - Third Party P,30132229,CARLTON COURT (TLC GROUP),"3,720.93",22/08/2016
Delivery Units,Adults and Communities,Other Agencies - Third Party P,30132230,CARLTON COURT (TLC GROUP),"2,655.55",22/08/2016
Delivery Units,Adults and Communities,Other Agencies - Third Party P,30132231,CARLTON COURT (TLC GROUP),"2,397.72",22/08/2016
Delivery Units,Adults and Communities,Other Agencies - Third Party P,30130380,CARMEN LODGE RESIDENTIAL HOME,"2,739.47",02/08/2016
Delivery Units,Adults and Communities,Other Agencies - Third Party P,30130383,CATHERINE LODGE,"2,211.80",02/08/2016
Delivery Units,Adults and Communities,Other Agencies - Third Party P,30130384,CATHERINE LODGE,"3,000.00",02/08/2016
Delivery Units,Adults and Communities,Other Agencies - Third Party P,30131572,CATHERINE LODGE,"2,211.80",18/08/2016
Delivery Units,Adults and Communities,Other Agencies - Third Party P,30131573,CATHERINE LODGE,"9,479.14",18/08/2016
Delivery Units,Adults and Communities,Other Agencies - Third Party P,30132108,CATHERINE LODGE,"3,000.00",19/08/2016
Delivery Units,Adults and Communities,Other Agencies - Third Party P,30132111,CATHERINE LODGE,"2,211.80",19/08/2016
Delivery Units,Adults and Communities,Other Agencies - Third Party P,30132398,CATHERINE LODGE,"2,211.80",22/08/2016
Delivery Units,Adults and Communities,Other Agencies - Third Party P,30130705,CDR CARE LTD,800.00,03/08/2016
Delivery Units,Adults and Communities,Other Agencies - Third Party P,30130706,CDR CARE LTD,800.00,03/08/2016
Delivery Units,Adults and Communities,Other Agencies - Third Party P,30131168,CDR CARE LTD,"2,000.00",09/08/2016
Delivery Units,Adults and Communities,Other Agencies - Third Party P,30131169,CDR CARE LTD,"2,000.00",09/08/2016
Delivery Units,Adults and Communities,Other Agencies - Third Party P,30130485,CEDARS NURSING HOME,"2,565.78",02/08/2016
Delivery Units,Adults and Communities,Other Agencies - Third Party P,30130486,CEDARS NURSING HOME,"2,565.78",02/08/2016
Delivery Units,Adults and Communities,Other Agencies - Third Party P,30130487,CEDARS NURSING HOME,"2,353.25",02/08/2016
Delivery Units,Adults and Communities,Other Agencies - Third Party P,30130488,CEDARS NURSING HOME,"2,565.78",02/08/2016
Delivery Units,Adults and Communities,Other Agencies - Third Party P,30130489,CEDARS NURSING HOME,"2,314.02",02/08/2016
Delivery Units,Adults and Communities,Other Agencies - Third Party P,30130490,CEDARS NURSING HOME,"2,353.25",02/08/2016
Delivery Units,Adults and Communities,Other Agencies - Third Party P,30131574,CENTRAL MIDDLESEX SKILLS,"1,085.52",18/08/2016
Delivery Units,Adults and Communities,Other Agencies - Third Party P,30131575,CENTRAL MIDDLESEX SKILLS,814.14,18/08/2016
Delivery Units,Adults and Communities,Other Agencies - Third Party P,30130263,CHATSWORTH CARE,"10,606.43",01/08/2016
Delivery Units,Adults and Communities,Other Agencies - Third Party P,30132592,CHEQUERS TRANSPORT LIMITED,187.88,24/08/2016
Delivery Units,Adults and Communities,Other Agencies - Third Party P,30132593,CHEQUERS TRANSPORT LIMITED,80.52,24/08/2016
Delivery Units,Adults and Communities,Other Agencies - Third Party P,30133099,CHEQUERS TRANSPORT LIMITED,480.00,26/08/2016
Delivery Units,Adults and Communities,Other Agencies - Third Party P,30133100,CHEQUERS TRANSPORT LIMITED,480.00,26/08/2016
Delivery Units,Adults and Communities,Other Agencies - Third Party P,30130297,CLOVELLY HOUSE RESID. HOME LTD,"2,600.00",01/08/2016
Delivery Units,Adults and Communities,Other Agencies - Third Party P,30130298,CLOVELLY HOUSE RESID. HOME LTD,"2,700.00",01/08/2016
Delivery Units,Adults and Communities,Other Agencies - Third Party P,30130299,CLOVELLY HOUSE RESID. HOME LTD,"2,211.80",01/08/2016
Delivery Units,Adults and Communities,Other Agencies - Third Party P,30130300,CLOVELLY HOUSE RESID. HOME LTD,"2,600.00",01/08/2016
Delivery Units,Adults and Communities,Other Agencies - Third Party P,30130301,CLOVELLY HOUSE RESID. HOME LTD,"2,211.80",01/08/2016
Delivery Units,Adults and Communities,Other Agencies - Third Party P,30130302,CLOVELLY HOUSE RESID. HOME LTD,"1,900.40",01/08/2016
Delivery Units,Adults and Communities,Other Agencies - Third Party P,30130303,CLOVELLY HOUSE RESID. HOME LTD,"2,600.00",01/08/2016
Delivery Units,Adults and Communities,Other Agencies - Third Party P,30130304,CLOVELLY HOUSE RESID. HOME LTD,"2,211.80",01/08/2016
Delivery Units,Adults and Communities,Other Agencies - Third Party P,30130305,CLOVELLY HOUSE RESID. HOME LTD,"2,211.80",01/08/2016
Delivery Units,Adults and Communities,Other Agencies - Third Party P,30132461,CLOVELLY HOUSE RESID. HOME LTD,"2,600.00",22/08/2016
Delivery Units,Adults and Communities,Other Agencies - Third Party P,30132462,CLOVELLY HOUSE RESID. HOME LTD,"2,700.00",22/08/2016
Delivery Units,Adults and Communities,Other Agencies - Third Party P,30132463,CLOVELLY HOUSE RESID. HOME LTD,"2,211.80",22/08/2016
Delivery Units,Adults and Communities,Other Agencies - Third Party P,30132464,CLOVELLY HOUSE RESID. HOME LTD,"2,600.00",22/08/2016
Delivery Units,Adults and Communities,Other Agencies - Third Party P,30132465,CLOVELLY HOUSE RESID. HOME LTD,"2,211.80",22/08/2016
Delivery Units,Adults and Communities,Other Agencies - Third Party P,30132466,CLOVELLY HOUSE RESID. HOME LTD,"2,600.00",22/08/2016
Delivery Units,Adults and Communities,Other Agencies - Third Party P,30132467,CLOVELLY HOUSE RESID. HOME LTD,"2,211.80",22/08/2016
Delivery Units,Adults and Communities,Other Agencies - Third Party P,30133190,CLOVELLY HOUSE RESID. HOME LTD,"1,900.40",26/08/2016
Delivery Units,Adults and Communities,Other Agencies - Third Party P,30130652,CMG HOMES LTD,"3,086.84",02/08/2016
Delivery Units,Adults and Communities,Other Agencies - Third Party P,30132060,CMG HOMES LTD,285.03,19/08/2016
Delivery Units,Adults and Communities,Other Agencies - Third Party P,30133056,CMG HOMES LTD,592.40,26/08/2016
Delivery Units,Adults and Communities,Other Agencies - Third Party P,30133057,CMG HOMES LTD,592.40,26/08/2016
Delivery Units,Adults and Communities,Other Agencies - Third Party P,30133096,CMG HOMES LTD,510.00,26/08/2016
Delivery Units,Adults and Communities,Other Agencies - Third Party P,30133097,CMG HOMES LTD,510.00,26/08/2016
Delivery Units,Adults and Communities,Other Agencies - Third Party P,30130364,COMPLETE CARE SERVICES LTD,"5,426.86",02/08/2016
Delivery Units,Adults and Communities,Other Agencies - Third Party P,30132368,COMPLETE CARE SERVICES LTD,"5,426.86",22/08/2016
Delivery Units,Adults and Communities,Other Agencies - Third Party P,30130325,CONNIFERS CARE LTD,"7,375.83",01/08/2016
Delivery Units,Adults and Communities,Other Agencies - Third Party P,30130687,CONNIFERS CARE LTD,"7,375.83",02/08/2016
Delivery Units,Adults and Communities,Other Agencies - Third Party P,30132304,CONNIFERS CARE LTD,"7,375.83",30/08/2016
Delivery Units,Adults and Communities,Other Agencies - Third Party P,30130656,CRESWICK HOUSE,"7,123.12",04/08/2016
Delivery Units,Adults and Communities,Other Agencies - Third Party P,30132099,CRESWICK HOUSE,"7,123.12",19/08/2016
Delivery Units,Adults and Communities,Other Agencies - Third Party P,30131590,DABB PAA,712.80,18/08/2016
Delivery Units,Adults and Communities,Other Agencies - Third Party P,30131017,DANA CARE LIMITED,"9,902.29",05/08/2016
Delivery Units,Adults and Communities,Other Agencies - Third Party P,30130534,DELAMER HOUSE,"2,435.71",02/08/2016
Delivery Units,Adults and Communities,Other Agencies - Third Party P,30132449,DELAMER HOUSE,"2,435.71",22/08/2016
Delivery Units,Adults and Communities,Other Agencies - Third Party P,30131577,DERWEN COLLEGE,"5,947.00",18/08/2016
Delivery Units,Adults and Communities,Other Agencies - Third Party P,30131578,DERWEN COLLEGE,"5,947.00",18/08/2016
Delivery Units,Adults and Communities,Other Agencies - Third Party P,30131579,DERWEN COLLEGE,"5,947.00",18/08/2016
Delivery Units,Adults and Communities,Other Agencies - Third Party P,30131399,DEVELOPMENT AND LEARNING OPPORTUNIT,"2,025.00",11/08/2016
Delivery Units,Adults and Communities,Other Agencies - Third Party P,30131401,DEVELOPMENT AND LEARNING OPPORTUNIT,652.40,11/08/2016
Delivery Units,Adults and Communities,Other Agencies - Third Party P,30131402,DEVELOPMENT AND LEARNING OPPORTUNIT,"1,056.00",11/08/2016
Delivery Units,Adults and Communities,Other Agencies - Third Party P,30131403,DEVELOPMENT AND LEARNING OPPORTUNIT,"1,875.00",11/08/2016
Delivery Units,Adults and Communities,Other Agencies - Third Party P,30131404,DEVELOPMENT AND LEARNING OPPORTUNIT,"1,053.00",11/08/2016
Delivery Units,Adults and Communities,Other Agencies - Third Party P,30131405,DEVELOPMENT AND LEARNING OPPORTUNIT,500.00,11/08/2016
Delivery Units,Adults and Communities,Other Agencies - Third Party P,30131407,DEVELOPMENT AND LEARNING OPPORTUNIT,306.00,11/08/2016
Delivery Units,Adults and Communities,Other Agencies - Third Party P,30130880,DILLON CARE LTD,"3,900.00",03/08/2016
Delivery Units,Adults and Communities,Other Agencies - Third Party P,30130821,DIMENSIONS UK,149.60,03/08/2016
Delivery Units,Adults and Communities,Other Agencies - Third Party P,30130822,DIMENSIONS UK,224.40,03/08/2016
Delivery Units,Adults and Communities,Other Agencies - Third Party P,30130823,DIMENSIONS UK,149.60,03/08/2016
Delivery Units,Adults and Communities,Other Agencies - Third Party P,30130824,DIMENSIONS UK,149.60,03/08/2016
Delivery Units,Adults and Communities,Other Agencies - Third Party P,30130825,DIMENSIONS UK,74.80,03/08/2016
Delivery Units,Adults and Communities,Other Agencies - Third Party P,30130826,DIMENSIONS UK,74.80,03/08/2016
Delivery Units,Adults and Communities,Other Agencies - Third Party P,30130827,DIMENSIONS UK,74.80,03/08/2016
Delivery Units,Adults and Communities,Other Agencies - Third Party P,30130828,DIMENSIONS UK,149.60,03/08/2016
Delivery Units,Adults and Communities,Other Agencies - Third Party P,30130829,DIMENSIONS UK,149.60,03/08/2016
Delivery Units,Adults and Communities,Other Agencies - Third Party P,30130830,DIMENSIONS UK,149.60,03/08/2016
Delivery Units,Adults and Communities,Other Agencies - Third Party P,30130831,DIMENSIONS UK,74.80,03/08/2016
Delivery Units,Adults and Communities,Other Agencies - Third Party P,30130832,DIMENSIONS UK,74.80,03/08/2016
Delivery Units,Adults and Communities,Other Agencies - Third Party P,30130833,DIMENSIONS UK,523.60,03/08/2016
Delivery Units,Adults and Communities,Other Agencies - Third Party P,30130834,DIMENSIONS UK,299.20,03/08/2016
Delivery Units,Adults and Communities,Other Agencies - Third Party P,30130835,DIMENSIONS UK,224.40,03/08/2016
Delivery Units,Adults and Communities,Other Agencies - Third Party P,30130836,DIMENSIONS UK,299.20,03/08/2016
Delivery Units,Adults and Communities,Other Agencies - Third Party P,30130837,DIMENSIONS UK,149.60,03/08/2016
Delivery Units,Adults and Communities,Other Agencies - Third Party P,30130838,DIMENSIONS UK,448.80,03/08/2016
Delivery Units,Adults and Communities,Other Agencies - Third Party P,30130839,DIMENSIONS UK,149.60,03/08/2016
Delivery Units,Adults and Communities,Other Agencies - Third Party P,30130840,DIMENSIONS UK,112.20,03/08/2016
Delivery Units,Adults and Communities,Other Agencies - Third Party P,30130841,DIMENSIONS UK,149.60,03/08/2016
Delivery Units,Adults and Communities,Other Agencies - Third Party P,30130842,DIMENSIONS UK,149.60,03/08/2016
Delivery Units,Adults and Communities,Other Agencies - Third Party P,30130843,DIMENSIONS UK,149.60,03/08/2016
Delivery Units,Adults and Communities,Other Agencies - Third Party P,30130844,DIMENSIONS UK,448.80,03/08/2016
Delivery Units,Adults and Communities,Other Agencies - Third Party P,30130845,DIMENSIONS UK,149.60,03/08/2016
Delivery Units,Adults and Communities,Other Agencies - Third Party P,30130846,DIMENSIONS UK,149.60,03/08/2016
Delivery Units,Adults and Communities,Other Agencies - Third Party P,30130847,DIMENSIONS UK,374.00,03/08/2016
Delivery Units,Adults and Communities,Other Agencies - Third Party P,30130848,DIMENSIONS UK,149.60,03/08/2016
Delivery Units,Adults and Communities,Other Agencies - Third Party P,30130849,DIMENSIONS UK,"1,122.00",03/08/2016
Delivery Units,Adults and Communities,Other Agencies - Third Party P,30130850,DIMENSIONS UK,"1,570.80",03/08/2016
Delivery Units,Adults and Communities,Other Agencies - Third Party P,30130851,DIMENSIONS UK,224.40,03/08/2016
Delivery Units,Adults and Communities,Other Agencies - Third Party P,30130852,DIMENSIONS UK,"1,570.80",03/08/2016
Delivery Units,Adults and Communities,Other Agencies - Third Party P,30130853,DIMENSIONS UK,149.60,03/08/2016
Delivery Units,Adults and Communities,Other Agencies - Third Party P,30130854,DIMENSIONS UK,374.00,03/08/2016
Delivery Units,Adults and Communities,Other Agencies - Third Party P,30130855,DIMENSIONS UK,149.60,03/08/2016
Delivery Units,Adults and Communities,Other Agencies - Third Party P,30130856,DIMENSIONS UK,"1,122.00",03/08/2016
Delivery Units,Adults and Communities,Other Agencies - Third Party P,30130857,DIMENSIONS UK,"1,570.80",03/08/2016
Delivery Units,Adults and Communities,Other Agencies - Third Party P,30130858,DIMENSIONS UK,224.40,03/08/2016
Delivery Units,Adults and Communities,Other Agencies - Third Party P,30130859,DIMENSIONS UK,149.60,03/08/2016
Delivery Units,Adults and Communities,Other Agencies - Third Party P,30130860,DIMENSIONS UK,374.00,03/08/2016
Delivery Units,Adults and Communities,Other Agencies - Third Party P,30130861,DIMENSIONS UK,149.60,03/08/2016
Delivery Units,Adults and Communities,Other Agencies - Third Party P,30130862,DIMENSIONS UK,"1,122.00",03/08/2016
Delivery Units,Adults and Communities,Other Agencies - Third Party P,30130863,DIMENSIONS UK,"1,570.80",03/08/2016
Delivery Units,Adults and Communities,Other Agencies - Third Party P,30130864,DIMENSIONS UK,74.80,03/08/2016
Delivery Units,Adults and Communities,Other Agencies - Third Party P,30130866,DIMENSIONS UK,"2,128.00",03/08/2016
Delivery Units,Adults and Communities,Other Agencies - Third Party P,30130871,DIMENSIONS UK,"1,541.00",03/08/2016
Delivery Units,Adults and Communities,Other Agencies - Third Party P,30130877,DIMENSIONS UK,"6,025.32",03/08/2016
Delivery Units,Adults and Communities,Other Agencies - Third Party P,30130878,DIMENSIONS UK,"4,495.76",03/08/2016
Delivery Units,Adults and Communities,Other Agencies - Third Party P,30131257,DIMENSIONS UK,224.40,09/08/2016
Delivery Units,Adults and Communities,Other Agencies - Third Party P,30131780,DIMENSIONS UK,716.57,18/08/2016
Delivery Units,Adults and Communities,Other Agencies - Third Party P,30131781,DIMENSIONS UK,912.00,18/08/2016
Delivery Units,Adults and Communities,Other Agencies - Third Party P,30131782,DIMENSIONS UK,912.00,18/08/2016
Delivery Units,Adults and Communities,Other Agencies - Third Party P,30131783,DIMENSIONS UK,912.00,18/08/2016
Delivery Units,Adults and Communities,Other Agencies - Third Party P,30131784,DIMENSIONS UK,912.00,18/08/2016
Delivery Units,Adults and Communities,Other Agencies - Third Party P,30131785,DIMENSIONS UK,912.00,18/08/2016
Delivery Units,Adults and Communities,Other Agencies - Third Party P,30131786,DIMENSIONS UK,"4,495.76",18/08/2016
Delivery Units,Adults and Communities,Other Agencies - Third Party P,30131787,DIMENSIONS UK,912.00,18/08/2016
Delivery Units,Adults and Communities,Other Agencies - Third Party P,30130389,DOWNLANDS CARE LTD,"2,079.17",02/08/2016
Delivery Units,Adults and Communities,Other Agencies - Third Party P,30132400,DOWNLANDS CARE LTD,"2,079.17",22/08/2016
Delivery Units,Adults and Communities,Other Agencies - Third Party P,30132557,DYNAMIC PEOPLE LTD,234.43,24/08/2016
Delivery Units,Adults and Communities,Other Agencies - Third Party P,30132558,DYNAMIC PEOPLE LTD,234.43,24/08/2016
Delivery Units,Adults and Communities,Other Agencies - Third Party P,30132559,DYNAMIC PEOPLE LTD,234.43,24/08/2016
Delivery Units,Adults and Communities,Other Agencies - Third Party P,30132560,DYNAMIC PEOPLE LTD,234.43,24/08/2016
Delivery Units,Adults and Communities,Other Agencies - Third Party P,30132561,DYNAMIC PEOPLE LTD,234.43,24/08/2016
Delivery Units,Adults and Communities,Other Agencies - Third Party P,30132562,DYNAMIC PEOPLE LTD,234.43,24/08/2016
Delivery Units,Adults and Communities,Other Agencies - Third Party P,30132563,DYNAMIC PEOPLE LTD,267.95,24/08/2016
Delivery Units,Adults and Communities,Other Agencies - Third Party P,30132564,DYNAMIC PEOPLE LTD,267.95,24/08/2016
Delivery Units,Adults and Communities,Other Agencies - Third Party P,30132565,DYNAMIC PEOPLE LTD,234.43,24/08/2016
Delivery Units,Adults and Communities,Other Agencies - Third Party P,30132566,DYNAMIC PEOPLE LTD,234.43,24/08/2016
Delivery Units,Adults and Communities,Other Agencies - Third Party P,30132567,DYNAMIC PEOPLE LTD,234.43,24/08/2016
Delivery Units,Adults and Communities,Other Agencies - Third Party P,30132568,DYNAMIC PEOPLE LTD,234.43,24/08/2016
Delivery Units,Adults and Communities,Other Agencies - Third Party P,30132569,DYNAMIC PEOPLE LTD,267.95,24/08/2016
Delivery Units,Adults and Communities,Other Agencies - Third Party P,30132570,DYNAMIC PEOPLE LTD,234.43,24/08/2016
Delivery Units,Adults and Communities,Other Agencies - Third Party P,30132571,DYNAMIC PEOPLE LTD,234.43,24/08/2016
Delivery Units,Adults and Communities,Other Agencies - Third Party P,30132572,DYNAMIC PEOPLE LTD,234.43,24/08/2016
Delivery Units,Adults and Communities,Other Agencies - Third Party P,30132573,DYNAMIC PEOPLE LTD,267.95,24/08/2016
Delivery Units,Adults and Communities,Other Agencies - Third Party P,30132574,DYNAMIC PEOPLE LTD,234.43,24/08/2016
Delivery Units,Adults and Communities,Other Agencies - Third Party P,30132575,DYNAMIC PEOPLE LTD,234.43,24/08/2016
Delivery Units,Adults and Communities,Other Agencies - Third Party P,30132576,DYNAMIC PEOPLE LTD,234.43,24/08/2016
Delivery Units,Adults and Communities,Other Agencies - Third Party P,30132577,DYNAMIC PEOPLE LTD,234.43,24/08/2016
Delivery Units,Adults and Communities,Other Agencies - Third Party P,30132579,DYNAMIC PEOPLE LTD,234.43,24/08/2016
Delivery Units,Adults and Communities,Other Agencies - Third Party P,30130381,ELIZA HOUSE,"2,448.78",02/08/2016
Delivery Units,Adults and Communities,Other Agencies - Third Party P,30130317,ELIZABETH HOUSE,"2,448.78",01/08/2016
Delivery Units,Adults and Communities,Other Agencies - Third Party P,30131032,ELM PARK LODGE,"3,299.29",09/08/2016
Delivery Units,Adults and Communities,Other Agencies - Third Party P,30131034,ELM PARK LODGE,"3,520.71",09/08/2016
Delivery Units,Adults and Communities,Other Agencies - Third Party P,30131035,ELM PARK LODGE,"3,484.80",09/08/2016
Delivery Units,Adults and Communities,Other Agencies - Third Party P,30131036,ELM PARK LODGE,"3,432.14",09/08/2016
Delivery Units,Adults and Communities,Other Agencies - Third Party P,30131038,ELM PARK LODGE,"3,441.00",09/08/2016
Delivery Units,Adults and Communities,Other Agencies - Third Party P,30131039,ELM PARK LODGE,"2,103.31",09/08/2016
Delivery Units,Adults and Communities,Other Agencies - Third Party P,30131042,ELM PARK LODGE,"3,432.14",09/08/2016
Delivery Units,Adults and Communities,Other Agencies - Third Party P,30131043,ELM PARK LODGE,"2,161.85",09/08/2016
Delivery Units,Adults and Communities,Other Agencies - Third Party P,30131047,ELM PARK LODGE,"3,210.71",09/08/2016
Delivery Units,Adults and Communities,Other Agencies - Third Party P,30131050,ELM PARK LODGE,"3,432.14",09/08/2016
Delivery Units,Adults and Communities,Other Agencies - Third Party P,30131055,ELM PARK LODGE,"3,432.14",09/08/2016
Delivery Units,Adults and Communities,Other Agencies - Third Party P,30131062,ELM PARK LODGE,"3,455.61",09/08/2016
Delivery Units,Adults and Communities,Other Agencies - Third Party P,30131067,ELM PARK LODGE,"3,170.86",09/08/2016
Delivery Units,Adults and Communities,Other Agencies - Third Party P,30131720,ELM PARK LODGE,"10,054.29",18/08/2016
Delivery Units,Adults and Communities,Other Agencies - Third Party P,30131758,ELM PARK LODGE,"3,691.43",18/08/2016
Delivery Units,Adults and Communities,Other Agencies - Third Party P,30131760,ELM PARK LODGE,"6,242.07",18/08/2016
Delivery Units,Adults and Communities,Other Agencies - Third Party P,30131794,ELM PARK LODGE,"9,092.49",18/08/2016
Delivery Units,Adults and Communities,Other Agencies - Third Party P,30131469,ELMHURST RESIDENTIAL HOME,"12,085.91",18/08/2016
Delivery Units,Adults and Communities,Other Agencies - Third Party P,30132327,ELMHURST RESIDENTIAL HOME,"1,207.14",22/08/2016
Delivery Units,Adults and Communities,Other Agencies - Third Party P,30132328,ELMHURST RESIDENTIAL HOME,"13,557.14",22/08/2016
Delivery Units,Adults and Communities,Other Agencies - Third Party P,30132329,ELMHURST RESIDENTIAL HOME,"11,328.57",22/08/2016
Delivery Units,Adults and Communities,Other Agencies - Third Party P,30132332,ELMHURST RESIDENTIAL HOME,"10,457.14",22/08/2016
Delivery Units,Adults and Communities,Other Agencies - Third Party P,30132333,ELMHURST RESIDENTIAL HOME,"13,114.28",24/08/2016
Delivery Units,Adults and Communities,Other Agencies - Third Party P,30132337,ELMHURST RESIDENTIAL HOME,"13,114.28",24/08/2016
Delivery Units,Adults and Communities,Other Agencies - Third Party P,30132338,ELMHURST RESIDENTIAL HOME,"12,085.91",24/08/2016
Delivery Units,Adults and Communities,Other Agencies - Third Party P,30132339,ELMHURST RESIDENTIAL HOME,"12,085.91",24/08/2016
Delivery Units,Adults and Communities,Other Agencies - Third Party P,30132340,ELMHURST RESIDENTIAL HOME,"12,567.86",24/08/2016
Delivery Units,Adults and Communities,Other Agencies - Third Party P,30132363,ELMHURST RESIDENTIAL HOME,"12,085.91",24/08/2016
Delivery Units,Adults and Communities,Other Agencies - Third Party P,30132392,ELMHURST RESIDENTIAL HOME,"12,085.91",24/08/2016
Delivery Units,Adults and Communities,Other Agencies - Third Party P,30132530,ELMHURST RESIDENTIAL HOME,"1,579.86",26/08/2016
Delivery Units,Adults and Communities,Other Agencies - Third Party P,30133042,ELMHURST RESIDENTIAL HOME,"7,285.71",26/08/2016
Delivery Units,Adults and Communities,Other Agencies - Third Party P,30133043,ELMHURST RESIDENTIAL HOME,"7,242.85",26/08/2016
Delivery Units,Adults and Communities,Other Agencies - Third Party P,30133414,ELMHURST RESIDENTIAL HOME,"9,637.13",30/08/2016
Delivery Units,Adults and Communities,Other Agencies - Third Party P,30131415,ENABLE U SENSORY SUPPORT LTD,240.00,11/08/2016
Delivery Units,Adults and Communities,Other Agencies - Third Party P,30132303,EVE HERSOV & CO,262.00,22/08/2016
Delivery Units,Adults and Communities,Other Agencies - Third Party P,30130769,FERNBANK NURSING HOME.,"1,933.50",03/08/2016
Delivery Units,Adults and Communities,Other Agencies - Third Party P,30130770,FERNBANK NURSING HOME.,"2,397.54",03/08/2016
Delivery Units,Adults and Communities,Other Agencies - Third Party P,30130771,FERNBANK NURSING HOME.,"2,397.54",03/08/2016
Delivery Units,Adults and Communities,Other Agencies - Third Party P,30130772,FERNBANK NURSING HOME.,"2,397.54",03/08/2016
Delivery Units,Adults and Communities,Other Agencies - Third Party P,30133176,FERNBANK NURSING HOME.,"2,397.54",26/08/2016
Delivery Units,Adults and Communities,Other Agencies - Third Party P,30133177,FERNBANK NURSING HOME.,"2,397.54",26/08/2016
Delivery Units,Adults and Communities,Other Agencies - Third Party P,30130282,FINBOND LIMITED,"2,216.41",01/08/2016
Delivery Units,Adults and Communities,Other Agencies - Third Party P,30130408,FINBOND LIMITED,"2,657.14",02/08/2016
Delivery Units,Adults and Communities,Other Agencies - Third Party P,30130409,FINBOND LIMITED,"2,418.04",02/08/2016
Delivery Units,Adults and Communities,Other Agencies - Third Party P,30133387,FINBOND LIMITED,"2,657.14",30/08/2016
Delivery Units,Adults and Communities,Other Agencies - Third Party P,30133388,FINBOND LIMITED,"2,216.41",30/08/2016
Delivery Units,Adults and Communities,Other Agencies - Third Party P,30133389,FINBOND LIMITED,"2,418.04",30/08/2016
Delivery Units,Adults and Communities,Other Agencies - Third Party P,30133390,FINBOND LIMITED,"2,431.29",30/08/2016
Delivery Units,Adults and Communities,Other Agencies - Third Party P,30131773,FLAGSWAN TWO LTD,"2,497.08",18/08/2016
Delivery Units,Adults and Communities,Other Agencies - Third Party P,30131774,FLAGSWAN TWO LTD,"2,546.43",18/08/2016
Delivery Units,Adults and Communities,Other Agencies - Third Party P,30131500,FLEXSERVE RESOURCE LTD,"2,887.20",18/08/2016
Delivery Units,Adults and Communities,Other Agencies - Third Party P,30131501,FLEXSERVE RESOURCE LTD,"1,422.40",18/08/2016
Delivery Units,Adults and Communities,Other Agencies - Third Party P,30131502,FLEXSERVE RESOURCE LTD,"1,369.20",18/08/2016
Delivery Units,Adults and Communities,Other Agencies - Third Party P,30131503,FLEXSERVE RESOURCE LTD,"2,044.20",18/08/2016
Delivery Units,Adults and Communities,Other Agencies - Third Party P,30131504,FLEXSERVE RESOURCE LTD,143.40,18/08/2016
Delivery Units,Adults and Communities,Other Agencies - Third Party P,30131505,FLEXSERVE RESOURCE LTD,"1,479.50",18/08/2016
Delivery Units,Adults and Communities,Other Agencies - Third Party P,30131506,FLEXSERVE RESOURCE LTD,"1,422.40",18/08/2016
Delivery Units,Adults and Communities,Other Agencies - Third Party P,30131507,FLEXSERVE RESOURCE LTD,684.60,18/08/2016
Delivery Units,Adults and Communities,Other Agencies - Third Party P,30132731,FOUR SEASONS HEALTH CARE,-499.39,24/08/2016
Delivery Units,Adults and Communities,Other Agencies - Third Party P,30132732,FOUR SEASONS HEALTH CARE,-499.39,24/08/2016
Delivery Units,Adults and Communities,Other Agencies - Third Party P,30132749,FOUR SEASONS HEALTH CARE,"2,973.69",24/08/2016
Delivery Units,Adults and Communities,Other Agencies - Third Party P,30132750,FOUR SEASONS HEALTH CARE,"2,973.69",24/08/2016
Delivery Units,Adults and Communities,Other Agencies - Third Party P,30132751,FOUR SEASONS HEALTH CARE,"2,246.44",24/08/2016
Delivery Units,Adults and Communities,Other Agencies - Third Party P,30132752,FOUR SEASONS HEALTH CARE,"2,246.44",24/08/2016
Delivery Units,Adults and Communities,Other Agencies - Third Party P,30133191,FOUR SEASONS HEALTH CARE,-499.39,26/08/2016
Delivery Units,Adults and Communities,Other Agencies - Third Party P,30133192,FOUR SEASONS HEALTH CARE,-499.39,26/08/2016
Delivery Units,Adults and Communities,Other Agencies - Third Party P,30133193,FOUR SEASONS HEALTH CARE,-499.39,26/08/2016
Delivery Units,Adults and Communities,Other Agencies - Third Party P,30133194,FOUR SEASONS HEALTH CARE,-37.93,26/08/2016
Delivery Units,Adults and Communities,Other Agencies - Third Party P,30133195,FOUR SEASONS HEALTH CARE,-442.50,26/08/2016
Delivery Units,Adults and Communities,Other Agencies - Third Party P,30133196,FOUR SEASONS HEALTH CARE,-499.39,26/08/2016
Delivery Units,Adults and Communities,Other Agencies - Third Party P,30133211,FOUR SEASONS HEALTH CARE,"2,973.69",26/08/2016
Delivery Units,Adults and Communities,Other Agencies - Third Party P,30133212,FOUR SEASONS HEALTH CARE,"3,142.19",26/08/2016
Delivery Units,Adults and Communities,Other Agencies - Third Party P,30133213,FOUR SEASONS HEALTH CARE,"2,973.69",26/08/2016
Delivery Units,Adults and Communities,Other Agencies - Third Party P,30133214,FOUR SEASONS HEALTH CARE,"2,973.69",26/08/2016
Delivery Units,Adults and Communities,Other Agencies - Third Party P,30133215,FOUR SEASONS HEALTH CARE,65.90,26/08/2016
Delivery Units,Adults and Communities,Other Agencies - Third Party P,30133216,FOUR SEASONS HEALTH CARE,653.61,26/08/2016
Delivery Units,Adults and Communities,Other Agencies - Third Party P,30133217,FOUR SEASONS HEALTH CARE,"2,399.36",26/08/2016
Delivery Units,Adults and Communities,Other Agencies - Third Party P,30133218,FOUR SEASONS HEALTH CARE,"2,246.44",26/08/2016
Delivery Units,Adults and Communities,Other Agencies - Third Party P,30133219,FOUR SEASONS HEALTH CARE,"2,246.44",26/08/2016
Delivery Units,Adults and Communities,Other Agencies - Third Party P,30133220,FOUR SEASONS HEALTH CARE,"1,604.60",26/08/2016
Delivery Units,Adults and Communities,Other Agencies - Third Party P,30133221,FOUR SEASONS HEALTH CARE,"2,246.44",26/08/2016
Delivery Units,Adults and Communities,Other Agencies - Third Party P,30133594,FOUR SEASONS HEALTH CARE,"2,376.83",30/08/2016
Delivery Units,Adults and Communities,Other Agencies - Third Party P,30131571,FOUR SEASONS HEALTH CARE (NO.4) LTD,"2,503.40",18/08/2016
Delivery Units,Adults and Communities,Other Agencies - Third Party P,30131716,FOUR SEASONS HEALTH CARE (NO.4) LTD,-499.39,18/08/2016
Delivery Units,Adults and Communities,Other Agencies - Third Party P,30131064,FREEWAYS TRUST LIMITED,829.80,05/08/2016
Delivery Units,Adults and Communities,Other Agencies - Third Party P,30131066,FREEWAYS TRUST LIMITED,829.80,26/08/2016
Delivery Units,Adults and Communities,Other Agencies - Third Party P,30130680,FREMANTLE TRUST,"2,096.32",02/08/2016
Delivery Units,Adults and Communities,Other Agencies - Third Party P,30130681,FREMANTLE TRUST,"2,275.71",02/08/2016
Delivery Units,Adults and Communities,Other Agencies - Third Party P,30130682,FREMANTLE TRUST,383.04,02/08/2016
Delivery Units,Adults and Communities,Other Agencies - Third Party P,30130685,FREMANTLE TRUST,"-2,400.81",02/08/2016
Delivery Units,Adults and Communities,Other Agencies - Third Party P,30130686,FREMANTLE TRUST,"3,581.96",02/08/2016
Delivery Units,Adults and Communities,Other Agencies - Third Party P,30131562,FREMANTLE TRUST,"1,849.60",18/08/2016
Delivery Units,Adults and Communities,Other Agencies - Third Party P,30130653,FRIARY LODGE,"2,448.78",04/08/2016
Delivery Units,Adults and Communities,Other Agencies - Third Party P,30130654,FRIARY LODGE,"2,249.44",04/08/2016
Delivery Units,Adults and Communities,Other Agencies - Third Party P,30130664,FRIARY LODGE,"2,448.78",04/08/2016
Delivery Units,Adults and Communities,Other Agencies - Third Party P,30130667,FRIARY LODGE,"2,448.78",04/08/2016
Delivery Units,Adults and Communities,Other Agencies - Third Party P,30130289,FRIERN RESIDENTIAL CARE HOME,"2,103.44",01/08/2016
Delivery Units,Adults and Communities,Other Agencies - Third Party P,30130292,FRIERN RESIDENTIAL CARE HOME,"3,985.71",01/08/2016
Delivery Units,Adults and Communities,Other Agencies - Third Party P,30132282,FRIERN RESIDENTIAL CARE HOME,"2,103.31",22/08/2016
Delivery Units,Adults and Communities,Other Agencies - Third Party P,30132046,GENTLE HANDS CARE AGENCY,432.00,18/08/2016
Delivery Units,Adults and Communities,Other Agencies - Third Party P,30132047,GENTLE HANDS CARE AGENCY,"1,400.00",18/08/2016
Delivery Units,Adults and Communities,Other Agencies - Third Party P,30132048,GENTLE HANDS CARE AGENCY,202.50,18/08/2016
Delivery Units,Adults and Communities,Other Agencies - Third Party P,30132049,GENTLE HANDS CARE AGENCY,483.08,18/08/2016
Delivery Units,Adults and Communities,Other Agencies - Third Party P,30131740,GENTLE HANDS CARE HOMES LIMITED,"4,394.00",18/08/2016
Delivery Units,Adults and Communities,Other Agencies - Third Party P,30131741,GENTLE HANDS CARE HOMES LIMITED,"3,419.00",18/08/2016
Delivery Units,Adults and Communities,Other Agencies - Third Party P,30131798,GENTLE HANDS CARE HOMES LIMITED,"1,080.00",18/08/2016
Delivery Units,Adults and Communities,Other Agencies - Third Party P,30132164,GENTLE HANDS CARE HOMES LIMITED,"2,400.00",19/08/2016
Delivery Units,Adults and Communities,Other Agencies - Third Party P,30130494,GLENHOLME PSYCHIATRIC AFTER CARE HO,"4,097.05",02/08/2016
Delivery Units,Adults and Communities,Other Agencies - Third Party P,30130547,GLENHOLME PSYCHIATRIC AFTER CARE HO,"3,986.16",02/08/2016
Delivery Units,Adults and Communities,Other Agencies - Third Party P,30130618,GLENHOLME PSYCHIATRIC AFTER CARE HO,"4,207.14",02/08/2016
Delivery Units,Adults and Communities,Other Agencies - Third Party P,30132733,GLENHOLME PSYCHIATRIC AFTER CARE HO,"4,097.05",24/08/2016
Delivery Units,Adults and Communities,Other Agencies - Third Party P,30132736,GLENHOLME PSYCHIATRIC AFTER CARE HO,"4,262.94",24/08/2016
Delivery Units,Adults and Communities,Other Agencies - Third Party P,30132737,GLENHOLME PSYCHIATRIC AFTER CARE HO,"4,125.43",24/08/2016
Delivery Units,Adults and Communities,Other Agencies - Third Party P,30132761,GLENHOLME PSYCHIATRIC AFTER CARE HO,"3,986.16",24/08/2016
Delivery Units,Adults and Communities,Other Agencies - Third Party P,30132809,GLENHOLME PSYCHIATRIC AFTER CARE HO,"4,207.14",24/08/2016
Delivery Units,Adults and Communities,Other Agencies - Third Party P,30130541,GREEN TREES,"2,767.85",02/08/2016
Delivery Units,Adults and Communities,Other Agencies - Third Party P,30132508,GREEN TREES,"2,767.85",22/08/2016
Delivery Units,Adults and Communities,Other Agencies - Third Party P,30130513,HALLMARK CARE (KINGS LYNN) LTD,"2,890.31",02/08/2016
Delivery Units,Adults and Communities,Other Agencies - Third Party P,30132294,HALLMARK CARE (KINGS LYNN) LTD,"2,890.31",22/08/2016
Delivery Units,Adults and Communities,Other Agencies - Third Party P,30132510,HARDEN,"4,343.12",22/08/2016
Delivery Units,Adults and Communities,Other Agencies - Third Party P,30132113,HARTLEY CENTRE,"3,427.20",19/08/2016
Delivery Units,Adults and Communities,Other Agencies - Third Party P,30127997,HEADWAY EAST LONDON,376.08,03/08/2016
Delivery Units,Adults and Communities,Other Agencies - Third Party P,30131275,HEADWAY EAST LONDON,376.08,30/08/2016
Delivery Units,Adults and Communities,Other Agencies - Third Party P,30131011,HENRY NIHILL HOUSE,"2,165.68",10/08/2016
Delivery Units,Adults and Communities,Other Agencies - Third Party P,30131012,HENRY NIHILL HOUSE,"2,398.56",10/08/2016
Delivery Units,Adults and Communities,Other Agencies - Third Party P,30130739,HFH HEALTHCARE LTD,"8,442.12",03/08/2016
Delivery Units,Adults and Communities,Other Agencies - Third Party P,30130740,HFH HEALTHCARE LTD,"8,444.16",03/08/2016
Delivery Units,Adults and Communities,Other Agencies - Third Party P,30132397,HILLGREEN CARE LTD,"7,093.24",22/08/2016
Delivery Units,Adults and Communities,Other Agencies - Third Party P,30131767,HILTON LODGE LTD.,"2,400.00",18/08/2016
Delivery Units,Adults and Communities,Other Agencies - Third Party P,30131768,HILTON LODGE LTD.,"2,256.04",18/08/2016
Delivery Units,Adults and Communities,Other Agencies - Third Party P,30131771,HILTON LODGE LTD.,"2,184.04",18/08/2016
Delivery Units,Adults and Communities,Other Agencies - Third Party P,30131772,HILTON LODGE LTD.,"2,184.04",18/08/2016
Delivery Units,Adults and Communities,Other Agencies - Third Party P,30131795,HILTON LODGE LTD.,"2,184.04",18/08/2016
Delivery Units,Adults and Communities,Other Agencies - Third Party P,30131797,HILTON LODGE LTD.,"2,184.04",18/08/2016
Delivery Units,Adults and Communities,Other Agencies - Third Party P,20031502,HMCTS,400.00,19/08/2016
Delivery Units,Adults and Communities,Other Agencies - Third Party P,30130478,HONISTER RESIDENTIAL CARE LTD,"2,418.04",02/08/2016
Delivery Units,Adults and Communities,Other Agencies - Third Party P,60060414,HOUSING 21,634.56,08/08/2016
Delivery Units,Adults and Communities,Other Agencies - Third Party P,60060804,HOUSING 21,634.56,12/08/2016
Delivery Units,Adults and Communities,Other Agencies - Third Party P,60061906,HOUSING 21,634.56,31/08/2016
Delivery Units,Adults and Communities,Other Agencies - Third Party P,30130698,HOUSING 21 (BARNET),-246.00,02/08/2016
Delivery Units,Adults and Communities,Other Agencies - Third Party P,30130927,HOUSING 21 (BARNET),-246.00,04/08/2016
Delivery Units,Adults and Communities,Other Agencies - Third Party P,30130928,HOUSING 21 (BARNET),-246.00,04/08/2016
Delivery Units,Adults and Communities,Other Agencies - Third Party P,30130929,HOUSING 21 (BARNET),-246.00,04/08/2016
Delivery Units,Adults and Communities,Other Agencies - Third Party P,30130613,HUSKARDS NEW CARE LTD,"2,216.50",02/08/2016
Delivery Units,Adults and Communities,Other Agencies - Third Party P,30132324,HUSKARDS NEW CARE LTD,"2,216.50",22/08/2016
Delivery Units,Adults and Communities,Other Agencies - Third Party P,30131478,INDIVIDUALISED CARE LIMITED,-280.00,22/08/2016
Delivery Units,Adults and Communities,Other Agencies - Third Party P,30132341,INDIVIDUALISED CARE LIMITED,280.00,22/08/2016
Delivery Units,Adults and Communities,Other Agencies - Third Party P,30132342,INDIVIDUALISED CARE LIMITED,"2,000.00",22/08/2016
Delivery Units,Adults and Communities,Other Agencies - Third Party P,30132343,INDIVIDUALISED CARE LIMITED,"1,197.00",22/08/2016
Delivery Units,Adults and Communities,Other Agencies - Third Party P,30132344,INDIVIDUALISED CARE LIMITED,"2,000.00",22/08/2016
Delivery Units,Adults and Communities,Other Agencies - Third Party P,30132345,INDIVIDUALISED CARE LIMITED,800.00,22/08/2016
Delivery Units,Adults and Communities,Other Agencies - Third Party P,30132346,INDIVIDUALISED CARE LIMITED,"1,000.00",22/08/2016
Delivery Units,Adults and Communities,Other Agencies - Third Party P,30132347,INDIVIDUALISED CARE LIMITED,256.00,22/08/2016
Delivery Units,Adults and Communities,Other Agencies - Third Party P,30132348,INDIVIDUALISED CARE LIMITED,600.00,22/08/2016
Delivery Units,Adults and Communities,Other Agencies - Third Party P,30132349,INDIVIDUALISED CARE LIMITED,255.00,22/08/2016
Delivery Units,Adults and Communities,Other Agencies - Third Party P,30132350,INDIVIDUALISED CARE LIMITED,700.00,22/08/2016
Delivery Units,Adults and Communities,Other Agencies - Third Party P,30132351,INDIVIDUALISED CARE LIMITED,500.00,22/08/2016
Delivery Units,Adults and Communities,Other Agencies - Third Party P,30132352,INDIVIDUALISED CARE LIMITED,400.00,22/08/2016
Delivery Units,Adults and Communities,Other Agencies - Third Party P,30132353,INDIVIDUALISED CARE LIMITED,300.00,22/08/2016
Delivery Units,Adults and Communities,Other Agencies - Third Party P,30132354,INDIVIDUALISED CARE LIMITED,140.00,22/08/2016
Delivery Units,Adults and Communities,Other Agencies - Third Party P,30132355,INDIVIDUALISED CARE LIMITED,"1,800.00",22/08/2016
Delivery Units,Adults and Communities,Other Agencies - Third Party P,30132357,INDIVIDUALISED CARE LIMITED,500.00,22/08/2016
Delivery Units,Adults and Communities,Other Agencies - Third Party P,30133415,INDIVIDUALISED CARE LIMITED,477.00,30/08/2016
Delivery Units,Adults and Communities,Other Agencies - Third Party P,30133416,INDIVIDUALISED CARE LIMITED,505.00,30/08/2016
Delivery Units,Adults and Communities,Other Agencies - Third Party P,30130382,INSIGHT SPECIALIST BEHAVIOURAL,"5,944.08",02/08/2016
Delivery Units,Adults and Communities,Other Agencies - Third Party P,30130379,JACARANDA HEALTHCARE,210.00,02/08/2016
Delivery Units,Adults and Communities,Other Agencies - Third Party P,30130729,JACARANDA HEALTHCARE,568.40,03/08/2016
Delivery Units,Adults and Communities,Other Agencies - Third Party P,30130730,JACARANDA HEALTHCARE,"1,744.40",03/08/2016
Delivery Units,Adults and Communities,Other Agencies - Third Party P,30130932,JACARANDA HEALTHCARE,162.00,04/08/2016
Delivery Units,Adults and Communities,Other Agencies - Third Party P,30131547,JACARANDA HEALTHCARE,91.35,18/08/2016
Delivery Units,Adults and Communities,Other Agencies - Third Party P,30131756,JEMINI RESPONSE,"9,100.00",18/08/2016
Delivery Units,Adults and Communities,Other Agencies - Third Party P,30133410,JEMINI RESPONSE,"9,100.00",31/08/2016
Delivery Units,Adults and Communities,Other Agencies - Third Party P,30131391,JEWISH CARE,"2,133.36",11/08/2016
Delivery Units,Adults and Communities,Other Agencies - Third Party P,30131649,JEWISH CARE,-26.98,18/08/2016
Delivery Units,Adults and Communities,Other Agencies - Third Party P,30131650,JEWISH CARE,"1,066.68",18/08/2016
Delivery Units,Adults and Communities,Other Agencies - Third Party P,30131652,JEWISH CARE,"3,200.00",18/08/2016
Delivery Units,Adults and Communities,Other Agencies - Third Party P,30131658,JEWISH CARE,"2,060.70",18/08/2016
Delivery Units,Adults and Communities,Other Agencies - Third Party P,30131662,JEWISH CARE,-414.71,18/08/2016
Delivery Units,Adults and Communities,Other Agencies - Third Party P,30131663,JEWISH CARE,-406.06,18/08/2016
Delivery Units,Adults and Communities,Other Agencies - Third Party P,30132147,JEWISH CARE,"21,731.04",19/08/2016
Delivery Units,Adults and Communities,Other Agencies - Third Party P,30133179,JEWISH CARE,"1,741.80",26/08/2016
Delivery Units,Adults and Communities,Other Agencies - Third Party P,30133180,JEWISH CARE,746.49,26/08/2016
Delivery Units,Adults and Communities,Other Agencies - Third Party P,30132364,JIGSAW CREATIVE CARE LIMITED,"12,087.04",22/08/2016
Delivery Units,Adults and Communities,Other Agencies - Third Party P,30132365,JIGSAW CREATIVE CARE LIMITED,"5,648.00",22/08/2016
Delivery Units,Adults and Communities,Other Agencies - Third Party P,30132366,JIGSAW CREATIVE CARE LIMITED,"11,132.00",22/08/2016
Delivery Units,Adults and Communities,Other Agencies - Third Party P,30130390,KARE PLUS BARNET,176.24,02/08/2016
Delivery Units,Adults and Communities,Other Agencies - Third Party P,30130391,KARE PLUS BARNET,293.72,02/08/2016
Delivery Units,Adults and Communities,Other Agencies - Third Party P,30130394,KARE PLUS BARNET,104.24,02/08/2016
Delivery Units,Adults and Communities,Other Agencies - Third Party P,30130395,KARE PLUS BARNET,118.14,02/08/2016
Delivery Units,Adults and Communities,Other Agencies - Third Party P,30130396,KARE PLUS BARNET,55.60,02/08/2016
Delivery Units,Adults and Communities,Other Agencies - Third Party P,30130397,KARE PLUS BARNET,27.80,02/08/2016
Delivery Units,Adults and Communities,Other Agencies - Third Party P,30130398,KARE PLUS BARNET,27.80,02/08/2016
Delivery Units,Adults and Communities,Other Agencies - Third Party P,30130399,KARE PLUS BARNET,27.80,02/08/2016
Delivery Units,Adults and Communities,Other Agencies - Third Party P,30130400,KARE PLUS BARNET,27.80,02/08/2016
Delivery Units,Adults and Communities,Other Agencies - Third Party P,30130347,KEMBLE HOUSE,"8,192.99",02/08/2016
Delivery Units,Adults and Communities,Other Agencies - Third Party P,30130348,KEMBLE HOUSE,"9,680.37",02/08/2016
Delivery Units,Adults and Communities,Other Agencies - Third Party P,30130353,KEMBLE HOUSE,"3,339.01",02/08/2016
Delivery Units,Adults and Communities,Other Agencies - Third Party P,60061261,KIHTO HEALTHCARE LTD,"1,400.00",17/08/2016
Delivery Units,Adults and Communities,Other Agencies - Third Party P,30130817,KILCULLEN HOMES (UK) LLP,"1,569.48",03/08/2016
Delivery Units,Adults and Communities,Other Agencies - Third Party P,30130741,KISHARON DAY SCHOOL,"1,464.03",03/08/2016
Delivery Units,Adults and Communities,Other Agencies - Third Party P,30130742,KISHARON DAY SCHOOL,"4,260.72",03/08/2016
Delivery Units,Adults and Communities,Other Agencies - Third Party P,30130743,KISHARON DAY SCHOOL,"2,144.10",03/08/2016
Delivery Units,Adults and Communities,Other Agencies - Third Party P,30130744,KISHARON DAY SCHOOL,"2,284.24",03/08/2016
Delivery Units,Adults and Communities,Other Agencies - Third Party P,30130745,KISHARON DAY SCHOOL,"1,373.49",03/08/2016
Delivery Units,Adults and Communities,Other Agencies - Third Party P,30130746,KISHARON DAY SCHOOL,381.54,03/08/2016
Delivery Units,Adults and Communities,Other Agencies - Third Party P,30130747,KISHARON DAY SCHOOL,"1,373.49",03/08/2016
Delivery Units,Adults and Communities,Other Agencies - Third Party P,30130748,KISHARON DAY SCHOOL,397.11,03/08/2016
Delivery Units,Adults and Communities,Other Agencies - Third Party P,30130749,KISHARON DAY SCHOOL,"1,679.87",03/08/2016
Delivery Units,Adults and Communities,Other Agencies - Third Party P,30130750,KISHARON DAY SCHOOL,"1,340.18",03/08/2016
Delivery Units,Adults and Communities,Other Agencies - Third Party P,30130751,KISHARON DAY SCHOOL,"1,241.16",03/08/2016
Delivery Units,Adults and Communities,Other Agencies - Third Party P,30130752,KISHARON DAY SCHOOL,"1,369.23",03/08/2016
Delivery Units,Adults and Communities,Other Agencies - Third Party P,30130753,KISHARON DAY SCHOOL,"1,373.68",03/08/2016
Delivery Units,Adults and Communities,Other Agencies - Third Party P,30130754,KISHARON DAY SCHOOL,"1,595.00",03/08/2016
Delivery Units,Adults and Communities,Other Agencies - Third Party P,30130755,KISHARON DAY SCHOOL,733.72,03/08/2016
Delivery Units,Adults and Communities,Other Agencies - Third Party P,30130757,KISHARON DAY SCHOOL,"1,275.96",03/08/2016
Delivery Units,Adults and Communities,Other Agencies - Third Party P,30130762,KISHARON DAY SCHOOL,"1,914.00",03/08/2016
Delivery Units,Adults and Communities,Other Agencies - Third Party P,30131015,KISHARON DAY SCHOOL,686.88,05/08/2016
Delivery Units,Adults and Communities,Other Agencies - Third Party P,30128008,KOLBE HOUSE SOCIETY,"2,320.00",08/08/2016
Delivery Units,Adults and Communities,Other Agencies - Third Party P,30131543,KOLBE HOUSE SOCIETY,"2,320.00",18/08/2016
Delivery Units,Adults and Communities,Other Agencies - Third Party P,30131189,LANGDON COMMUNITY LTD,225.00,09/08/2016
Delivery Units,Adults and Communities,Other Agencies - Third Party P,30131190,LANGDON COMMUNITY LTD,"4,594.04",09/08/2016
Delivery Units,Adults and Communities,Other Agencies - Third Party P,30131191,LANGDON COMMUNITY LTD,"1,641.60",09/08/2016
Delivery Units,Adults and Communities,Other Agencies - Third Party P,30131192,LANGDON COMMUNITY LTD,"3,411.48",09/08/2016
Delivery Units,Adults and Communities,Other Agencies - Third Party P,30131193,LANGDON COMMUNITY LTD,"2,097.60",09/08/2016
Delivery Units,Adults and Communities,Other Agencies - Third Party P,30131194,LANGDON COMMUNITY LTD,"1,772.32",09/08/2016
Delivery Units,Adults and Communities,Other Agencies - Third Party P,30131196,LANGDON COMMUNITY LTD,"2,403.92",09/08/2016
Delivery Units,Adults and Communities,Other Agencies - Third Party P,30131197,LANGDON COMMUNITY LTD,243.20,09/08/2016
Delivery Units,Adults and Communities,Other Agencies - Third Party P,30131198,LANGDON COMMUNITY LTD,"1,763.20",09/08/2016
Delivery Units,Adults and Communities,Other Agencies - Third Party P,30131199,LANGDON COMMUNITY LTD,"1,315.12",09/08/2016
Delivery Units,Adults and Communities,Other Agencies - Third Party P,30131200,LANGDON COMMUNITY LTD,608.00,09/08/2016
Delivery Units,Adults and Communities,Other Agencies - Third Party P,30131202,LANGDON COMMUNITY LTD,"1,064.00",09/08/2016
Delivery Units,Adults and Communities,Other Agencies - Third Party P,30131203,LANGDON COMMUNITY LTD,425.60,09/08/2016
Delivery Units,Adults and Communities,Other Agencies - Third Party P,30131204,LANGDON COMMUNITY LTD,"1,276.80",09/08/2016
Delivery Units,Adults and Communities,Other Agencies - Third Party P,30131205,LANGDON COMMUNITY LTD,851.20,09/08/2016
Delivery Units,Adults and Communities,Other Agencies - Third Party P,30131206,LANGDON COMMUNITY LTD,956.36,09/08/2016
Delivery Units,Adults and Communities,Other Agencies - Third Party P,30131207,LANGDON COMMUNITY LTD,"2,128.00",09/08/2016
Delivery Units,Adults and Communities,Other Agencies - Third Party P,30131208,LANGDON COMMUNITY LTD,"1,094.40",09/08/2016
Delivery Units,Adults and Communities,Other Agencies - Third Party P,30131491,LANGDON COMMUNITY LTD,"2,128.00",18/08/2016
Delivery Units,Adults and Communities,Other Agencies - Third Party P,30131492,LANGDON COMMUNITY LTD,"1,094.40",18/08/2016
Delivery Units,Adults and Communities,Other Agencies - Third Party P,30130810,LCS PARTNERSHIPS LTD,896.00,03/08/2016
Delivery Units,Adults and Communities,Other Agencies - Third Party P,30130811,LCS PARTNERSHIPS LTD,896.00,03/08/2016
Delivery Units,Adults and Communities,Other Agencies - Third Party P,30130812,LCS PARTNERSHIPS LTD,896.00,03/08/2016
Delivery Units,Adults and Communities,Other Agencies - Third Party P,30131041,LCS PARTNERSHIPS LTD,896.00,05/08/2016
Delivery Units,Adults and Communities,Other Agencies - Third Party P,30131765,LCS PARTNERSHIPS LTD,896.00,22/08/2016
Delivery Units,Adults and Communities,Other Agencies - Third Party P,30131764,LEEMING BAR CARE HOME,"2,107.69",18/08/2016
Delivery Units,Adults and Communities,Other Agencies - Third Party P,30131717,LEO BAECK HOUSING ASSOC. LTD,"2,448.69",18/08/2016
Delivery Units,Adults and Communities,Other Agencies - Third Party P,30131718,LEO BAECK HOUSING ASSOC. LTD,"2,249.36",18/08/2016
Delivery Units,Adults and Communities,Other Agencies - Third Party P,30131761,LEO BAECK HOUSING ASSOC. LTD,"2,249.36",18/08/2016
Delivery Units,Adults and Communities,Other Agencies - Third Party P,30131762,LEO BAECK HOUSING ASSOC. LTD,"2,448.76",18/08/2016
Delivery Units,Adults and Communities,Other Agencies - Third Party P,30131763,LEO BAECK HOUSING ASSOC. LTD,"2,249.36",18/08/2016
Delivery Units,Adults and Communities,Other Agencies - Third Party P,30131775,LEO BAECK HOUSING ASSOC. LTD,"2,327.21",18/08/2016
Delivery Units,Adults and Communities,Other Agencies - Third Party P,30131799,LEO BAECK HOUSING ASSOC. LTD,"2,249.36",18/08/2016
Delivery Units,Adults and Communities,Other Agencies - Third Party P,30131800,LEO BAECK HOUSING ASSOC. LTD,"2,361.89",18/08/2016
Delivery Units,Adults and Communities,Other Agencies - Third Party P,30131801,LEO BAECK HOUSING ASSOC. LTD,"1,676.18",18/08/2016
Delivery Units,Adults and Communities,Other Agencies - Third Party P,30130327,LEWIS.W.HAMMERSON MEMORIAL HOME,"2,249.45",01/08/2016
Delivery Units,Adults and Communities,Other Agencies - Third Party P,30130338,LEWIS.W.HAMMERSON MEMORIAL HOME,"2,249.45",01/08/2016
Delivery Units,Adults and Communities,Other Agencies - Third Party P,30130339,LEWIS.W.HAMMERSON MEMORIAL HOME,"2,249.45",01/08/2016
Delivery Units,Adults and Communities,Other Agencies - Third Party P,30131792,LEWIS.W.HAMMERSON MEMORIAL HOME,269.10,18/08/2016
Delivery Units,Adults and Communities,Other Agencies - Third Party P,30131793,LEWIS.W.HAMMERSON MEMORIAL HOME,269.10,18/08/2016
Delivery Units,Adults and Communities,Other Agencies - Third Party P,30132522,LEWIS.W.HAMMERSON MEMORIAL HOME,"2,317.83",22/08/2016
Delivery Units,Adults and Communities,Other Agencies - Third Party P,30132805,LEWIS.W.HAMMERSON MEMORIAL HOME,"2,317.83",24/08/2016
Delivery Units,Adults and Communities,Other Agencies - Third Party P,30130267,LIFESTYLE CARE 2011 PLC,"2,138.00",01/08/2016
Delivery Units,Adults and Communities,Other Agencies - Third Party P,30131331,LIFESTYLE CARE 2011 PLC,"2,138.00",11/08/2016
Delivery Units,Adults and Communities,Other Agencies - Third Party P,30131580,LIFESTYLE CARE PLC,"2,714.29",18/08/2016
Delivery Units,Adults and Communities,Other Agencies - Third Party P,30133115,LIFESTYLE CARE PLC,"16,618.59",26/08/2016
Delivery Units,Adults and Communities,Other Agencies - Third Party P,30133116,LIFESTYLE CARE PLC,"3,800.00",26/08/2016
Delivery Units,Adults and Communities,Other Agencies - Third Party P,30130783,LIFEWAYS,"3,145.24",03/08/2016
Delivery Units,Adults and Communities,Other Agencies - Third Party P,30130784,LIFEWAYS,"6,930.00",03/08/2016
Delivery Units,Adults and Communities,Other Agencies - Third Party P,30130786,LIFEWAYS,"5,037.40",03/08/2016
Delivery Units,Adults and Communities,Other Agencies - Third Party P,30130787,LIFEWAYS,"5,943.00",03/08/2016
Delivery Units,Adults and Communities,Other Agencies - Third Party P,30130793,LIFEWAYS,"3,656.00",03/08/2016
Delivery Units,Adults and Communities,Other Agencies - Third Party P,30130794,LIFEWAYS,"5,766.44",03/08/2016
Delivery Units,Adults and Communities,Other Agencies - Third Party P,30130795,LIFEWAYS,"4,828.24",03/08/2016
